Body Name,Date Paid,Transaction Number,Amount,Supplier Name,Supplier Type,Expense Area,Cost Centre Description,Expense Type
Cambridgeshire County Council,13-Sep-17,24231231-15993619,-270199.5,Cambridgeshire And Peterborough Nhs Foundation Trust,Trust (Other),Control Accounts,Uncleared bank items,Bank Overdraft Expenditure / Payments
Cambridgeshire County Council,18-Sep-17,23936675-16035892,-44361.14,Kisimul School,Care Establishment,S&C,Placements - Education,Independent School Placements
Cambridgeshire County Council,18-Sep-17,23964000-16035893,-41000.45,Kisimul School,Care Establishment,S&C,Placements - Education,Independent School Placements
Cambridgeshire County Council,06-Sep-17,24192397-15965652,-25242.89,Wings Education Ltd,Trade Supplier,S&C,Placements - Social Care,Agency Placements - Out County
Cambridgeshire County Council,08-Sep-17,22045983-15973166,-20680.84,Bnp Paribas Real Estate,Trade Supplier,LGSS Managed,Babbage House,Rents and Leases
Cambridgeshire County Council,08-Sep-17,24212963-15978394,-18600,Wings Education Ltd,Trade Supplier,S&C,Placements - Social Care,Agency Placements - Out County
Cambridgeshire County Council,29-Sep-17,24233703-16112718,-18274.84,Imtech Aqua Maintenance Ltd,Company,Control Accounts,Uncleared bank items,Bank Overdraft Expenditure / Payments
Cambridgeshire County Council,15-Sep-17,24231253-16029599,-17500,Gretton School,Education,Control Accounts,Uncleared bank items,Bank Overdraft Expenditure / Payments
Cambridgeshire County Council,15-Sep-17,24232347-16029551,-13950.24,Mears Care Ltd,Care Establishment,Control Accounts,Uncleared bank items,Bank Overdraft Expenditure / Payments
Cambridgeshire County Council,15-Sep-17,24213314-16029513,-10164.36,Sdc Builders Ltd,Company,S&C,Education Property Strategy Manager,Capital WIP - land and buildings  -  Construction cost
Cambridgeshire County Council,25-Sep-17,24234014-16080295,-9654.2,The National Fostering Agency,Care Establishment,Control Accounts,Uncleared bank items,Bank Overdraft Expenditure / Payments
Cambridgeshire County Council,25-Sep-17,24231250-16079952,-9127.27,Fostering Solutions Ltd,Care Establishment,Control Accounts,Uncleared bank items,Bank Overdraft Expenditure / Payments
Cambridgeshire County Council,25-Sep-17,24231221-16080574,-8940,Asbestech Limited,Trade Supplier,Control Accounts,Uncleared bank items,Bank Overdraft Expenditure / Payments
Cambridgeshire County Council,28-Sep-17,24322829-16102141,-8156.17,Kisimul School,Care Establishment,S&C,Placements - Education,Independent School Placements
Cambridgeshire County Council,14-Sep-17,24103339-16001380,-6741,The Lodge (Jeesal Akman Care Corporation Ltd),Care Establishment,2 - Operations - Learning Disability,LDP Hunts special needs,Day and Domicillary Care Independent Sector
Cambridgeshire County Council,14-Sep-17,24096135-16001377,-6741,The Lodge (Jeesal Akman Care Corporation Ltd),Care Establishment,2 - Operations - Learning Disability,LDP Hunts special needs,Day and Domicillary Care Independent Sector
Cambridgeshire County Council,14-Sep-17,24096134-16001376,-6741,The Lodge (Jeesal Akman Care Corporation Ltd),Care Establishment,2 - Operations - Learning Disability,LDP Hunts special needs,Day and Domicillary Care Independent Sector
Cambridgeshire County Council,14-Sep-17,24103342-16001378,-6741,The Lodge (Jeesal Akman Care Corporation Ltd),Care Establishment,2 - Operations - Learning Disability,LDP Hunts special needs,Day and Domicillary Care Independent Sector
Cambridgeshire County Council,01-Sep-17,24137235-15946681,-4655,Brookdale Healthcare Limited,Care Establishment,4 - Operations - Providers services,LDP Huntingdonshire Locality - Care,Respite Independent Sector
Cambridgeshire County Council,01-Sep-17,24137237-15946683,-4655,Brookdale Healthcare Limited,Care Establishment,2 - Operations - Learning Disability,LDP Hunts special needs,Respite Independent Sector
Cambridgeshire County Council,14-Sep-17,24212760-16026185,-4655,Brookdale Healthcare Limited,Care Establishment,4 - Operations - Providers services,LDP Huntingdonshire Locality - Care,Respite Independent Sector
Cambridgeshire County Council,14-Sep-17,24257220-16026204,-4655,Brookdale Healthcare Limited,Care Establishment,2 - Operations - Learning Disability,LDP Hunts special needs,Respite Independent Sector
Cambridgeshire County Council,14-Sep-17,24257223-16026207,-4655,Brookdale Healthcare Limited,Care Establishment,4 - Operations - Providers services,LDP Huntingdonshire Locality - Care,Respite Independent Sector
Cambridgeshire County Council,22-Sep-17,24323863-16076783,-4655,Brookdale Healthcare Limited,Care Establishment,4 - Operations - Providers services,LDP Huntingdonshire Locality - Care,Respite Independent Sector
Cambridgeshire County Council,28-Sep-17,24366816-16105557,-4655,Brookdale Healthcare Limited,Care Establishment,4 - Operations - Providers services,LDP Huntingdonshire Locality - Care,Respite Independent Sector
Cambridgeshire County Council,01-Sep-17,24137243-15946669,-4655,Brookdale Healthcare Limited,Care Establishment,2 - Operations - Learning Disability,LDP Hunts special needs,Respite Independent Sector
Cambridgeshire County Council,14-Sep-17,24212738-16026170,-4655,Brookdale Healthcare Limited,Care Establishment,4 - Operations - Providers services,LDP Huntingdonshire Locality - Care,Respite Independent Sector
Cambridgeshire County Council,14-Sep-17,24212742-16026171,-4655,Brookdale Healthcare Limited,Care Establishment,4 - Operations - Providers services,LDP Huntingdonshire Locality - Care,Respite Independent Sector
Cambridgeshire County Council,14-Sep-17,24257224-16026208,-4655,Brookdale Healthcare Limited,Care Establishment,4 - Operations - Providers services,LDP Huntingdonshire Locality - Care,Respite Independent Sector
Cambridgeshire County Council,22-Sep-17,24323864-16076784,-4655,Brookdale Healthcare Limited,Care Establishment,4 - Operations - Providers services,LDP Huntingdonshire Locality - Care,Respite Independent Sector
Cambridgeshire County Council,28-Sep-17,24366806-16105547,-4655,Brookdale Healthcare Limited,Care Establishment,4 - Operations - Providers services,LDP Huntingdonshire Locality - Care,Respite Independent Sector
Cambridgeshire County Council,01-Sep-17,24137238-15946684,-4655,Brookdale Healthcare Limited,Care Establishment,4 - Operations - Providers services,LDP Huntingdonshire Locality - Care,Respite Independent Sector
Cambridgeshire County Council,14-Sep-17,24257230-16026212,-4655,Brookdale Healthcare Limited,Care Establishment,2 - Operations - Learning Disability,LDP Hunts special needs,Respite Independent Sector
Cambridgeshire County Council,01-Sep-17,24137233-15946679,-4655,Brookdale Healthcare Limited,Care Establishment,2 - Operations - Learning Disability,LDP Hunts special needs,Respite Independent Sector
Cambridgeshire County Council,14-Sep-17,24212747-16026175,-4655,Brookdale Healthcare Limited,Care Establishment,4 - Operations - Providers services,LDP Huntingdonshire Locality - Care,Respite Independent Sector
Cambridgeshire County Council,14-Sep-17,24257211-16026198,-4655,Brookdale Healthcare Limited,Care Establishment,2 - Operations - Learning Disability,LDP Hunts special needs,Respite Independent Sector
Cambridgeshire County Council,14-Sep-17,24257215-16026202,-4655,Brookdale Healthcare Limited,Care Establishment,2 - Operations - Learning Disability,LDP Hunts special needs,Respite Independent Sector
Cambridgeshire County Council,22-Sep-17,24323850-16076770,-4655,Brookdale Healthcare Limited,Care Establishment,2 - Operations - Learning Disability,LDP Hunts special needs,Respite Independent Sector
Cambridgeshire County Council,22-Sep-17,24323852-16076772,-4655,Brookdale Healthcare Limited,Care Establishment,4 - Operations - Providers services,LDP Huntingdonshire Locality - Care,Respite Independent Sector
Cambridgeshire County Council,01-Sep-17,24137231-15946677,-4655,Brookdale Healthcare Limited,Care Establishment,2 - Operations - Learning Disability,LDP Hunts special needs,Respite Independent Sector
Cambridgeshire County Council,01-Sep-17,24137239-15946685,-4655,Brookdale Healthcare Limited,Care Establishment,2 - Operations - Learning Disability,LDP Hunts special needs,Respite Independent Sector
Cambridgeshire County Council,14-Sep-17,24257208-16026217,-4655,Brookdale Healthcare Limited,Care Establishment,4 - Operations - Providers services,LDP Huntingdonshire Locality - Care,Respite Independent Sector
Cambridgeshire County Council,22-Sep-17,24323853-16076773,-4655,Brookdale Healthcare Limited,Care Establishment,2 - Operations - Learning Disability,LDP Hunts special needs,Respite Independent Sector
Cambridgeshire County Council,22-Sep-17,24323855-16076775,-4655,Brookdale Healthcare Limited,Care Establishment,2 - Operations - Learning Disability,LDP Hunts special needs,Respite Independent Sector
Cambridgeshire County Council,28-Sep-17,24366805-16105546,-4655,Brookdale Healthcare Limited,Care Establishment,4 - Operations - Providers services,LDP Huntingdonshire Locality - Care,Respite Independent Sector
Cambridgeshire County Council,28-Sep-17,24366810-16105551,-4655,Brookdale Healthcare Limited,Care Establishment,4 - Operations - Providers services,LDP Huntingdonshire Locality - Care,Respite Independent Sector
Cambridgeshire County Council,28-Sep-17,24366815-16105556,-4655,Brookdale Healthcare Limited,Care Establishment,2 - Operations - Learning Disability,LDP Hunts special needs,Respite Independent Sector
Cambridgeshire County Council,01-Sep-17,24137230-15946676,-4655,Brookdale Healthcare Limited,Care Establishment,4 - Operations - Providers services,LDP Huntingdonshire Locality - Care,Respite Independent Sector
Cambridgeshire County Council,14-Sep-17,24212766-16026188,-4655,Brookdale Healthcare Limited,Care Establishment,4 - Operations - Providers services,LDP Huntingdonshire Locality - Care,Respite Independent Sector
Cambridgeshire County Council,22-Sep-17,24323858-16076778,-4655,Brookdale Healthcare Limited,Care Establishment,4 - Operations - Providers services,LDP Huntingdonshire Locality - Care,Respite Independent Sector
Cambridgeshire County Council,22-Sep-17,24323860-16076780,-4655,Brookdale Healthcare Limited,Care Establishment,4 - Operations - Providers services,LDP Huntingdonshire Locality - Care,Respite Independent Sector
Cambridgeshire County Council,28-Sep-17,24366801-16105542,-4655,Brookdale Healthcare Limited,Care Establishment,4 - Operations - Providers services,LDP Huntingdonshire Locality - Care,Respite Independent Sector
Cambridgeshire County Council,28-Sep-17,24366809-16105550,-4655,Brookdale Healthcare Limited,Care Establishment,2 - Operations - Learning Disability,LDP Hunts special needs,Respite Independent Sector
Cambridgeshire County Council,01-Sep-17,24137232-15946678,-4655,Brookdale Healthcare Limited,Care Establishment,4 - Operations - Providers services,LDP Huntingdonshire Locality - Care,Respite Independent Sector
Cambridgeshire County Council,14-Sep-17,24212745-16026174,-4655,Brookdale Healthcare Limited,Care Establishment,4 - Operations - Providers services,LDP Huntingdonshire Locality - Care,Respite Independent Sector
Cambridgeshire County Council,22-Sep-17,24323854-16076774,-4655,Brookdale Healthcare Limited,Care Establishment,4 - Operations - Providers services,LDP Huntingdonshire Locality - Care,Respite Independent Sector
Cambridgeshire County Council,14-Sep-17,24212750-16026178,-4655,Brookdale Healthcare Limited,Care Establishment,2 - Operations - Learning Disability,LDP Hunts special needs,Respite Independent Sector
Cambridgeshire County Council,14-Sep-17,24212751-16026179,-4655,Brookdale Healthcare Limited,Care Establishment,4 - Operations - Providers services,LDP Huntingdonshire Locality - Care,Respite Independent Sector
Cambridgeshire County Council,14-Sep-17,24212758-16026183,-4655,Brookdale Healthcare Limited,Care Establishment,2 - Operations - Learning Disability,LDP Hunts special needs,Respite Independent Sector
Cambridgeshire County Council,14-Sep-17,24257232-16026214,-4655,Brookdale Healthcare Limited,Care Establishment,4 - Operations - Providers services,LDP Huntingdonshire Locality - Care,Respite Independent Sector
Cambridgeshire County Council,14-Sep-17,24257236-16026216,-4655,Brookdale Healthcare Limited,Care Establishment,2 - Operations - Learning Disability,LDP Hunts special needs,Respite Independent Sector
Cambridgeshire County Council,28-Sep-17,24366818-16105559,-4655,Brookdale Healthcare Limited,Care Establishment,2 - Operations - Learning Disability,LDP Hunts special needs,Respite Independent Sector
Cambridgeshire County Council,28-Sep-17,24366819-16105560,-4655,Brookdale Healthcare Limited,Care Establishment,4 - Operations - Providers services,LDP Huntingdonshire Locality - Care,Respite Independent Sector
Cambridgeshire County Council,14-Sep-17,24241237-16001043,-4522.08,The Cambridge Nursing Centre,Care Establishment,2 - Commissioning - Older people Pool,City and South - Long term blocks,Nursing Independent Sector
Cambridgeshire County Council,14-Sep-17,24257693-16001086,-4522.08,The Cambridge Nursing Centre,Care Establishment,2 - Commissioning - Older people Pool,City and South - Long term blocks,Nursing Independent Sector
Cambridgeshire County Council,14-Sep-17,24257733-16001089,-4522.08,The Cambridge Nursing Centre,Care Establishment,2 - Commissioning - Older people Pool,City and South - Long term blocks,Nursing Independent Sector
Cambridgeshire County Council,14-Sep-17,24257676-16001080,-4522.08,The Cambridge Nursing Centre,Care Establishment,2 - Commissioning - Older people Pool,City and South - Long term blocks,Nursing Independent Sector
Cambridgeshire County Council,14-Sep-17,24257692-16001085,-4522.08,The Cambridge Nursing Centre,Care Establishment,2 - Commissioning - Older people Pool,City and South - Long term blocks,Nursing Independent Sector
Cambridgeshire County Council,14-Sep-17,24257752-16001091,-4522.08,The Cambridge Nursing Centre,Care Establishment,2 - Commissioning - Older people Pool,City and South - Long term blocks,Nursing Independent Sector
Cambridgeshire County Council,14-Sep-17,24241256-16001051,-4522.08,The Cambridge Nursing Centre,Care Establishment,2 - Commissioning - Older people Pool,City and South - Long term blocks,Nursing Independent Sector
Cambridgeshire County Council,14-Sep-17,24241286-16001056,-4522.08,The Cambridge Nursing Centre,Care Establishment,2 - Commissioning - Older people Pool,City and South - Long term blocks,Nursing Independent Sector
Cambridgeshire County Council,14-Sep-17,24257732-16001088,-4522.08,The Cambridge Nursing Centre,Care Establishment,2 - Commissioning - Older people Pool,City and South - Long term blocks,Nursing Independent Sector
Cambridgeshire County Council,14-Sep-17,24241239-16001045,-4522.08,The Cambridge Nursing Centre,Care Establishment,2 - Commissioning - Older people Pool,City and South - Long term blocks,Nursing Independent Sector
Cambridgeshire County Council,14-Sep-17,24241315-16001060,-4522.08,The Cambridge Nursing Centre,Care Establishment,2 - Commissioning - Older people Pool,City and South - Long term blocks,Nursing Independent Sector
Cambridgeshire County Council,14-Sep-17,24257709-16001075,-4522.08,The Cambridge Nursing Centre,Care Establishment,2 - Commissioning - Older people Pool,City and South - Long term blocks,Nursing Independent Sector
Cambridgeshire County Council,14-Sep-17,24257758-16001094,-4522.08,The Cambridge Nursing Centre,Care Establishment,2 - Commissioning - Older people Pool,City and South - Long term blocks,Nursing Independent Sector
Cambridgeshire County Council,14-Sep-17,24241281-16001055,-4522.08,The Cambridge Nursing Centre,Care Establishment,2 - Commissioning - Older people Pool,City and South - Long term blocks,Nursing Independent Sector
Cambridgeshire County Council,14-Sep-17,24257708-16001074,-4522.08,The Cambridge Nursing Centre,Care Establishment,2 - Commissioning - Older people Pool,City and South - Long term blocks,Nursing Independent Sector
Cambridgeshire County Council,14-Sep-17,24241255-16001050,-3768.4,The Cambridge Nursing Centre,Care Establishment,2 - Commissioning - Older people Pool,City and South - Long term blocks,Nursing Independent Sector
Cambridgeshire County Council,14-Sep-17,24257756-16001092,-3768.4,The Cambridge Nursing Centre,Care Establishment,2 - Commissioning - Older people Pool,City and South - Long term blocks,Nursing Independent Sector
Cambridgeshire County Council,08-Sep-17,22406425-15973167,-3726.67,Bnp Paribas Real Estate,Trade Supplier,LGSS Managed,Bailey Rooms,Buildings service charges
Cambridgeshire County Council,13-Sep-17,24232608-15993530,-3407.1,Compass Fostering Central Limited,Care Establishment,S&C,Placements - Social Care,Agency Placements - In Cambs
Cambridgeshire County Council,25-Sep-17,24330765-16080033,-3385.71,Hunters Healthcare (Hunters Down),Care Establishment,2 - Commissioning - Older people Pool,Dom Blocks,Short Term Other
Cambridgeshire County Council,14-Sep-17,24212749-16026177,-3325,Brookdale Healthcare Limited,Care Establishment,2 - Operations - Learning Disability,LDP Hunts special needs,Respite Independent Sector
Cambridgeshire County Council,01-Sep-17,24137236-15946682,-3325,Brookdale Healthcare Limited,Care Establishment,4 - Operations - Providers services,LDP Huntingdonshire Locality - Care,Respite Independent Sector
Cambridgeshire County Council,14-Sep-17,24257214-16026201,-3325,Brookdale Healthcare Limited,Care Establishment,2 - Operations - Learning Disability,LDP Hunts special needs,Respite Independent Sector
Cambridgeshire County Council,22-Sep-17,24323849-16076769,-3325,Brookdale Healthcare Limited,Care Establishment,4 - Operations - Providers services,LDP Huntingdonshire Locality - Care,Respite Independent Sector
Cambridgeshire County Council,28-Sep-17,24366808-16105549,-3325,Brookdale Healthcare Limited,Care Establishment,4 - Operations - Providers services,LDP Huntingdonshire Locality - Care,Respite Independent Sector
Cambridgeshire County Council,14-Sep-17,24241307-16001057,-3230.06,The Cambridge Nursing Centre,Care Establishment,2 - Commissioning - Older people Pool,City and South - Long term blocks,Nursing Independent Sector
Cambridgeshire County Council,22-Sep-17,24327482-16074218,-3164.64,The Red House Residential & Nursing Home,Care Establishment,2 - Commissioning - Older people Pool,Hunts - Long term blocks,Residential Independent Sector
Cambridgeshire County Council,22-Sep-17,24317597-16074195,-3164.64,The Red House Residential & Nursing Home,Care Establishment,2 - Commissioning - Older people Pool,Hunts - Long term blocks,Residential Independent Sector
Cambridgeshire County Council,22-Sep-17,24327478-16074214,-3164.64,The Red House Residential & Nursing Home,Care Establishment,2 - Commissioning - Older people Pool,Hunts - Long term blocks,Residential Independent Sector
Cambridgeshire County Council,22-Sep-17,24327499-16074209,-3164.64,The Red House Residential & Nursing Home,Care Establishment,2 - Commissioning - Older people Pool,Hunts - Long term blocks,Residential Independent Sector
Cambridgeshire County Council,22-Sep-17,24327480-16074216,-3164.64,The Red House Residential & Nursing Home,Care Establishment,2 - Commissioning - Older people Pool,Hunts - Long term blocks,Residential Independent Sector
Cambridgeshire County Council,22-Sep-17,24327484-16074220,-3164.64,The Red House Residential & Nursing Home,Care Establishment,2 - Commissioning - Older people Pool,Hunts - Long term blocks,Residential Independent Sector
Cambridgeshire County Council,22-Sep-17,24317599-16074196,-3164.64,The Red House Residential & Nursing Home,Care Establishment,2 - Commissioning - Older people Pool,Hunts - Long term blocks,Residential Independent Sector
Cambridgeshire County Council,22-Sep-17,24327479-16074215,-3164.64,The Red House Residential & Nursing Home,Care Establishment,2 - Commissioning - Older people Pool,Hunts - Long term blocks,Residential Independent Sector
Cambridgeshire County Council,22-Sep-17,24327486-16074221,-3164.64,The Red House Residential & Nursing Home,Care Establishment,2 - Commissioning - Older people Pool,Hunts - Long term blocks,Residential Independent Sector
Cambridgeshire County Council,22-Sep-17,24317602-16074198,-3164.64,The Red House Residential & Nursing Home,Care Establishment,2 - Commissioning - Older people Pool,Hunts - Long term blocks,Residential Independent Sector
Cambridgeshire County Council,22-Sep-17,24327493-16074205,-3164.64,The Red House Residential & Nursing Home,Care Establishment,2 - Commissioning - Older people Pool,Hunts - Long term blocks,Residential Independent Sector
Cambridgeshire County Council,22-Sep-17,24317586-16074186,-3164.64,The Red House Residential & Nursing Home,Care Establishment,2 - Commissioning - Older people Pool,Hunts - Long term blocks,Residential Independent Sector
Cambridgeshire County Council,22-Sep-17,24327488-16074200,-3164.64,The Red House Residential & Nursing Home,Care Establishment,2 - Commissioning - Older people Pool,Hunts - Long term blocks,Residential Independent Sector
Cambridgeshire County Council,22-Sep-17,24327502-16074210,-3164.64,The Red House Residential & Nursing Home,Care Establishment,2 - Commissioning - Older people Pool,Hunts - Long term blocks,Residential Independent Sector
Cambridgeshire County Council,08-Sep-17,24205082-15973373,-2977.44,Decoy Farm,Care Establishment,4 - Operations - Providers services,LDP E Cambs Special Needs,Residential Independent Sector
Cambridgeshire County Council,08-Sep-17,24205087-15973378,-2977.44,Decoy Farm,Care Establishment,4 - Operations - Providers services,LDP E Cambs Special Needs,Residential Independent Sector
Cambridgeshire County Council,08-Sep-17,24205102-15973393,-2977.44,Decoy Farm,Care Establishment,4 - Operations - Providers services,LDP E Cambs Special Needs,Residential Independent Sector
Cambridgeshire County Council,08-Sep-17,24205120-15973411,-2977.44,Decoy Farm,Care Establishment,4 - Operations - Providers services,LDP E Cambs Special Needs,Residential Independent Sector
Cambridgeshire County Council,08-Sep-17,24205128-15973419,-2977.44,Decoy Farm,Care Establishment,4 - Operations - Providers services,LDP E Cambs Special Needs,Residential Independent Sector
Cambridgeshire County Council,08-Sep-17,24205134-15973425,-2977.44,Decoy Farm,Care Establishment,4 - Operations - Providers services,LDP E Cambs Special Needs,Residential Independent Sector
Cambridgeshire County Council,08-Sep-17,24205140-15973431,-2977.44,Decoy Farm,Care Establishment,4 - Operations - Providers services,LDP E Cambs Special Needs,Residential Independent Sector
Cambridgeshire County Council,08-Sep-17,24207065-15973435,-2977.44,Decoy Farm,Care Establishment,4 - Operations - Providers services,LDP E Cambs Special Needs,Residential Independent Sector
Cambridgeshire County Council,08-Sep-17,24207067-15973437,-2977.44,Decoy Farm,Care Establishment,4 - Operations - Providers services,LDP E Cambs Special Needs,Residential Independent Sector
Cambridgeshire County Council,08-Sep-17,24207070-15973440,-2977.44,Decoy Farm,Care Establishment,4 - Operations - Providers services,LDP E Cambs Special Needs,Residential Independent Sector
Cambridgeshire County Council,08-Sep-17,24207073-15973443,-2977.44,Decoy Farm,Care Establishment,4 - Operations - Providers services,LDP E Cambs Special Needs,Residential Independent Sector
Cambridgeshire County Council,08-Sep-17,24207097-15973466,-2977.44,Decoy Farm,Care Establishment,4 - Operations - Providers services,LDP E Cambs Special Needs,Residential Independent Sector
Cambridgeshire County Council,08-Sep-17,24207099-15973468,-2977.44,Decoy Farm,Care Establishment,4 - Operations - Providers services,LDP E Cambs Special Needs,Residential Independent Sector
Cambridgeshire County Council,08-Sep-17,24207107-15974476,-2977.44,Decoy Farm,Care Establishment,4 - Operations - Providers services,LDP E Cambs Special Needs,Residential Independent Sector
Cambridgeshire County Council,08-Sep-17,24207109-15974478,-2977.44,Decoy Farm,Care Establishment,4 - Operations - Providers services,LDP E Cambs Special Needs,Residential Independent Sector
Cambridgeshire County Council,08-Sep-17,24207113-15974482,-2977.44,Decoy Farm,Care Establishment,4 - Operations - Providers services,LDP E Cambs Special Needs,Residential Independent Sector
Cambridgeshire County Council,08-Sep-17,24207115-15974484,-2977.44,Decoy Farm,Care Establishment,4 - Operations - Providers services,LDP E Cambs Special Needs,Residential Independent Sector
Cambridgeshire County Council,08-Sep-17,24207123-15974492,-2977.44,Decoy Farm,Care Establishment,4 - Operations - Providers services,LDP E Cambs Special Needs,Residential Independent Sector
Cambridgeshire County Council,08-Sep-17,24207060-15974508,-2977.44,Decoy Farm,Care Establishment,4 - Operations - Providers services,LDP E Cambs Special Needs,Residential Independent Sector
Cambridgeshire County Council,08-Sep-17,24209049-15974521,-2977.44,Decoy Farm,Care Establishment,4 - Operations - Providers services,LDP E Cambs Special Needs,Residential Independent Sector
Cambridgeshire County Council,08-Sep-17,24209086-15974558,-2977.44,Decoy Farm,Care Establishment,4 - Operations - Providers services,LDP E Cambs Special Needs,Residential Independent Sector
Cambridgeshire County Council,08-Sep-17,24209094-15974566,-2977.44,Decoy Farm,Care Establishment,4 - Operations - Providers services,LDP E Cambs Special Needs,Residential Independent Sector
Cambridgeshire County Council,08-Sep-17,24209095-15974567,-2977.44,Decoy Farm,Care Establishment,4 - Operations - Providers services,LDP E Cambs Special Needs,Residential Independent Sector
Cambridgeshire County Council,08-Sep-17,24209097-15974569,-2977.44,Decoy Farm,Care Establishment,4 - Operations - Providers services,LDP E Cambs Special Needs,Residential Independent Sector
Cambridgeshire County Council,08-Sep-17,24211011-15974595,-2977.44,Decoy Farm,Care Establishment,4 - Operations - Providers services,LDP E Cambs Special Needs,Residential Independent Sector
Cambridgeshire County Council,08-Sep-17,24211030-15974614,-2977.44,Decoy Farm,Care Establishment,4 - Operations - Providers services,LDP E Cambs Special Needs,Residential Independent Sector
Cambridgeshire County Council,22-Sep-17,24241706-16069254,-2977.44,Decoy Farm,Care Establishment,4 - Operations - Providers services,LDP E Cambs Special Needs,Residential Independent Sector
Cambridgeshire County Council,22-Sep-17,24240546-16069274,-2977.44,Decoy Farm,Care Establishment,4 - Operations - Providers services,LDP E Cambs Special Needs,Residential Independent Sector
Cambridgeshire County Council,22-Sep-17,24247616-16069291,-2977.44,Decoy Farm,Care Establishment,4 - Operations - Providers services,LDP E Cambs Special Needs,Residential Independent Sector
Cambridgeshire County Council,22-Sep-17,24247623-16069298,-2977.44,Decoy Farm,Care Establishment,4 - Operations - Providers services,LDP E Cambs Special Needs,Residential Independent Sector
Cambridgeshire County Council,22-Sep-17,24247628-16069303,-2977.44,Decoy Farm,Care Establishment,4 - Operations - Providers services,LDP E Cambs Special Needs,Residential Independent Sector
Cambridgeshire County Council,22-Sep-17,24247629-16069304,-2977.44,Decoy Farm,Care Establishment,4 - Operations - Providers services,LDP E Cambs Special Needs,Residential Independent Sector
Cambridgeshire County Council,22-Sep-17,24240510-16069226,-2977.44,Decoy Farm,Care Establishment,4 - Operations - Providers services,LDP E Cambs Special Needs,Residential Independent Sector
Cambridgeshire County Council,22-Sep-17,24327225-16069664,-2977.44,Decoy Farm,Care Establishment,4 - Operations - Providers services,LDP E Cambs Special Needs,Residential Independent Sector
Cambridgeshire County Council,22-Sep-17,24327226-16069667,-2977.44,Decoy Farm,Care Establishment,4 - Operations - Providers services,LDP E Cambs Special Needs,Residential Independent Sector
Cambridgeshire County Council,22-Sep-17,24327251-16069692,-2977.44,Decoy Farm,Care Establishment,4 - Operations - Providers services,LDP E Cambs Special Needs,Residential Independent Sector
Cambridgeshire County Council,22-Sep-17,24327187-16069713,-2977.44,Decoy Farm,Care Establishment,4 - Operations - Providers services,LDP E Cambs Special Needs,Residential Independent Sector
Cambridgeshire County Council,22-Sep-17,24327193-16069719,-2977.44,Decoy Farm,Care Establishment,4 - Operations - Providers services,LDP E Cambs Special Needs,Residential Independent Sector
Cambridgeshire County Council,22-Sep-17,24247651-16069323,-2977.44,Decoy Farm,Care Establishment,4 - Operations - Providers services,LDP E Cambs Special Needs,Residential Independent Sector
Cambridgeshire County Council,22-Sep-17,24247712-16069347,-2977.44,Decoy Farm,Care Establishment,4 - Operations - Providers services,LDP E Cambs Special Needs,Residential Independent Sector
Cambridgeshire County Council,22-Sep-17,24247718-16069353,-2977.44,Decoy Farm,Care Establishment,4 - Operations - Providers services,LDP E Cambs Special Needs,Residential Independent Sector
Cambridgeshire County Council,22-Sep-17,24247667-16069364,-2977.44,Decoy Farm,Care Establishment,4 - Operations - Providers services,LDP E Cambs Special Needs,Residential Independent Sector
Cambridgeshire County Council,22-Sep-17,24247692-16069388,-2977.44,Decoy Farm,Care Establishment,4 - Operations - Providers services,LDP E Cambs Special Needs,Residential Independent Sector
Cambridgeshire County Council,22-Sep-17,24254710-16069411,-2977.44,Decoy Farm,Care Establishment,4 - Operations - Providers services,LDP E Cambs Special Needs,Residential Independent Sector
Cambridgeshire County Council,22-Sep-17,24258761-16069463,-2977.44,Decoy Farm,Care Establishment,4 - Operations - Providers services,LDP E Cambs Special Needs,Residential Independent Sector
Cambridgeshire County Council,22-Sep-17,24317265-16069516,-2977.44,Decoy Farm,Care Establishment,4 - Operations - Providers services,LDP E Cambs Special Needs,Residential Independent Sector
Cambridgeshire County Council,22-Sep-17,24317266-16069517,-2977.44,Decoy Farm,Care Establishment,4 - Operations - Providers services,LDP E Cambs Special Needs,Residential Independent Sector
Cambridgeshire County Council,22-Sep-17,24320085-16069534,-2977.44,Decoy Farm,Care Establishment,4 - Operations - Providers services,LDP E Cambs Special Needs,Residential Independent Sector
Cambridgeshire County Council,22-Sep-17,24320107-16069556,-2977.44,Decoy Farm,Care Establishment,4 - Operations - Providers services,LDP E Cambs Special Needs,Residential Independent Sector
Cambridgeshire County Council,22-Sep-17,24320114-16069563,-2977.44,Decoy Farm,Care Establishment,4 - Operations - Providers services,LDP E Cambs Special Needs,Residential Independent Sector
Cambridgeshire County Council,22-Sep-17,24320121-16069570,-2977.44,Decoy Farm,Care Establishment,4 - Operations - Providers services,LDP E Cambs Special Needs,Residential Independent Sector
Cambridgeshire County Council,22-Sep-17,24320129-16069578,-2977.44,Decoy Farm,Care Establishment,4 - Operations - Providers services,LDP E Cambs Special Needs,Residential Independent Sector
Cambridgeshire County Council,22-Sep-17,24322178-16069594,-2977.44,Decoy Farm,Care Establishment,4 - Operations - Providers services,LDP E Cambs Special Needs,Residential Independent Sector
Cambridgeshire County Council,22-Sep-17,24322181-16069597,-2977.44,Decoy Farm,Care Establishment,4 - Operations - Providers services,LDP E Cambs Special Needs,Residential Independent Sector
Cambridgeshire County Council,22-Sep-17,24327164-16069637,-2977.44,Decoy Farm,Care Establishment,4 - Operations - Providers services,LDP E Cambs Special Needs,Residential Independent Sector
Cambridgeshire County Council,22-Sep-17,24327172-16069645,-2977.44,Decoy Farm,Care Establishment,4 - Operations - Providers services,LDP E Cambs Special Needs,Residential Independent Sector
Cambridgeshire County Council,28-Sep-17,24363222-16100827,-2977.44,Decoy Farm,Care Establishment,4 - Operations - Providers services,LDP E Cambs Special Needs,Residential Independent Sector
Cambridgeshire County Council,28-Sep-17,24363256-16100861,-2977.44,Decoy Farm,Care Establishment,4 - Operations - Providers services,LDP E Cambs Special Needs,Residential Independent Sector
Cambridgeshire County Council,28-Sep-17,24363283-16100888,-2977.44,Decoy Farm,Care Establishment,4 - Operations - Providers services,LDP E Cambs Special Needs,Residential Independent Sector
Cambridgeshire County Council,28-Sep-17,24363285-16100890,-2977.44,Decoy Farm,Care Establishment,4 - Operations - Providers services,LDP E Cambs Special Needs,Residential Independent Sector
Cambridgeshire County Council,28-Sep-17,24363242-16100847,-2977.44,Decoy Farm,Care Establishment,4 - Operations - Providers services,LDP E Cambs Special Needs,Residential Independent Sector
Cambridgeshire County Council,28-Sep-17,24365231-16100917,-2977.44,Decoy Farm,Care Establishment,4 - Operations - Providers services,LDP E Cambs Special Needs,Residential Independent Sector
Cambridgeshire County Council,28-Sep-17,24365239-16100925,-2977.44,Decoy Farm,Care Establishment,4 - Operations - Providers services,LDP E Cambs Special Needs,Residential Independent Sector
Cambridgeshire County Council,28-Sep-17,24365265-16100951,-2977.44,Decoy Farm,Care Establishment,4 - Operations - Providers services,LDP E Cambs Special Needs,Residential Independent Sector
Cambridgeshire County Council,28-Sep-17,24365303-16100989,-2977.44,Decoy Farm,Care Establishment,4 - Operations - Providers services,LDP E Cambs Special Needs,Residential Independent Sector
Cambridgeshire County Council,28-Sep-17,24365311-16100997,-2977.44,Decoy Farm,Care Establishment,4 - Operations - Providers services,LDP E Cambs Special Needs,Residential Independent Sector
Cambridgeshire County Council,28-Sep-17,24365205-16101018,-2977.44,Decoy Farm,Care Establishment,4 - Operations - Providers services,LDP E Cambs Special Needs,Residential Independent Sector
Cambridgeshire County Council,28-Sep-17,24365322-16101050,-2977.44,Decoy Farm,Care Establishment,4 - Operations - Providers services,LDP E Cambs Special Needs,Residential Independent Sector
Cambridgeshire County Council,28-Sep-17,24365324-16101052,-2977.44,Decoy Farm,Care Establishment,4 - Operations - Providers services,LDP E Cambs Special Needs,Residential Independent Sector
Cambridgeshire County Council,28-Sep-17,24365344-16101072,-2977.44,Decoy Farm,Care Establishment,4 - Operations - Providers services,LDP E Cambs Special Needs,Residential Independent Sector
Cambridgeshire County Council,08-Sep-17,24205077-15973368,-2977.44,Decoy Farm,Care Establishment,4 - Operations - Providers services,LDP E Cambs Special Needs,Residential Independent Sector
Cambridgeshire County Council,08-Sep-17,24205084-15973375,-2977.44,Decoy Farm,Care Establishment,4 - Operations - Providers services,LDP E Cambs Special Needs,Residential Independent Sector
Cambridgeshire County Council,08-Sep-17,24205115-15973406,-2977.44,Decoy Farm,Care Establishment,4 - Operations - Providers services,LDP E Cambs Special Needs,Residential Independent Sector
Cambridgeshire County Council,08-Sep-17,24207062-15973432,-2977.44,Decoy Farm,Care Establishment,4 - Operations - Providers services,LDP E Cambs Special Needs,Residential Independent Sector
Cambridgeshire County Council,08-Sep-17,24207096-15973465,-2977.44,Decoy Farm,Care Establishment,4 - Operations - Providers services,LDP E Cambs Special Needs,Residential Independent Sector
Cambridgeshire County Council,08-Sep-17,24209047-15974519,-2977.44,Decoy Farm,Care Establishment,4 - Operations - Providers services,LDP E Cambs Special Needs,Residential Independent Sector
Cambridgeshire County Council,08-Sep-17,24209050-15974522,-2977.44,Decoy Farm,Care Establishment,4 - Operations - Providers services,LDP E Cambs Special Needs,Residential Independent Sector
Cambridgeshire County Council,08-Sep-17,24209080-15974552,-2977.44,Decoy Farm,Care Establishment,4 - Operations - Providers services,LDP E Cambs Special Needs,Residential Independent Sector
Cambridgeshire County Council,08-Sep-17,24210998-15974582,-2977.44,Decoy Farm,Care Establishment,4 - Operations - Providers services,LDP E Cambs Special Needs,Residential Independent Sector
Cambridgeshire County Council,08-Sep-17,24211009-15974593,-2977.44,Decoy Farm,Care Establishment,4 - Operations - Providers services,LDP E Cambs Special Needs,Residential Independent Sector
Cambridgeshire County Council,08-Sep-17,24211020-15974604,-2977.44,Decoy Farm,Care Establishment,4 - Operations - Providers services,LDP E Cambs Special Needs,Residential Independent Sector
Cambridgeshire County Council,08-Sep-17,24211035-15974619,-2977.44,Decoy Farm,Care Establishment,4 - Operations - Providers services,LDP E Cambs Special Needs,Residential Independent Sector
Cambridgeshire County Council,22-Sep-17,24240531-16069245,-2977.44,Decoy Farm,Care Establishment,4 - Operations - Providers services,LDP E Cambs Special Needs,Residential Independent Sector
Cambridgeshire County Council,22-Sep-17,24241707-16069255,-2977.44,Decoy Farm,Care Establishment,4 - Operations - Providers services,LDP E Cambs Special Needs,Residential Independent Sector
Cambridgeshire County Council,22-Sep-17,24241714-16069261,-2977.44,Decoy Farm,Care Establishment,4 - Operations - Providers services,LDP E Cambs Special Needs,Residential Independent Sector
Cambridgeshire County Council,22-Sep-17,24240548-16069276,-2977.44,Decoy Farm,Care Establishment,4 - Operations - Providers services,LDP E Cambs Special Needs,Residential Independent Sector
Cambridgeshire County Council,22-Sep-17,24247610-16069285,-2977.44,Decoy Farm,Care Establishment,4 - Operations - Providers services,LDP E Cambs Special Needs,Residential Independent Sector
Cambridgeshire County Council,22-Sep-17,24247614-16069289,-2977.44,Decoy Farm,Care Establishment,4 - Operations - Providers services,LDP E Cambs Special Needs,Residential Independent Sector
Cambridgeshire County Council,22-Sep-17,24247615-16069290,-2977.44,Decoy Farm,Care Establishment,4 - Operations - Providers services,LDP E Cambs Special Needs,Residential Independent Sector
Cambridgeshire County Council,22-Sep-17,24240520-16069235,-2977.44,Decoy Farm,Care Establishment,4 - Operations - Providers services,LDP E Cambs Special Needs,Residential Independent Sector
Cambridgeshire County Council,22-Sep-17,24327230-16069671,-2977.44,Decoy Farm,Care Establishment,4 - Operations - Providers services,LDP E Cambs Special Needs,Residential Independent Sector
Cambridgeshire County Council,22-Sep-17,24327232-16069673,-2977.44,Decoy Farm,Care Establishment,4 - Operations - Providers services,LDP E Cambs Special Needs,Residential Independent Sector
Cambridgeshire County Council,22-Sep-17,24327239-16069680,-2977.44,Decoy Farm,Care Establishment,4 - Operations - Providers services,LDP E Cambs Special Needs,Residential Independent Sector
Cambridgeshire County Council,22-Sep-17,24327240-16069681,-2977.44,Decoy Farm,Care Establishment,4 - Operations - Providers services,LDP E Cambs Special Needs,Residential Independent Sector
Cambridgeshire County Council,22-Sep-17,24327245-16069686,-2977.44,Decoy Farm,Care Establishment,4 - Operations - Providers services,LDP E Cambs Special Needs,Residential Independent Sector
Cambridgeshire County Council,22-Sep-17,24327253-16069694,-2977.44,Decoy Farm,Care Establishment,4 - Operations - Providers services,LDP E Cambs Special Needs,Residential Independent Sector
Cambridgeshire County Council,22-Sep-17,24327177-16069703,-2977.44,Decoy Farm,Care Establishment,4 - Operations - Providers services,LDP E Cambs Special Needs,Residential Independent Sector
Cambridgeshire County Council,22-Sep-17,24247671-16069368,-2977.44,Decoy Farm,Care Establishment,4 - Operations - Providers services,LDP E Cambs Special Needs,Residential Independent Sector
Cambridgeshire County Council,22-Sep-17,24247685-16069381,-2977.44,Decoy Farm,Care Establishment,4 - Operations - Providers services,LDP E Cambs Special Needs,Residential Independent Sector
Cambridgeshire County Council,22-Sep-17,24253550-16069404,-2977.44,Decoy Farm,Care Establishment,4 - Operations - Providers services,LDP E Cambs Special Needs,Residential Independent Sector
Cambridgeshire County Council,22-Sep-17,24254713-16069414,-2977.44,Decoy Farm,Care Establishment,4 - Operations - Providers services,LDP E Cambs Special Needs,Residential Independent Sector
Cambridgeshire County Council,22-Sep-17,24253533-16069449,-2977.44,Decoy Farm,Care Establishment,4 - Operations - Providers services,LDP E Cambs Special Needs,Residential Independent Sector
Cambridgeshire County Council,22-Sep-17,24258772-16069474,-2977.44,Decoy Farm,Care Establishment,4 - Operations - Providers services,LDP E Cambs Special Needs,Residential Independent Sector
Cambridgeshire County Council,22-Sep-17,24317247-16069477,-2977.44,Decoy Farm,Care Establishment,4 - Operations - Providers services,LDP E Cambs Special Needs,Residential Independent Sector
Cambridgeshire County Council,22-Sep-17,24317260-16069490,-2977.44,Decoy Farm,Care Establishment,4 - Operations - Providers services,LDP E Cambs Special Needs,Residential Independent Sector
Cambridgeshire County Council,22-Sep-17,24317280-16069493,-2977.44,Decoy Farm,Care Establishment,4 - Operations - Providers services,LDP E Cambs Special Needs,Residential Independent Sector
Cambridgeshire County Council,22-Sep-17,24317285-16069498,-2977.44,Decoy Farm,Care Establishment,4 - Operations - Providers services,LDP E Cambs Special Needs,Residential Independent Sector
Cambridgeshire County Council,22-Sep-17,24317296-16069509,-2977.44,Decoy Farm,Care Establishment,4 - Operations - Providers services,LDP E Cambs Special Needs,Residential Independent Sector
Cambridgeshire County Council,22-Sep-17,24320108-16069557,-2977.44,Decoy Farm,Care Establishment,4 - Operations - Providers services,LDP E Cambs Special Needs,Residential Independent Sector
Cambridgeshire County Council,22-Sep-17,24320113-16069562,-2977.44,Decoy Farm,Care Establishment,4 - Operations - Providers services,LDP E Cambs Special Needs,Residential Independent Sector
Cambridgeshire County Council,22-Sep-17,24322168-16069628,-2977.44,Decoy Farm,Care Establishment,4 - Operations - Providers services,LDP E Cambs Special Needs,Residential Independent Sector
Cambridgeshire County Council,28-Sep-17,24363223-16100828,-2977.44,Decoy Farm,Care Establishment,4 - Operations - Providers services,LDP E Cambs Special Needs,Residential Independent Sector
Cambridgeshire County Council,28-Sep-17,24363265-16100870,-2977.44,Decoy Farm,Care Establishment,4 - Operations - Providers services,LDP E Cambs Special Needs,Residential Independent Sector
Cambridgeshire County Council,28-Sep-17,24363281-16100886,-2977.44,Decoy Farm,Care Establishment,4 - Operations - Providers services,LDP E Cambs Special Needs,Residential Independent Sector
Cambridgeshire County Council,28-Sep-17,24363238-16100843,-2977.44,Decoy Farm,Care Establishment,4 - Operations - Providers services,LDP E Cambs Special Needs,Residential Independent Sector
Cambridgeshire County Council,28-Sep-17,24363295-16100900,-2977.44,Decoy Farm,Care Establishment,4 - Operations - Providers services,LDP E Cambs Special Needs,Residential Independent Sector
Cambridgeshire County Council,28-Sep-17,24363296-16100901,-2977.44,Decoy Farm,Care Establishment,4 - Operations - Providers services,LDP E Cambs Special Needs,Residential Independent Sector
Cambridgeshire County Council,28-Sep-17,24365242-16100928,-2977.44,Decoy Farm,Care Establishment,4 - Operations - Providers services,LDP E Cambs Special Needs,Residential Independent Sector
Cambridgeshire County Council,28-Sep-17,24365276-16100962,-2977.44,Decoy Farm,Care Establishment,4 - Operations - Providers services,LDP E Cambs Special Needs,Residential Independent Sector
Cambridgeshire County Council,28-Sep-17,24365204-16101017,-2977.44,Decoy Farm,Care Establishment,4 - Operations - Providers services,LDP E Cambs Special Needs,Residential Independent Sector
Cambridgeshire County Council,28-Sep-17,24365343-16101071,-2977.44,Decoy Farm,Care Establishment,4 - Operations - Providers services,LDP E Cambs Special Needs,Residential Independent Sector
Cambridgeshire County Council,08-Sep-17,24205074-15973365,-2977.44,Decoy Farm,Care Establishment,4 - Operations - Providers services,LDP E Cambs Special Needs,Residential Independent Sector
Cambridgeshire County Council,08-Sep-17,24205096-15973387,-2977.44,Decoy Farm,Care Establishment,4 - Operations - Providers services,LDP E Cambs Special Needs,Residential Independent Sector
Cambridgeshire County Council,08-Sep-17,24205130-15973421,-2977.44,Decoy Farm,Care Establishment,4 - Operations - Providers services,LDP E Cambs Special Needs,Residential Independent Sector
Cambridgeshire County Council,08-Sep-17,24207084-15973453,-2977.44,Decoy Farm,Care Establishment,4 - Operations - Providers services,LDP E Cambs Special Needs,Residential Independent Sector
Cambridgeshire County Council,08-Sep-17,24207105-15974474,-2977.44,Decoy Farm,Care Establishment,4 - Operations - Providers services,LDP E Cambs Special Needs,Residential Independent Sector
Cambridgeshire County Council,08-Sep-17,24207125-15974494,-2977.44,Decoy Farm,Care Establishment,4 - Operations - Providers services,LDP E Cambs Special Needs,Residential Independent Sector
Cambridgeshire County Council,08-Sep-17,24207129-15974498,-2977.44,Decoy Farm,Care Establishment,4 - Operations - Providers services,LDP E Cambs Special Needs,Residential Independent Sector
Cambridgeshire County Council,08-Sep-17,24207136-15974505,-2977.44,Decoy Farm,Care Establishment,4 - Operations - Providers services,LDP E Cambs Special Needs,Residential Independent Sector
Cambridgeshire County Council,08-Sep-17,24209074-15974546,-2977.44,Decoy Farm,Care Establishment,4 - Operations - Providers services,LDP E Cambs Special Needs,Residential Independent Sector
Cambridgeshire County Council,08-Sep-17,24209087-15974559,-2977.44,Decoy Farm,Care Establishment,4 - Operations - Providers services,LDP E Cambs Special Needs,Residential Independent Sector
Cambridgeshire County Council,08-Sep-17,24209106-15974578,-2977.44,Decoy Farm,Care Establishment,4 - Operations - Providers services,LDP E Cambs Special Needs,Residential Independent Sector
Cambridgeshire County Council,08-Sep-17,24211016-15974600,-2977.44,Decoy Farm,Care Establishment,4 - Operations - Providers services,LDP E Cambs Special Needs,Residential Independent Sector
Cambridgeshire County Council,08-Sep-17,24211022-15974606,-2977.44,Decoy Farm,Care Establishment,4 - Operations - Providers services,LDP E Cambs Special Needs,Residential Independent Sector
Cambridgeshire County Council,08-Sep-17,24211027-15974611,-2977.44,Decoy Farm,Care Establishment,4 - Operations - Providers services,LDP E Cambs Special Needs,Residential Independent Sector
Cambridgeshire County Council,08-Sep-17,24211028-15974612,-2977.44,Decoy Farm,Care Establishment,4 - Operations - Providers services,LDP E Cambs Special Needs,Residential Independent Sector
Cambridgeshire County Council,08-Sep-17,24210994-15974625,-2977.44,Decoy Farm,Care Establishment,4 - Operations - Providers services,LDP E Cambs Special Needs,Residential Independent Sector
Cambridgeshire County Council,22-Sep-17,24247621-16069296,-2977.44,Decoy Farm,Care Establishment,4 - Operations - Providers services,LDP E Cambs Special Needs,Residential Independent Sector
Cambridgeshire County Council,22-Sep-17,24240524-16069238,-2977.44,Decoy Farm,Care Establishment,4 - Operations - Providers services,LDP E Cambs Special Needs,Residential Independent Sector
Cambridgeshire County Council,22-Sep-17,24327221-16069660,-2977.44,Decoy Farm,Care Establishment,4 - Operations - Providers services,LDP E Cambs Special Needs,Residential Independent Sector
Cambridgeshire County Council,22-Sep-17,24327224-16069663,-2977.44,Decoy Farm,Care Establishment,4 - Operations - Providers services,LDP E Cambs Special Needs,Residential Independent Sector
Cambridgeshire County Council,22-Sep-17,24327260-16069665,-2977.44,Decoy Farm,Care Establishment,4 - Operations - Providers services,LDP E Cambs Special Needs,Residential Independent Sector
Cambridgeshire County Council,22-Sep-17,24327227-16069668,-2977.44,Decoy Farm,Care Establishment,4 - Operations - Providers services,LDP E Cambs Special Needs,Residential Independent Sector
Cambridgeshire County Council,22-Sep-17,24327242-16069683,-2977.44,Decoy Farm,Care Establishment,4 - Operations - Providers services,LDP E Cambs Special Needs,Residential Independent Sector
Cambridgeshire County Council,22-Sep-17,24327196-16069722,-2977.44,Decoy Farm,Care Establishment,4 - Operations - Providers services,LDP E Cambs Special Needs,Residential Independent Sector
Cambridgeshire County Council,22-Sep-17,24327200-16069726,-2977.44,Decoy Farm,Care Establishment,4 - Operations - Providers services,LDP E Cambs Special Needs,Residential Independent Sector
Cambridgeshire County Council,22-Sep-17,24247704-16069339,-2977.44,Decoy Farm,Care Establishment,4 - Operations - Providers services,LDP E Cambs Special Needs,Residential Independent Sector
Cambridgeshire County Council,22-Sep-17,24247668-16069365,-2977.44,Decoy Farm,Care Establishment,4 - Operations - Providers services,LDP E Cambs Special Needs,Residential Independent Sector
Cambridgeshire County Council,22-Sep-17,24247680-16069377,-2977.44,Decoy Farm,Care Establishment,4 - Operations - Providers services,LDP E Cambs Special Needs,Residential Independent Sector
Cambridgeshire County Council,22-Sep-17,24247697-16069393,-2977.44,Decoy Farm,Care Establishment,4 - Operations - Providers services,LDP E Cambs Special Needs,Residential Independent Sector
Cambridgeshire County Council,22-Sep-17,24247698-16069394,-2977.44,Decoy Farm,Care Establishment,4 - Operations - Providers services,LDP E Cambs Special Needs,Residential Independent Sector
Cambridgeshire County Council,22-Sep-17,24247608-16069398,-2977.44,Decoy Farm,Care Establishment,4 - Operations - Providers services,LDP E Cambs Special Needs,Residential Independent Sector
Cambridgeshire County Council,22-Sep-17,24253554-16069408,-2977.44,Decoy Farm,Care Establishment,4 - Operations - Providers services,LDP E Cambs Special Needs,Residential Independent Sector
Cambridgeshire County Council,22-Sep-17,24254719-16069419,-2977.44,Decoy Farm,Care Establishment,4 - Operations - Providers services,LDP E Cambs Special Needs,Residential Independent Sector
Cambridgeshire County Council,22-Sep-17,24253507-16069425,-2977.44,Decoy Farm,Care Establishment,4 - Operations - Providers services,LDP E Cambs Special Needs,Residential Independent Sector
Cambridgeshire County Council,22-Sep-17,24253511-16069429,-2977.44,Decoy Farm,Care Establishment,4 - Operations - Providers services,LDP E Cambs Special Needs,Residential Independent Sector
Cambridgeshire County Council,22-Sep-17,24253518-16069436,-2977.44,Decoy Farm,Care Establishment,4 - Operations - Providers services,LDP E Cambs Special Needs,Residential Independent Sector
Cambridgeshire County Council,22-Sep-17,24258762-16069464,-2977.44,Decoy Farm,Care Establishment,4 - Operations - Providers services,LDP E Cambs Special Needs,Residential Independent Sector
Cambridgeshire County Council,22-Sep-17,24317255-16069485,-2977.44,Decoy Farm,Care Establishment,4 - Operations - Providers services,LDP E Cambs Special Needs,Residential Independent Sector
Cambridgeshire County Council,22-Sep-17,24317288-16069501,-2977.44,Decoy Farm,Care Establishment,4 - Operations - Providers services,LDP E Cambs Special Needs,Residential Independent Sector
Cambridgeshire County Council,22-Sep-17,24317298-16069511,-2977.44,Decoy Farm,Care Establishment,4 - Operations - Providers services,LDP E Cambs Special Needs,Residential Independent Sector
Cambridgeshire County Council,22-Sep-17,24317273-16069524,-2977.44,Decoy Farm,Care Establishment,4 - Operations - Providers services,LDP E Cambs Special Needs,Residential Independent Sector
Cambridgeshire County Council,22-Sep-17,24320090-16069539,-2977.44,Decoy Farm,Care Establishment,4 - Operations - Providers services,LDP E Cambs Special Needs,Residential Independent Sector
Cambridgeshire County Council,22-Sep-17,24320110-16069559,-2977.44,Decoy Farm,Care Establishment,4 - Operations - Providers services,LDP E Cambs Special Needs,Residential Independent Sector
Cambridgeshire County Council,22-Sep-17,24322177-16069593,-2977.44,Decoy Farm,Care Establishment,4 - Operations - Providers services,LDP E Cambs Special Needs,Residential Independent Sector
Cambridgeshire County Council,22-Sep-17,24322183-16069599,-2977.44,Decoy Farm,Care Establishment,4 - Operations - Providers services,LDP E Cambs Special Needs,Residential Independent Sector
Cambridgeshire County Council,22-Sep-17,24322154-16069614,-2977.44,Decoy Farm,Care Establishment,4 - Operations - Providers services,LDP E Cambs Special Needs,Residential Independent Sector
Cambridgeshire County Council,22-Sep-17,24322155-16069615,-2977.44,Decoy Farm,Care Establishment,4 - Operations - Providers services,LDP E Cambs Special Needs,Residential Independent Sector
Cambridgeshire County Council,22-Sep-17,24322169-16069629,-2977.44,Decoy Farm,Care Establishment,4 - Operations - Providers services,LDP E Cambs Special Needs,Residential Independent Sector
Cambridgeshire County Council,22-Sep-17,24327163-16069636,-2977.44,Decoy Farm,Care Establishment,4 - Operations - Providers services,LDP E Cambs Special Needs,Residential Independent Sector
Cambridgeshire County Council,22-Sep-17,24327170-16069643,-2977.44,Decoy Farm,Care Establishment,4 - Operations - Providers services,LDP E Cambs Special Needs,Residential Independent Sector
Cambridgeshire County Council,28-Sep-17,24363262-16100867,-2977.44,Decoy Farm,Care Establishment,4 - Operations - Providers services,LDP E Cambs Special Needs,Residential Independent Sector
Cambridgeshire County Council,28-Sep-17,24363270-16100875,-2977.44,Decoy Farm,Care Establishment,4 - Operations - Providers services,LDP E Cambs Special Needs,Residential Independent Sector
Cambridgeshire County Council,28-Sep-17,24363274-16100879,-2977.44,Decoy Farm,Care Establishment,4 - Operations - Providers services,LDP E Cambs Special Needs,Residential Independent Sector
Cambridgeshire County Council,28-Sep-17,24363227-16100832,-2977.44,Decoy Farm,Care Establishment,4 - Operations - Providers services,LDP E Cambs Special Needs,Residential Independent Sector
Cambridgeshire County Council,28-Sep-17,24363251-16100856,-2977.44,Decoy Farm,Care Establishment,4 - Operations - Providers services,LDP E Cambs Special Needs,Residential Independent Sector
Cambridgeshire County Council,28-Sep-17,24363290-16100895,-2977.44,Decoy Farm,Care Establishment,4 - Operations - Providers services,LDP E Cambs Special Needs,Residential Independent Sector
Cambridgeshire County Council,28-Sep-17,24363300-16100905,-2977.44,Decoy Farm,Care Establishment,4 - Operations - Providers services,LDP E Cambs Special Needs,Residential Independent Sector
Cambridgeshire County Council,28-Sep-17,24365233-16100919,-2977.44,Decoy Farm,Care Establishment,4 - Operations - Providers services,LDP E Cambs Special Needs,Residential Independent Sector
Cambridgeshire County Council,28-Sep-17,24365235-16100921,-2977.44,Decoy Farm,Care Establishment,4 - Operations - Providers services,LDP E Cambs Special Needs,Residential Independent Sector
Cambridgeshire County Council,28-Sep-17,24365237-16100923,-2977.44,Decoy Farm,Care Establishment,4 - Operations - Providers services,LDP E Cambs Special Needs,Residential Independent Sector
Cambridgeshire County Council,28-Sep-17,24365244-16100930,-2977.44,Decoy Farm,Care Establishment,4 - Operations - Providers services,LDP E Cambs Special Needs,Residential Independent Sector
Cambridgeshire County Council,28-Sep-17,24365247-16100933,-2977.44,Decoy Farm,Care Establishment,4 - Operations - Providers services,LDP E Cambs Special Needs,Residential Independent Sector
Cambridgeshire County Council,28-Sep-17,24365257-16100943,-2977.44,Decoy Farm,Care Establishment,4 - Operations - Providers services,LDP E Cambs Special Needs,Residential Independent Sector
Cambridgeshire County Council,28-Sep-17,24365279-16100965,-2977.44,Decoy Farm,Care Establishment,4 - Operations - Providers services,LDP E Cambs Special Needs,Residential Independent Sector
Cambridgeshire County Council,28-Sep-17,24365282-16100968,-2977.44,Decoy Farm,Care Establishment,4 - Operations - Providers services,LDP E Cambs Special Needs,Residential Independent Sector
Cambridgeshire County Council,28-Sep-17,24365295-16100981,-2977.44,Decoy Farm,Care Establishment,4 - Operations - Providers services,LDP E Cambs Special Needs,Residential Independent Sector
Cambridgeshire County Council,28-Sep-17,24365190-16101003,-2977.44,Decoy Farm,Care Establishment,4 - Operations - Providers services,LDP E Cambs Special Needs,Residential Independent Sector
Cambridgeshire County Council,28-Sep-17,24365192-16101005,-2977.44,Decoy Farm,Care Establishment,4 - Operations - Providers services,LDP E Cambs Special Needs,Residential Independent Sector
Cambridgeshire County Council,28-Sep-17,24365318-16101046,-2977.44,Decoy Farm,Care Establishment,4 - Operations - Providers services,LDP E Cambs Special Needs,Residential Independent Sector
Cambridgeshire County Council,28-Sep-17,24365323-16101051,-2977.44,Decoy Farm,Care Establishment,4 - Operations - Providers services,LDP E Cambs Special Needs,Residential Independent Sector
Cambridgeshire County Council,28-Sep-17,24365325-16101053,-2977.44,Decoy Farm,Care Establishment,4 - Operations - Providers services,LDP E Cambs Special Needs,Residential Independent Sector
Cambridgeshire County Council,28-Sep-17,24365329-16101057,-2977.44,Decoy Farm,Care Establishment,4 - Operations - Providers services,LDP E Cambs Special Needs,Residential Independent Sector
Cambridgeshire County Council,28-Sep-17,24365331-16101059,-2977.44,Decoy Farm,Care Establishment,4 - Operations - Providers services,LDP E Cambs Special Needs,Residential Independent Sector
Cambridgeshire County Council,28-Sep-17,24365338-16101066,-2977.44,Decoy Farm,Care Establishment,4 - Operations - Providers services,LDP E Cambs Special Needs,Residential Independent Sector
Cambridgeshire County Council,08-Sep-17,24205113-15973404,-2977.44,Decoy Farm,Care Establishment,4 - Operations - Providers services,LDP E Cambs Special Needs,Residential Independent Sector
Cambridgeshire County Council,08-Sep-17,24207079-15973449,-2977.44,Decoy Farm,Care Establishment,4 - Operations - Providers services,LDP E Cambs Special Needs,Residential Independent Sector
Cambridgeshire County Council,08-Sep-17,24207080-15973450,-2977.44,Decoy Farm,Care Establishment,4 - Operations - Providers services,LDP E Cambs Special Needs,Residential Independent Sector
Cambridgeshire County Council,08-Sep-17,24207090-15973459,-2977.44,Decoy Farm,Care Establishment,4 - Operations - Providers services,LDP E Cambs Special Needs,Residential Independent Sector
Cambridgeshire County Council,08-Sep-17,24207103-15974472,-2977.44,Decoy Farm,Care Establishment,4 - Operations - Providers services,LDP E Cambs Special Needs,Residential Independent Sector
Cambridgeshire County Council,08-Sep-17,24207127-15974496,-2977.44,Decoy Farm,Care Establishment,4 - Operations - Providers services,LDP E Cambs Special Needs,Residential Independent Sector
Cambridgeshire County Council,08-Sep-17,24209068-15974540,-2977.44,Decoy Farm,Care Establishment,4 - Operations - Providers services,LDP E Cambs Special Needs,Residential Independent Sector
Cambridgeshire County Council,08-Sep-17,24209069-15974541,-2977.44,Decoy Farm,Care Establishment,4 - Operations - Providers services,LDP E Cambs Special Needs,Residential Independent Sector
Cambridgeshire County Council,08-Sep-17,24209100-15974572,-2977.44,Decoy Farm,Care Establishment,4 - Operations - Providers services,LDP E Cambs Special Needs,Residential Independent Sector
Cambridgeshire County Council,08-Sep-17,24210999-15974583,-2977.44,Decoy Farm,Care Establishment,4 - Operations - Providers services,LDP E Cambs Special Needs,Residential Independent Sector
Cambridgeshire County Council,22-Sep-17,24240529-16069243,-2977.44,Decoy Farm,Care Establishment,4 - Operations - Providers services,LDP E Cambs Special Needs,Residential Independent Sector
Cambridgeshire County Council,22-Sep-17,24240550-16069278,-2977.44,Decoy Farm,Care Establishment,4 - Operations - Providers services,LDP E Cambs Special Needs,Residential Independent Sector
Cambridgeshire County Council,22-Sep-17,24247624-16069299,-2977.44,Decoy Farm,Care Establishment,4 - Operations - Providers services,LDP E Cambs Special Needs,Residential Independent Sector
Cambridgeshire County Council,22-Sep-17,24240516-16069231,-2977.44,Decoy Farm,Care Establishment,4 - Operations - Providers services,LDP E Cambs Special Needs,Residential Independent Sector
Cambridgeshire County Council,22-Sep-17,24240518-16069233,-2977.44,Decoy Farm,Care Establishment,4 - Operations - Providers services,LDP E Cambs Special Needs,Residential Independent Sector
Cambridgeshire County Council,22-Sep-17,24327209-16069648,-2977.44,Decoy Farm,Care Establishment,4 - Operations - Providers services,LDP E Cambs Special Needs,Residential Independent Sector
Cambridgeshire County Council,22-Sep-17,24327249-16069690,-2977.44,Decoy Farm,Care Establishment,4 - Operations - Providers services,LDP E Cambs Special Needs,Residential Independent Sector
Cambridgeshire County Council,22-Sep-17,24247641-16069315,-2977.44,Decoy Farm,Care Establishment,4 - Operations - Providers services,LDP E Cambs Special Needs,Residential Independent Sector
Cambridgeshire County Council,22-Sep-17,24247644-16069318,-2977.44,Decoy Farm,Care Establishment,4 - Operations - Providers services,LDP E Cambs Special Needs,Residential Independent Sector
Cambridgeshire County Council,22-Sep-17,24247649-16069321,-2977.44,Decoy Farm,Care Establishment,4 - Operations - Providers services,LDP E Cambs Special Needs,Residential Independent Sector
Cambridgeshire County Council,22-Sep-17,24247722-16069357,-2977.44,Decoy Farm,Care Establishment,4 - Operations - Providers services,LDP E Cambs Special Needs,Residential Independent Sector
Cambridgeshire County Council,22-Sep-17,24247664-16069361,-2977.44,Decoy Farm,Care Establishment,4 - Operations - Providers services,LDP E Cambs Special Needs,Residential Independent Sector
Cambridgeshire County Council,22-Sep-17,24247687-16069383,-2977.44,Decoy Farm,Care Establishment,4 - Operations - Providers services,LDP E Cambs Special Needs,Residential Independent Sector
Cambridgeshire County Council,22-Sep-17,24253549-16069403,-2977.44,Decoy Farm,Care Establishment,4 - Operations - Providers services,LDP E Cambs Special Needs,Residential Independent Sector
Cambridgeshire County Council,22-Sep-17,24253551-16069405,-2977.44,Decoy Farm,Care Establishment,4 - Operations - Providers services,LDP E Cambs Special Needs,Residential Independent Sector
Cambridgeshire County Council,22-Sep-17,24254720-16069420,-2977.44,Decoy Farm,Care Establishment,4 - Operations - Providers services,LDP E Cambs Special Needs,Residential Independent Sector
Cambridgeshire County Council,22-Sep-17,24317282-16069495,-2977.44,Decoy Farm,Care Establishment,4 - Operations - Providers services,LDP E Cambs Special Needs,Residential Independent Sector
Cambridgeshire County Council,22-Sep-17,24317283-16069496,-2977.44,Decoy Farm,Care Establishment,4 - Operations - Providers services,LDP E Cambs Special Needs,Residential Independent Sector
Cambridgeshire County Council,22-Sep-17,24320101-16069550,-2977.44,Decoy Farm,Care Establishment,4 - Operations - Providers services,LDP E Cambs Special Needs,Residential Independent Sector
Cambridgeshire County Council,22-Sep-17,24320112-16069561,-2977.44,Decoy Farm,Care Establishment,4 - Operations - Providers services,LDP E Cambs Special Needs,Residential Independent Sector
Cambridgeshire County Council,22-Sep-17,24320138-16069587,-2977.44,Decoy Farm,Care Establishment,4 - Operations - Providers services,LDP E Cambs Special Needs,Residential Independent Sector
Cambridgeshire County Council,22-Sep-17,24322162-16069622,-2977.44,Decoy Farm,Care Establishment,4 - Operations - Providers services,LDP E Cambs Special Needs,Residential Independent Sector
Cambridgeshire County Council,22-Sep-17,24322172-16069632,-2977.44,Decoy Farm,Care Establishment,4 - Operations - Providers services,LDP E Cambs Special Needs,Residential Independent Sector
Cambridgeshire County Council,22-Sep-17,24327166-16069639,-2977.44,Decoy Farm,Care Establishment,4 - Operations - Providers services,LDP E Cambs Special Needs,Residential Independent Sector
Cambridgeshire County Council,28-Sep-17,24363263-16100868,-2977.44,Decoy Farm,Care Establishment,4 - Operations - Providers services,LDP E Cambs Special Needs,Residential Independent Sector
Cambridgeshire County Council,28-Sep-17,24363267-16100872,-2977.44,Decoy Farm,Care Establishment,4 - Operations - Providers services,LDP E Cambs Special Needs,Residential Independent Sector
Cambridgeshire County Council,28-Sep-17,24363224-16100829,-2977.44,Decoy Farm,Care Establishment,4 - Operations - Providers services,LDP E Cambs Special Needs,Residential Independent Sector
Cambridgeshire County Council,28-Sep-17,24363243-16100848,-2977.44,Decoy Farm,Care Establishment,4 - Operations - Providers services,LDP E Cambs Special Needs,Residential Independent Sector
Cambridgeshire County Council,28-Sep-17,24363245-16100850,-2977.44,Decoy Farm,Care Establishment,4 - Operations - Providers services,LDP E Cambs Special Needs,Residential Independent Sector
Cambridgeshire County Council,28-Sep-17,24363287-16100892,-2977.44,Decoy Farm,Care Establishment,4 - Operations - Providers services,LDP E Cambs Special Needs,Residential Independent Sector
Cambridgeshire County Council,28-Sep-17,24363299-16100904,-2977.44,Decoy Farm,Care Establishment,4 - Operations - Providers services,LDP E Cambs Special Needs,Residential Independent Sector
Cambridgeshire County Council,28-Sep-17,24363302-16100907,-2977.44,Decoy Farm,Care Establishment,4 - Operations - Providers services,LDP E Cambs Special Needs,Residential Independent Sector
Cambridgeshire County Council,28-Sep-17,24365251-16100937,-2977.44,Decoy Farm,Care Establishment,4 - Operations - Providers services,LDP E Cambs Special Needs,Residential Independent Sector
Cambridgeshire County Council,28-Sep-17,24365256-16100942,-2977.44,Decoy Farm,Care Establishment,4 - Operations - Providers services,LDP E Cambs Special Needs,Residential Independent Sector
Cambridgeshire County Council,28-Sep-17,24365258-16100944,-2977.44,Decoy Farm,Care Establishment,4 - Operations - Providers services,LDP E Cambs Special Needs,Residential Independent Sector
Cambridgeshire County Council,28-Sep-17,24365277-16100963,-2977.44,Decoy Farm,Care Establishment,4 - Operations - Providers services,LDP E Cambs Special Needs,Residential Independent Sector
Cambridgeshire County Council,28-Sep-17,24365278-16100964,-2977.44,Decoy Farm,Care Establishment,4 - Operations - Providers services,LDP E Cambs Special Needs,Residential Independent Sector
Cambridgeshire County Council,28-Sep-17,24365304-16100990,-2977.44,Decoy Farm,Care Establishment,4 - Operations - Providers services,LDP E Cambs Special Needs,Residential Independent Sector
Cambridgeshire County Council,28-Sep-17,24365201-16101014,-2977.44,Decoy Farm,Care Establishment,4 - Operations - Providers services,LDP E Cambs Special Needs,Residential Independent Sector
Cambridgeshire County Council,28-Sep-17,24365216-16101029,-2977.44,Decoy Farm,Care Establishment,4 - Operations - Providers services,LDP E Cambs Special Needs,Residential Independent Sector
Cambridgeshire County Council,28-Sep-17,24365320-16101048,-2977.44,Decoy Farm,Care Establishment,4 - Operations - Providers services,LDP E Cambs Special Needs,Residential Independent Sector
Cambridgeshire County Council,08-Sep-17,24205097-15973388,-2977.44,Decoy Farm,Care Establishment,4 - Operations - Providers services,LDP E Cambs Special Needs,Residential Independent Sector
Cambridgeshire County Council,08-Sep-17,24205136-15973427,-2977.44,Decoy Farm,Care Establishment,4 - Operations - Providers services,LDP E Cambs Special Needs,Residential Independent Sector
Cambridgeshire County Council,08-Sep-17,24207120-15974489,-2977.44,Decoy Farm,Care Establishment,4 - Operations - Providers services,LDP E Cambs Special Needs,Residential Independent Sector
Cambridgeshire County Council,08-Sep-17,24207137-15974506,-2977.44,Decoy Farm,Care Establishment,4 - Operations - Providers services,LDP E Cambs Special Needs,Residential Independent Sector
Cambridgeshire County Council,08-Sep-17,24209061-15974533,-2977.44,Decoy Farm,Care Establishment,4 - Operations - Providers services,LDP E Cambs Special Needs,Residential Independent Sector
Cambridgeshire County Council,08-Sep-17,24209098-15974570,-2977.44,Decoy Farm,Care Establishment,4 - Operations - Providers services,LDP E Cambs Special Needs,Residential Independent Sector
Cambridgeshire County Council,08-Sep-17,24211014-15974598,-2977.44,Decoy Farm,Care Establishment,4 - Operations - Providers services,LDP E Cambs Special Needs,Residential Independent Sector
Cambridgeshire County Council,22-Sep-17,24241708-16069256,-2977.44,Decoy Farm,Care Establishment,4 - Operations - Providers services,LDP E Cambs Special Needs,Residential Independent Sector
Cambridgeshire County Council,22-Sep-17,24241711-16069258,-2977.44,Decoy Farm,Care Establishment,4 - Operations - Providers services,LDP E Cambs Special Needs,Residential Independent Sector
Cambridgeshire County Council,22-Sep-17,24240541-16069269,-2977.44,Decoy Farm,Care Establishment,4 - Operations - Providers services,LDP E Cambs Special Needs,Residential Independent Sector
Cambridgeshire County Council,22-Sep-17,24247611-16069286,-2977.44,Decoy Farm,Care Establishment,4 - Operations - Providers services,LDP E Cambs Special Needs,Residential Independent Sector
Cambridgeshire County Council,22-Sep-17,24327236-16069677,-2977.44,Decoy Farm,Care Establishment,4 - Operations - Providers services,LDP E Cambs Special Needs,Residential Independent Sector
Cambridgeshire County Council,22-Sep-17,24327182-16069708,-2977.44,Decoy Farm,Care Establishment,4 - Operations - Providers services,LDP E Cambs Special Needs,Residential Independent Sector
Cambridgeshire County Council,22-Sep-17,24327184-16069710,-2977.44,Decoy Farm,Care Establishment,4 - Operations - Providers services,LDP E Cambs Special Needs,Residential Independent Sector
Cambridgeshire County Council,22-Sep-17,24327185-16069711,-2977.44,Decoy Farm,Care Establishment,4 - Operations - Providers services,LDP E Cambs Special Needs,Residential Independent Sector
Cambridgeshire County Council,22-Sep-17,24327197-16069723,-2977.44,Decoy Farm,Care Establishment,4 - Operations - Providers services,LDP E Cambs Special Needs,Residential Independent Sector
Cambridgeshire County Council,22-Sep-17,24247631-16069306,-2977.44,Decoy Farm,Care Establishment,4 - Operations - Providers services,LDP E Cambs Special Needs,Residential Independent Sector
Cambridgeshire County Council,22-Sep-17,24247650-16069322,-2977.44,Decoy Farm,Care Establishment,4 - Operations - Providers services,LDP E Cambs Special Needs,Residential Independent Sector
Cambridgeshire County Council,22-Sep-17,24247654-16069326,-2977.44,Decoy Farm,Care Establishment,4 - Operations - Providers services,LDP E Cambs Special Needs,Residential Independent Sector
Cambridgeshire County Council,22-Sep-17,24247724-16069359,-2977.44,Decoy Farm,Care Establishment,4 - Operations - Providers services,LDP E Cambs Special Needs,Residential Independent Sector
Cambridgeshire County Council,22-Sep-17,24247666-16069363,-2977.44,Decoy Farm,Care Establishment,4 - Operations - Providers services,LDP E Cambs Special Needs,Residential Independent Sector
Cambridgeshire County Council,22-Sep-17,24247684-16069380,-2977.44,Decoy Farm,Care Establishment,4 - Operations - Providers services,LDP E Cambs Special Needs,Residential Independent Sector
Cambridgeshire County Council,22-Sep-17,24247691-16069387,-2977.44,Decoy Farm,Care Establishment,4 - Operations - Providers services,LDP E Cambs Special Needs,Residential Independent Sector
Cambridgeshire County Council,22-Sep-17,24247606-16069396,-2977.44,Decoy Farm,Care Establishment,4 - Operations - Providers services,LDP E Cambs Special Needs,Residential Independent Sector
Cambridgeshire County Council,22-Sep-17,24253552-16069406,-2977.44,Decoy Farm,Care Establishment,4 - Operations - Providers services,LDP E Cambs Special Needs,Residential Independent Sector
Cambridgeshire County Council,22-Sep-17,24253555-16069409,-2977.44,Decoy Farm,Care Establishment,4 - Operations - Providers services,LDP E Cambs Special Needs,Residential Independent Sector
Cambridgeshire County Council,22-Sep-17,24254715-16069416,-2977.44,Decoy Farm,Care Establishment,4 - Operations - Providers services,LDP E Cambs Special Needs,Residential Independent Sector
Cambridgeshire County Council,22-Sep-17,24253524-16069441,-2977.44,Decoy Farm,Care Establishment,4 - Operations - Providers services,LDP E Cambs Special Needs,Residential Independent Sector
Cambridgeshire County Council,22-Sep-17,24253532-16069448,-2977.44,Decoy Farm,Care Establishment,4 - Operations - Providers services,LDP E Cambs Special Needs,Residential Independent Sector
Cambridgeshire County Council,22-Sep-17,24253545-16069460,-2977.44,Decoy Farm,Care Establishment,4 - Operations - Providers services,LDP E Cambs Special Needs,Residential Independent Sector
Cambridgeshire County Council,22-Sep-17,24258760-16069462,-2977.44,Decoy Farm,Care Establishment,4 - Operations - Providers services,LDP E Cambs Special Needs,Residential Independent Sector
Cambridgeshire County Council,22-Sep-17,24258768-16069470,-2977.44,Decoy Farm,Care Establishment,4 - Operations - Providers services,LDP E Cambs Special Needs,Residential Independent Sector
Cambridgeshire County Council,22-Sep-17,24317249-16069479,-2977.44,Decoy Farm,Care Establishment,4 - Operations - Providers services,LDP E Cambs Special Needs,Residential Independent Sector
Cambridgeshire County Council,22-Sep-17,24317289-16069502,-2977.44,Decoy Farm,Care Establishment,4 - Operations - Providers services,LDP E Cambs Special Needs,Residential Independent Sector
Cambridgeshire County Council,22-Sep-17,24320105-16069554,-2977.44,Decoy Farm,Care Establishment,4 - Operations - Providers services,LDP E Cambs Special Needs,Residential Independent Sector
Cambridgeshire County Council,22-Sep-17,24320106-16069555,-2977.44,Decoy Farm,Care Establishment,4 - Operations - Providers services,LDP E Cambs Special Needs,Residential Independent Sector
Cambridgeshire County Council,22-Sep-17,24320119-16069568,-2977.44,Decoy Farm,Care Establishment,4 - Operations - Providers services,LDP E Cambs Special Needs,Residential Independent Sector
Cambridgeshire County Council,22-Sep-17,24320127-16069576,-2977.44,Decoy Farm,Care Establishment,4 - Operations - Providers services,LDP E Cambs Special Needs,Residential Independent Sector
Cambridgeshire County Council,22-Sep-17,24322165-16069625,-2977.44,Decoy Farm,Care Establishment,4 - Operations - Providers services,LDP E Cambs Special Needs,Residential Independent Sector
Cambridgeshire County Council,22-Sep-17,24327169-16069642,-2977.44,Decoy Farm,Care Establishment,4 - Operations - Providers services,LDP E Cambs Special Needs,Residential Independent Sector
Cambridgeshire County Council,28-Sep-17,24363261-16100866,-2977.44,Decoy Farm,Care Establishment,4 - Operations - Providers services,LDP E Cambs Special Needs,Residential Independent Sector
Cambridgeshire County Council,28-Sep-17,24363268-16100873,-2977.44,Decoy Farm,Care Establishment,4 - Operations - Providers services,LDP E Cambs Special Needs,Residential Independent Sector
Cambridgeshire County Council,28-Sep-17,24363269-16100874,-2977.44,Decoy Farm,Care Establishment,4 - Operations - Providers services,LDP E Cambs Special Needs,Residential Independent Sector
Cambridgeshire County Council,28-Sep-17,24363232-16100837,-2977.44,Decoy Farm,Care Establishment,4 - Operations - Providers services,LDP E Cambs Special Needs,Residential Independent Sector
Cambridgeshire County Council,28-Sep-17,24363236-16100841,-2977.44,Decoy Farm,Care Establishment,4 - Operations - Providers services,LDP E Cambs Special Needs,Residential Independent Sector
Cambridgeshire County Council,28-Sep-17,24363247-16100852,-2977.44,Decoy Farm,Care Establishment,4 - Operations - Providers services,LDP E Cambs Special Needs,Residential Independent Sector
Cambridgeshire County Council,28-Sep-17,24363307-16100912,-2977.44,Decoy Farm,Care Establishment,4 - Operations - Providers services,LDP E Cambs Special Needs,Residential Independent Sector
Cambridgeshire County Council,28-Sep-17,24365290-16100976,-2977.44,Decoy Farm,Care Establishment,4 - Operations - Providers services,LDP E Cambs Special Needs,Residential Independent Sector
Cambridgeshire County Council,28-Sep-17,24365197-16101010,-2977.44,Decoy Farm,Care Establishment,4 - Operations - Providers services,LDP E Cambs Special Needs,Residential Independent Sector
Cambridgeshire County Council,28-Sep-17,24365199-16101012,-2977.44,Decoy Farm,Care Establishment,4 - Operations - Providers services,LDP E Cambs Special Needs,Residential Independent Sector
Cambridgeshire County Council,28-Sep-17,24365342-16101070,-2977.44,Decoy Farm,Care Establishment,4 - Operations - Providers services,LDP E Cambs Special Needs,Residential Independent Sector
Cambridgeshire County Council,28-Sep-17,24365351-16101079,-2977.44,Decoy Farm,Care Establishment,4 - Operations - Providers services,LDP E Cambs Special Needs,Residential Independent Sector
Cambridgeshire County Council,28-Sep-17,24365352-16101080,-2977.44,Decoy Farm,Care Establishment,4 - Operations - Providers services,LDP E Cambs Special Needs,Residential Independent Sector
Cambridgeshire County Council,28-Sep-17,24365353-16101081,-2977.44,Decoy Farm,Care Establishment,4 - Operations - Providers services,LDP E Cambs Special Needs,Residential Independent Sector
Cambridgeshire County Council,08-Sep-17,24205073-15973364,-2977.44,Decoy Farm,Care Establishment,4 - Operations - Providers services,LDP E Cambs Special Needs,Residential Independent Sector
Cambridgeshire County Council,08-Sep-17,24205095-15973386,-2977.44,Decoy Farm,Care Establishment,4 - Operations - Providers services,LDP E Cambs Special Needs,Residential Independent Sector
Cambridgeshire County Council,08-Sep-17,24205109-15973400,-2977.44,Decoy Farm,Care Establishment,4 - Operations - Providers services,LDP E Cambs Special Needs,Residential Independent Sector
Cambridgeshire County Council,08-Sep-17,24205124-15973415,-2977.44,Decoy Farm,Care Establishment,4 - Operations - Providers services,LDP E Cambs Special Needs,Residential Independent Sector
Cambridgeshire County Council,08-Sep-17,24205129-15973420,-2977.44,Decoy Farm,Care Establishment,4 - Operations - Providers services,LDP E Cambs Special Needs,Residential Independent Sector
Cambridgeshire County Council,08-Sep-17,24207063-15973433,-2977.44,Decoy Farm,Care Establishment,4 - Operations - Providers services,LDP E Cambs Special Needs,Residential Independent Sector
Cambridgeshire County Council,08-Sep-17,24207069-15973439,-2977.44,Decoy Farm,Care Establishment,4 - Operations - Providers services,LDP E Cambs Special Needs,Residential Independent Sector
Cambridgeshire County Council,08-Sep-17,24207086-15973455,-2977.44,Decoy Farm,Care Establishment,4 - Operations - Providers services,LDP E Cambs Special Needs,Residential Independent Sector
Cambridgeshire County Council,08-Sep-17,24207110-15974479,-2977.44,Decoy Farm,Care Establishment,4 - Operations - Providers services,LDP E Cambs Special Needs,Residential Independent Sector
Cambridgeshire County Council,08-Sep-17,24207116-15974485,-2977.44,Decoy Farm,Care Establishment,4 - Operations - Providers services,LDP E Cambs Special Needs,Residential Independent Sector
Cambridgeshire County Council,08-Sep-17,24209046-15974518,-2977.44,Decoy Farm,Care Establishment,4 - Operations - Providers services,LDP E Cambs Special Needs,Residential Independent Sector
Cambridgeshire County Council,08-Sep-17,24209062-15974534,-2977.44,Decoy Farm,Care Establishment,4 - Operations - Providers services,LDP E Cambs Special Needs,Residential Independent Sector
Cambridgeshire County Council,08-Sep-17,24209073-15974545,-2977.44,Decoy Farm,Care Establishment,4 - Operations - Providers services,LDP E Cambs Special Needs,Residential Independent Sector
Cambridgeshire County Council,08-Sep-17,24209096-15974568,-2977.44,Decoy Farm,Care Establishment,4 - Operations - Providers services,LDP E Cambs Special Needs,Residential Independent Sector
Cambridgeshire County Council,08-Sep-17,24211007-15974591,-2977.44,Decoy Farm,Care Establishment,4 - Operations - Providers services,LDP E Cambs Special Needs,Residential Independent Sector
Cambridgeshire County Council,08-Sep-17,24211018-15974602,-2977.44,Decoy Farm,Care Establishment,4 - Operations - Providers services,LDP E Cambs Special Needs,Residential Independent Sector
Cambridgeshire County Council,22-Sep-17,24240535-16069249,-2977.44,Decoy Farm,Care Establishment,4 - Operations - Providers services,LDP E Cambs Special Needs,Residential Independent Sector
Cambridgeshire County Council,22-Sep-17,24241710-16069257,-2977.44,Decoy Farm,Care Establishment,4 - Operations - Providers services,LDP E Cambs Special Needs,Residential Independent Sector
Cambridgeshire County Council,22-Sep-17,24241716-16069263,-2977.44,Decoy Farm,Care Establishment,4 - Operations - Providers services,LDP E Cambs Special Needs,Residential Independent Sector
Cambridgeshire County Council,22-Sep-17,24240536-16069264,-2977.44,Decoy Farm,Care Establishment,4 - Operations - Providers services,LDP E Cambs Special Needs,Residential Independent Sector
Cambridgeshire County Council,22-Sep-17,24247618-16069293,-2977.44,Decoy Farm,Care Establishment,4 - Operations - Providers services,LDP E Cambs Special Needs,Residential Independent Sector
Cambridgeshire County Council,22-Sep-17,24240505-16069221,-2977.44,Decoy Farm,Care Establishment,4 - Operations - Providers services,LDP E Cambs Special Needs,Residential Independent Sector
Cambridgeshire County Council,22-Sep-17,24240514-16069229,-2977.44,Decoy Farm,Care Establishment,4 - Operations - Providers services,LDP E Cambs Special Needs,Residential Independent Sector
Cambridgeshire County Council,22-Sep-17,24240526-16069240,-2977.44,Decoy Farm,Care Establishment,4 - Operations - Providers services,LDP E Cambs Special Needs,Residential Independent Sector
Cambridgeshire County Council,22-Sep-17,24240527-16069241,-2977.44,Decoy Farm,Care Establishment,4 - Operations - Providers services,LDP E Cambs Special Needs,Residential Independent Sector
Cambridgeshire County Council,22-Sep-17,24327229-16069670,-2977.44,Decoy Farm,Care Establishment,4 - Operations - Providers services,LDP E Cambs Special Needs,Residential Independent Sector
Cambridgeshire County Council,22-Sep-17,24327237-16069678,-2977.44,Decoy Farm,Care Establishment,4 - Operations - Providers services,LDP E Cambs Special Needs,Residential Independent Sector
Cambridgeshire County Council,22-Sep-17,24327247-16069688,-2977.44,Decoy Farm,Care Establishment,4 - Operations - Providers services,LDP E Cambs Special Needs,Residential Independent Sector
Cambridgeshire County Council,22-Sep-17,24327252-16069693,-2977.44,Decoy Farm,Care Establishment,4 - Operations - Providers services,LDP E Cambs Special Needs,Residential Independent Sector
Cambridgeshire County Council,22-Sep-17,24327207-16069733,-2977.44,Decoy Farm,Care Establishment,4 - Operations - Providers services,LDP E Cambs Special Needs,Residential Independent Sector
Cambridgeshire County Council,22-Sep-17,24247640-16069314,-2977.44,Decoy Farm,Care Establishment,4 - Operations - Providers services,LDP E Cambs Special Needs,Residential Independent Sector
Cambridgeshire County Council,22-Sep-17,24247653-16069325,-2977.44,Decoy Farm,Care Establishment,4 - Operations - Providers services,LDP E Cambs Special Needs,Residential Independent Sector
Cambridgeshire County Council,22-Sep-17,24247709-16069344,-2977.44,Decoy Farm,Care Establishment,4 - Operations - Providers services,LDP E Cambs Special Needs,Residential Independent Sector
Cambridgeshire County Council,22-Sep-17,24247710-16069345,-2977.44,Decoy Farm,Care Establishment,4 - Operations - Providers services,LDP E Cambs Special Needs,Residential Independent Sector
Cambridgeshire County Council,22-Sep-17,24247717-16069352,-2977.44,Decoy Farm,Care Establishment,4 - Operations - Providers services,LDP E Cambs Special Needs,Residential Independent Sector
Cambridgeshire County Council,22-Sep-17,24247723-16069358,-2977.44,Decoy Farm,Care Establishment,4 - Operations - Providers services,LDP E Cambs Special Needs,Residential Independent Sector
Cambridgeshire County Council,22-Sep-17,24247675-16069372,-2977.44,Decoy Farm,Care Establishment,4 - Operations - Providers services,LDP E Cambs Special Needs,Residential Independent Sector
Cambridgeshire County Council,22-Sep-17,24247679-16069376,-2977.44,Decoy Farm,Care Establishment,4 - Operations - Providers services,LDP E Cambs Special Needs,Residential Independent Sector
Cambridgeshire County Council,22-Sep-17,24247609-16069399,-2977.44,Decoy Farm,Care Establishment,4 - Operations - Providers services,LDP E Cambs Special Needs,Residential Independent Sector
Cambridgeshire County Council,22-Sep-17,24253541-16069456,-2977.44,Decoy Farm,Care Establishment,4 - Operations - Providers services,LDP E Cambs Special Needs,Residential Independent Sector
Cambridgeshire County Council,22-Sep-17,24258765-16069467,-2977.44,Decoy Farm,Care Establishment,4 - Operations - Providers services,LDP E Cambs Special Needs,Residential Independent Sector
Cambridgeshire County Council,22-Sep-17,24317252-16069482,-2977.44,Decoy Farm,Care Establishment,4 - Operations - Providers services,LDP E Cambs Special Needs,Residential Independent Sector
Cambridgeshire County Council,22-Sep-17,24317278-16069491,-2977.44,Decoy Farm,Care Establishment,4 - Operations - Providers services,LDP E Cambs Special Needs,Residential Independent Sector
Cambridgeshire County Council,22-Sep-17,24317295-16069508,-2977.44,Decoy Farm,Care Establishment,4 - Operations - Providers services,LDP E Cambs Special Needs,Residential Independent Sector
Cambridgeshire County Council,22-Sep-17,24317267-16069518,-2977.44,Decoy Farm,Care Establishment,4 - Operations - Providers services,LDP E Cambs Special Needs,Residential Independent Sector
Cambridgeshire County Council,22-Sep-17,24320081-16069530,-2977.44,Decoy Farm,Care Establishment,4 - Operations - Providers services,LDP E Cambs Special Needs,Residential Independent Sector
Cambridgeshire County Council,22-Sep-17,24320086-16069535,-2977.44,Decoy Farm,Care Establishment,4 - Operations - Providers services,LDP E Cambs Special Needs,Residential Independent Sector
Cambridgeshire County Council,22-Sep-17,24320088-16069537,-2977.44,Decoy Farm,Care Establishment,4 - Operations - Providers services,LDP E Cambs Special Needs,Residential Independent Sector
Cambridgeshire County Council,22-Sep-17,24320089-16069538,-2977.44,Decoy Farm,Care Establishment,4 - Operations - Providers services,LDP E Cambs Special Needs,Residential Independent Sector
Cambridgeshire County Council,22-Sep-17,24320099-16069548,-2977.44,Decoy Farm,Care Establishment,4 - Operations - Providers services,LDP E Cambs Special Needs,Residential Independent Sector
Cambridgeshire County Council,22-Sep-17,24320103-16069552,-2977.44,Decoy Farm,Care Establishment,4 - Operations - Providers services,LDP E Cambs Special Needs,Residential Independent Sector
Cambridgeshire County Council,22-Sep-17,24320124-16069573,-2977.44,Decoy Farm,Care Establishment,4 - Operations - Providers services,LDP E Cambs Special Needs,Residential Independent Sector
Cambridgeshire County Council,22-Sep-17,24322150-16069610,-2977.44,Decoy Farm,Care Establishment,4 - Operations - Providers services,LDP E Cambs Special Needs,Residential Independent Sector
Cambridgeshire County Council,22-Sep-17,24322158-16069618,-2977.44,Decoy Farm,Care Establishment,4 - Operations - Providers services,LDP E Cambs Special Needs,Residential Independent Sector
Cambridgeshire County Council,28-Sep-17,24363275-16100880,-2977.44,Decoy Farm,Care Establishment,4 - Operations - Providers services,LDP E Cambs Special Needs,Residential Independent Sector
Cambridgeshire County Council,28-Sep-17,24363240-16100845,-2977.44,Decoy Farm,Care Establishment,4 - Operations - Providers services,LDP E Cambs Special Needs,Residential Independent Sector
Cambridgeshire County Council,28-Sep-17,24363241-16100846,-2977.44,Decoy Farm,Care Establishment,4 - Operations - Providers services,LDP E Cambs Special Needs,Residential Independent Sector
Cambridgeshire County Council,28-Sep-17,24365234-16100920,-2977.44,Decoy Farm,Care Establishment,4 - Operations - Providers services,LDP E Cambs Special Needs,Residential Independent Sector
Cambridgeshire County Council,28-Sep-17,24365253-16100939,-2977.44,Decoy Farm,Care Establishment,4 - Operations - Providers services,LDP E Cambs Special Needs,Residential Independent Sector
Cambridgeshire County Council,28-Sep-17,24365283-16100969,-2977.44,Decoy Farm,Care Establishment,4 - Operations - Providers services,LDP E Cambs Special Needs,Residential Independent Sector
Cambridgeshire County Council,28-Sep-17,24365284-16100970,-2977.44,Decoy Farm,Care Establishment,4 - Operations - Providers services,LDP E Cambs Special Needs,Residential Independent Sector
Cambridgeshire County Council,28-Sep-17,24365293-16100979,-2977.44,Decoy Farm,Care Establishment,4 - Operations - Providers services,LDP E Cambs Special Needs,Residential Independent Sector
Cambridgeshire County Council,28-Sep-17,24365302-16100988,-2977.44,Decoy Farm,Care Establishment,4 - Operations - Providers services,LDP E Cambs Special Needs,Residential Independent Sector
Cambridgeshire County Council,28-Sep-17,24365312-16100998,-2977.44,Decoy Farm,Care Establishment,4 - Operations - Providers services,LDP E Cambs Special Needs,Residential Independent Sector
Cambridgeshire County Council,08-Sep-17,24205117-15973408,-2977.44,Decoy Farm,Care Establishment,4 - Operations - Providers services,LDP E Cambs Special Needs,Residential Independent Sector
Cambridgeshire County Council,08-Sep-17,24205121-15973412,-2977.44,Decoy Farm,Care Establishment,4 - Operations - Providers services,LDP E Cambs Special Needs,Residential Independent Sector
Cambridgeshire County Council,08-Sep-17,24205132-15973423,-2977.44,Decoy Farm,Care Establishment,4 - Operations - Providers services,LDP E Cambs Special Needs,Residential Independent Sector
Cambridgeshire County Council,08-Sep-17,24205137-15973428,-2977.44,Decoy Farm,Care Establishment,4 - Operations - Providers services,LDP E Cambs Special Needs,Residential Independent Sector
Cambridgeshire County Council,08-Sep-17,24207071-15973441,-2977.44,Decoy Farm,Care Establishment,4 - Operations - Providers services,LDP E Cambs Special Needs,Residential Independent Sector
Cambridgeshire County Council,08-Sep-17,24207128-15974497,-2977.44,Decoy Farm,Care Establishment,4 - Operations - Providers services,LDP E Cambs Special Needs,Residential Independent Sector
Cambridgeshire County Council,08-Sep-17,24207130-15974499,-2977.44,Decoy Farm,Care Establishment,4 - Operations - Providers services,LDP E Cambs Special Needs,Residential Independent Sector
Cambridgeshire County Council,08-Sep-17,24207135-15974504,-2977.44,Decoy Farm,Care Establishment,4 - Operations - Providers services,LDP E Cambs Special Needs,Residential Independent Sector
Cambridgeshire County Council,08-Sep-17,24209066-15974538,-2977.44,Decoy Farm,Care Establishment,4 - Operations - Providers services,LDP E Cambs Special Needs,Residential Independent Sector
Cambridgeshire County Council,08-Sep-17,24209071-15974543,-2977.44,Decoy Farm,Care Establishment,4 - Operations - Providers services,LDP E Cambs Special Needs,Residential Independent Sector
Cambridgeshire County Council,08-Sep-17,24209078-15974550,-2977.44,Decoy Farm,Care Establishment,4 - Operations - Providers services,LDP E Cambs Special Needs,Residential Independent Sector
Cambridgeshire County Council,08-Sep-17,24209089-15974561,-2977.44,Decoy Farm,Care Establishment,4 - Operations - Providers services,LDP E Cambs Special Needs,Residential Independent Sector
Cambridgeshire County Council,08-Sep-17,24209091-15974563,-2977.44,Decoy Farm,Care Establishment,4 - Operations - Providers services,LDP E Cambs Special Needs,Residential Independent Sector
Cambridgeshire County Council,08-Sep-17,24209102-15974574,-2977.44,Decoy Farm,Care Establishment,4 - Operations - Providers services,LDP E Cambs Special Needs,Residential Independent Sector
Cambridgeshire County Council,08-Sep-17,24211006-15974590,-2977.44,Decoy Farm,Care Establishment,4 - Operations - Providers services,LDP E Cambs Special Needs,Residential Independent Sector
Cambridgeshire County Council,08-Sep-17,24211025-15974609,-2977.44,Decoy Farm,Care Establishment,4 - Operations - Providers services,LDP E Cambs Special Needs,Residential Independent Sector
Cambridgeshire County Council,08-Sep-17,24211029-15974613,-2977.44,Decoy Farm,Care Establishment,4 - Operations - Providers services,LDP E Cambs Special Needs,Residential Independent Sector
Cambridgeshire County Council,22-Sep-17,24240540-16069268,-2977.44,Decoy Farm,Care Establishment,4 - Operations - Providers services,LDP E Cambs Special Needs,Residential Independent Sector
Cambridgeshire County Council,22-Sep-17,24240557-16069284,-2977.44,Decoy Farm,Care Establishment,4 - Operations - Providers services,LDP E Cambs Special Needs,Residential Independent Sector
Cambridgeshire County Council,22-Sep-17,24247626-16069301,-2977.44,Decoy Farm,Care Establishment,4 - Operations - Providers services,LDP E Cambs Special Needs,Residential Independent Sector
Cambridgeshire County Council,22-Sep-17,24240522-16069236,-2977.44,Decoy Farm,Care Establishment,4 - Operations - Providers services,LDP E Cambs Special Needs,Residential Independent Sector
Cambridgeshire County Council,22-Sep-17,24327220-16069659,-2977.44,Decoy Farm,Care Establishment,4 - Operations - Providers services,LDP E Cambs Special Needs,Residential Independent Sector
Cambridgeshire County Council,22-Sep-17,24327222-16069661,-2977.44,Decoy Farm,Care Establishment,4 - Operations - Providers services,LDP E Cambs Special Needs,Residential Independent Sector
Cambridgeshire County Council,22-Sep-17,24327231-16069672,-2977.44,Decoy Farm,Care Establishment,4 - Operations - Providers services,LDP E Cambs Special Needs,Residential Independent Sector
Cambridgeshire County Council,22-Sep-17,24327235-16069676,-2977.44,Decoy Farm,Care Establishment,4 - Operations - Providers services,LDP E Cambs Special Needs,Residential Independent Sector
Cambridgeshire County Council,22-Sep-17,24327189-16069715,-2977.44,Decoy Farm,Care Establishment,4 - Operations - Providers services,LDP E Cambs Special Needs,Residential Independent Sector
Cambridgeshire County Council,22-Sep-17,24327203-16069729,-2977.44,Decoy Farm,Care Establishment,4 - Operations - Providers services,LDP E Cambs Special Needs,Residential Independent Sector
Cambridgeshire County Council,22-Sep-17,24247633-16069307,-2977.44,Decoy Farm,Care Establishment,4 - Operations - Providers services,LDP E Cambs Special Needs,Residential Independent Sector
Cambridgeshire County Council,22-Sep-17,24247639-16069313,-2977.44,Decoy Farm,Care Establishment,4 - Operations - Providers services,LDP E Cambs Special Needs,Residential Independent Sector
Cambridgeshire County Council,22-Sep-17,24247672-16069369,-2977.44,Decoy Farm,Care Establishment,4 - Operations - Providers services,LDP E Cambs Special Needs,Residential Independent Sector
Cambridgeshire County Council,22-Sep-17,24247677-16069374,-2977.44,Decoy Farm,Care Establishment,4 - Operations - Providers services,LDP E Cambs Special Needs,Residential Independent Sector
Cambridgeshire County Council,22-Sep-17,24247689-16069385,-2977.44,Decoy Farm,Care Establishment,4 - Operations - Providers services,LDP E Cambs Special Needs,Residential Independent Sector
Cambridgeshire County Council,22-Sep-17,24253509-16069427,-2977.44,Decoy Farm,Care Establishment,4 - Operations - Providers services,LDP E Cambs Special Needs,Residential Independent Sector
Cambridgeshire County Council,22-Sep-17,24253525-16069442,-2977.44,Decoy Farm,Care Establishment,4 - Operations - Providers services,LDP E Cambs Special Needs,Residential Independent Sector
Cambridgeshire County Council,22-Sep-17,24253538-16069453,-2977.44,Decoy Farm,Care Establishment,4 - Operations - Providers services,LDP E Cambs Special Needs,Residential Independent Sector
Cambridgeshire County Council,22-Sep-17,24317248-16069478,-2977.44,Decoy Farm,Care Establishment,4 - Operations - Providers services,LDP E Cambs Special Needs,Residential Independent Sector
Cambridgeshire County Council,22-Sep-17,24317259-16069489,-2977.44,Decoy Farm,Care Establishment,4 - Operations - Providers services,LDP E Cambs Special Needs,Residential Independent Sector
Cambridgeshire County Council,22-Sep-17,24317262-16069513,-2977.44,Decoy Farm,Care Establishment,4 - Operations - Providers services,LDP E Cambs Special Needs,Residential Independent Sector
Cambridgeshire County Council,22-Sep-17,24317268-16069519,-2977.44,Decoy Farm,Care Establishment,4 - Operations - Providers services,LDP E Cambs Special Needs,Residential Independent Sector
Cambridgeshire County Council,22-Sep-17,24317271-16069522,-2977.44,Decoy Farm,Care Establishment,4 - Operations - Providers services,LDP E Cambs Special Needs,Residential Independent Sector
Cambridgeshire County Council,22-Sep-17,24317272-16069523,-2977.44,Decoy Farm,Care Establishment,4 - Operations - Providers services,LDP E Cambs Special Needs,Residential Independent Sector
Cambridgeshire County Council,22-Sep-17,24317276-16069527,-2977.44,Decoy Farm,Care Establishment,4 - Operations - Providers services,LDP E Cambs Special Needs,Residential Independent Sector
Cambridgeshire County Council,22-Sep-17,24320118-16069567,-2977.44,Decoy Farm,Care Establishment,4 - Operations - Providers services,LDP E Cambs Special Needs,Residential Independent Sector
Cambridgeshire County Council,22-Sep-17,24320120-16069569,-2977.44,Decoy Farm,Care Establishment,4 - Operations - Providers services,LDP E Cambs Special Needs,Residential Independent Sector
Cambridgeshire County Council,22-Sep-17,24320139-16069588,-2977.44,Decoy Farm,Care Establishment,4 - Operations - Providers services,LDP E Cambs Special Needs,Residential Independent Sector
Cambridgeshire County Council,22-Sep-17,24322153-16069613,-2977.44,Decoy Farm,Care Establishment,4 - Operations - Providers services,LDP E Cambs Special Needs,Residential Independent Sector
Cambridgeshire County Council,28-Sep-17,24363272-16100877,-2977.44,Decoy Farm,Care Establishment,4 - Operations - Providers services,LDP E Cambs Special Needs,Residential Independent Sector
Cambridgeshire County Council,28-Sep-17,24363226-16100831,-2977.44,Decoy Farm,Care Establishment,4 - Operations - Providers services,LDP E Cambs Special Needs,Residential Independent Sector
Cambridgeshire County Council,28-Sep-17,24363288-16100893,-2977.44,Decoy Farm,Care Establishment,4 - Operations - Providers services,LDP E Cambs Special Needs,Residential Independent Sector
Cambridgeshire County Council,28-Sep-17,24363291-16100896,-2977.44,Decoy Farm,Care Establishment,4 - Operations - Providers services,LDP E Cambs Special Needs,Residential Independent Sector
Cambridgeshire County Council,28-Sep-17,24363293-16100898,-2977.44,Decoy Farm,Care Establishment,4 - Operations - Providers services,LDP E Cambs Special Needs,Residential Independent Sector
Cambridgeshire County Council,28-Sep-17,24363306-16100911,-2977.44,Decoy Farm,Care Establishment,4 - Operations - Providers services,LDP E Cambs Special Needs,Residential Independent Sector
Cambridgeshire County Council,28-Sep-17,24365263-16100949,-2977.44,Decoy Farm,Care Establishment,4 - Operations - Providers services,LDP E Cambs Special Needs,Residential Independent Sector
Cambridgeshire County Council,28-Sep-17,24365274-16100960,-2977.44,Decoy Farm,Care Establishment,4 - Operations - Providers services,LDP E Cambs Special Needs,Residential Independent Sector
Cambridgeshire County Council,28-Sep-17,24365280-16100966,-2977.44,Decoy Farm,Care Establishment,4 - Operations - Providers services,LDP E Cambs Special Needs,Residential Independent Sector
Cambridgeshire County Council,28-Sep-17,24365291-16100977,-2977.44,Decoy Farm,Care Establishment,4 - Operations - Providers services,LDP E Cambs Special Needs,Residential Independent Sector
Cambridgeshire County Council,28-Sep-17,24365297-16100983,-2977.44,Decoy Farm,Care Establishment,4 - Operations - Providers services,LDP E Cambs Special Needs,Residential Independent Sector
Cambridgeshire County Council,28-Sep-17,24365310-16100996,-2977.44,Decoy Farm,Care Establishment,4 - Operations - Providers services,LDP E Cambs Special Needs,Residential Independent Sector
Cambridgeshire County Council,28-Sep-17,24365315-16101001,-2977.44,Decoy Farm,Care Establishment,4 - Operations - Providers services,LDP E Cambs Special Needs,Residential Independent Sector
Cambridgeshire County Council,28-Sep-17,24365221-16101034,-2977.44,Decoy Farm,Care Establishment,4 - Operations - Providers services,LDP E Cambs Special Needs,Residential Independent Sector
Cambridgeshire County Council,28-Sep-17,24365224-16101037,-2977.44,Decoy Farm,Care Establishment,4 - Operations - Providers services,LDP E Cambs Special Needs,Residential Independent Sector
Cambridgeshire County Council,28-Sep-17,24365332-16101060,-2977.44,Decoy Farm,Care Establishment,4 - Operations - Providers services,LDP E Cambs Special Needs,Residential Independent Sector
Cambridgeshire County Council,28-Sep-17,24365348-16101076,-2977.44,Decoy Farm,Care Establishment,4 - Operations - Providers services,LDP E Cambs Special Needs,Residential Independent Sector
Cambridgeshire County Council,08-Sep-17,24205093-15973384,-2977.44,Decoy Farm,Care Establishment,4 - Operations - Providers services,LDP E Cambs Special Needs,Residential Independent Sector
Cambridgeshire County Council,08-Sep-17,24205104-15973395,-2977.44,Decoy Farm,Care Establishment,4 - Operations - Providers services,LDP E Cambs Special Needs,Residential Independent Sector
Cambridgeshire County Council,08-Sep-17,24205106-15973397,-2977.44,Decoy Farm,Care Establishment,4 - Operations - Providers services,LDP E Cambs Special Needs,Residential Independent Sector
Cambridgeshire County Council,08-Sep-17,24205107-15973398,-2977.44,Decoy Farm,Care Establishment,4 - Operations - Providers services,LDP E Cambs Special Needs,Residential Independent Sector
Cambridgeshire County Council,08-Sep-17,24205112-15973403,-2977.44,Decoy Farm,Care Establishment,4 - Operations - Providers services,LDP E Cambs Special Needs,Residential Independent Sector
Cambridgeshire County Council,08-Sep-17,24205116-15973407,-2977.44,Decoy Farm,Care Establishment,4 - Operations - Providers services,LDP E Cambs Special Needs,Residential Independent Sector
Cambridgeshire County Council,08-Sep-17,24205122-15973413,-2977.44,Decoy Farm,Care Establishment,4 - Operations - Providers services,LDP E Cambs Special Needs,Residential Independent Sector
Cambridgeshire County Council,08-Sep-17,24207064-15973434,-2977.44,Decoy Farm,Care Establishment,4 - Operations - Providers services,LDP E Cambs Special Needs,Residential Independent Sector
Cambridgeshire County Council,08-Sep-17,24207076-15973446,-2977.44,Decoy Farm,Care Establishment,4 - Operations - Providers services,LDP E Cambs Special Needs,Residential Independent Sector
Cambridgeshire County Council,08-Sep-17,24209060-15974532,-2977.44,Decoy Farm,Care Establishment,4 - Operations - Providers services,LDP E Cambs Special Needs,Residential Independent Sector
Cambridgeshire County Council,08-Sep-17,24209090-15974562,-2977.44,Decoy Farm,Care Establishment,4 - Operations - Providers services,LDP E Cambs Special Needs,Residential Independent Sector
Cambridgeshire County Council,08-Sep-17,24209104-15974576,-2977.44,Decoy Farm,Care Establishment,4 - Operations - Providers services,LDP E Cambs Special Needs,Residential Independent Sector
Cambridgeshire County Council,08-Sep-17,24210996-15974580,-2977.44,Decoy Farm,Care Establishment,4 - Operations - Providers services,LDP E Cambs Special Needs,Residential Independent Sector
Cambridgeshire County Council,08-Sep-17,24211001-15974585,-2977.44,Decoy Farm,Care Establishment,4 - Operations - Providers services,LDP E Cambs Special Needs,Residential Independent Sector
Cambridgeshire County Council,08-Sep-17,24211003-15974587,-2977.44,Decoy Farm,Care Establishment,4 - Operations - Providers services,LDP E Cambs Special Needs,Residential Independent Sector
Cambridgeshire County Council,08-Sep-17,24211005-15974589,-2977.44,Decoy Farm,Care Establishment,4 - Operations - Providers services,LDP E Cambs Special Needs,Residential Independent Sector
Cambridgeshire County Council,08-Sep-17,24211013-15974597,-2977.44,Decoy Farm,Care Establishment,4 - Operations - Providers services,LDP E Cambs Special Needs,Residential Independent Sector
Cambridgeshire County Council,08-Sep-17,24211015-15974599,-2977.44,Decoy Farm,Care Establishment,4 - Operations - Providers services,LDP E Cambs Special Needs,Residential Independent Sector
Cambridgeshire County Council,08-Sep-17,24211031-15974615,-2977.44,Decoy Farm,Care Establishment,4 - Operations - Providers services,LDP E Cambs Special Needs,Residential Independent Sector
Cambridgeshire County Council,22-Sep-17,24240533-16069247,-2977.44,Decoy Farm,Care Establishment,4 - Operations - Providers services,LDP E Cambs Special Needs,Residential Independent Sector
Cambridgeshire County Council,22-Sep-17,24247627-16069302,-2977.44,Decoy Farm,Care Establishment,4 - Operations - Providers services,LDP E Cambs Special Needs,Residential Independent Sector
Cambridgeshire County Council,22-Sep-17,24240506-16069222,-2977.44,Decoy Farm,Care Establishment,4 - Operations - Providers services,LDP E Cambs Special Needs,Residential Independent Sector
Cambridgeshire County Council,22-Sep-17,24240512-16069227,-2977.44,Decoy Farm,Care Establishment,4 - Operations - Providers services,LDP E Cambs Special Needs,Residential Independent Sector
Cambridgeshire County Council,22-Sep-17,24240528-16069242,-2977.44,Decoy Farm,Care Establishment,4 - Operations - Providers services,LDP E Cambs Special Needs,Residential Independent Sector
Cambridgeshire County Council,22-Sep-17,24327178-16069704,-2977.44,Decoy Farm,Care Establishment,4 - Operations - Providers services,LDP E Cambs Special Needs,Residential Independent Sector
Cambridgeshire County Council,22-Sep-17,24327194-16069720,-2977.44,Decoy Farm,Care Establishment,4 - Operations - Providers services,LDP E Cambs Special Needs,Residential Independent Sector
Cambridgeshire County Council,22-Sep-17,24327204-16069730,-2977.44,Decoy Farm,Care Establishment,4 - Operations - Providers services,LDP E Cambs Special Needs,Residential Independent Sector
Cambridgeshire County Council,22-Sep-17,24247643-16069317,-2977.44,Decoy Farm,Care Establishment,4 - Operations - Providers services,LDP E Cambs Special Needs,Residential Independent Sector
Cambridgeshire County Council,22-Sep-17,24247658-16069330,-2977.44,Decoy Farm,Care Establishment,4 - Operations - Providers services,LDP E Cambs Special Needs,Residential Independent Sector
Cambridgeshire County Council,22-Sep-17,24247708-16069343,-2977.44,Decoy Farm,Care Establishment,4 - Operations - Providers services,LDP E Cambs Special Needs,Residential Independent Sector
Cambridgeshire County Council,22-Sep-17,24247693-16069389,-2977.44,Decoy Farm,Care Establishment,4 - Operations - Providers services,LDP E Cambs Special Needs,Residential Independent Sector
Cambridgeshire County Council,22-Sep-17,24247694-16069390,-2977.44,Decoy Farm,Care Establishment,4 - Operations - Providers services,LDP E Cambs Special Needs,Residential Independent Sector
Cambridgeshire County Council,22-Sep-17,24254712-16069413,-2977.44,Decoy Farm,Care Establishment,4 - Operations - Providers services,LDP E Cambs Special Needs,Residential Independent Sector
Cambridgeshire County Council,22-Sep-17,24253522-16069439,-2977.44,Decoy Farm,Care Establishment,4 - Operations - Providers services,LDP E Cambs Special Needs,Residential Independent Sector
Cambridgeshire County Council,22-Sep-17,24253531-16069447,-2977.44,Decoy Farm,Care Establishment,4 - Operations - Providers services,LDP E Cambs Special Needs,Residential Independent Sector
Cambridgeshire County Council,22-Sep-17,24253544-16069459,-2977.44,Decoy Farm,Care Establishment,4 - Operations - Providers services,LDP E Cambs Special Needs,Residential Independent Sector
Cambridgeshire County Council,22-Sep-17,24258764-16069466,-2977.44,Decoy Farm,Care Establishment,4 - Operations - Providers services,LDP E Cambs Special Needs,Residential Independent Sector
Cambridgeshire County Council,22-Sep-17,24317254-16069484,-2977.44,Decoy Farm,Care Establishment,4 - Operations - Providers services,LDP E Cambs Special Needs,Residential Independent Sector
Cambridgeshire County Council,22-Sep-17,24317281-16069494,-2977.44,Decoy Farm,Care Establishment,4 - Operations - Providers services,LDP E Cambs Special Needs,Residential Independent Sector
Cambridgeshire County Council,22-Sep-17,24317274-16069525,-2977.44,Decoy Farm,Care Establishment,4 - Operations - Providers services,LDP E Cambs Special Needs,Residential Independent Sector
Cambridgeshire County Council,22-Sep-17,24320080-16069529,-2977.44,Decoy Farm,Care Establishment,4 - Operations - Providers services,LDP E Cambs Special Needs,Residential Independent Sector
Cambridgeshire County Council,22-Sep-17,24320092-16069541,-2977.44,Decoy Farm,Care Establishment,4 - Operations - Providers services,LDP E Cambs Special Needs,Residential Independent Sector
Cambridgeshire County Council,22-Sep-17,24320096-16069545,-2977.44,Decoy Farm,Care Establishment,4 - Operations - Providers services,LDP E Cambs Special Needs,Residential Independent Sector
Cambridgeshire County Council,22-Sep-17,24320122-16069571,-2977.44,Decoy Farm,Care Establishment,4 - Operations - Providers services,LDP E Cambs Special Needs,Residential Independent Sector
Cambridgeshire County Council,22-Sep-17,24322187-16069603,-2977.44,Decoy Farm,Care Establishment,4 - Operations - Providers services,LDP E Cambs Special Needs,Residential Independent Sector
Cambridgeshire County Council,22-Sep-17,24322188-16069604,-2977.44,Decoy Farm,Care Establishment,4 - Operations - Providers services,LDP E Cambs Special Needs,Residential Independent Sector
Cambridgeshire County Council,22-Sep-17,24322156-16069616,-2977.44,Decoy Farm,Care Establishment,4 - Operations - Providers services,LDP E Cambs Special Needs,Residential Independent Sector
Cambridgeshire County Council,22-Sep-17,24327168-16069641,-2977.44,Decoy Farm,Care Establishment,4 - Operations - Providers services,LDP E Cambs Special Needs,Residential Independent Sector
Cambridgeshire County Council,28-Sep-17,24363260-16100865,-2977.44,Decoy Farm,Care Establishment,4 - Operations - Providers services,LDP E Cambs Special Needs,Residential Independent Sector
Cambridgeshire County Council,28-Sep-17,24363266-16100871,-2977.44,Decoy Farm,Care Establishment,4 - Operations - Providers services,LDP E Cambs Special Needs,Residential Independent Sector
Cambridgeshire County Council,28-Sep-17,24363278-16100883,-2977.44,Decoy Farm,Care Establishment,4 - Operations - Providers services,LDP E Cambs Special Needs,Residential Independent Sector
Cambridgeshire County Council,28-Sep-17,24363225-16100830,-2977.44,Decoy Farm,Care Establishment,4 - Operations - Providers services,LDP E Cambs Special Needs,Residential Independent Sector
Cambridgeshire County Council,28-Sep-17,24363294-16100899,-2977.44,Decoy Farm,Care Establishment,4 - Operations - Providers services,LDP E Cambs Special Needs,Residential Independent Sector
Cambridgeshire County Council,28-Sep-17,24365250-16100936,-2977.44,Decoy Farm,Care Establishment,4 - Operations - Providers services,LDP E Cambs Special Needs,Residential Independent Sector
Cambridgeshire County Council,28-Sep-17,24365260-16100946,-2977.44,Decoy Farm,Care Establishment,4 - Operations - Providers services,LDP E Cambs Special Needs,Residential Independent Sector
Cambridgeshire County Council,28-Sep-17,24365262-16100948,-2977.44,Decoy Farm,Care Establishment,4 - Operations - Providers services,LDP E Cambs Special Needs,Residential Independent Sector
Cambridgeshire County Council,28-Sep-17,24365264-16100950,-2977.44,Decoy Farm,Care Establishment,4 - Operations - Providers services,LDP E Cambs Special Needs,Residential Independent Sector
Cambridgeshire County Council,28-Sep-17,24365294-16100980,-2977.44,Decoy Farm,Care Establishment,4 - Operations - Providers services,LDP E Cambs Special Needs,Residential Independent Sector
Cambridgeshire County Council,28-Sep-17,24365305-16100991,-2977.44,Decoy Farm,Care Establishment,4 - Operations - Providers services,LDP E Cambs Special Needs,Residential Independent Sector
Cambridgeshire County Council,28-Sep-17,24365314-16101000,-2977.44,Decoy Farm,Care Establishment,4 - Operations - Providers services,LDP E Cambs Special Needs,Residential Independent Sector
Cambridgeshire County Council,28-Sep-17,24365189-16101002,-2977.44,Decoy Farm,Care Establishment,4 - Operations - Providers services,LDP E Cambs Special Needs,Residential Independent Sector
Cambridgeshire County Council,28-Sep-17,24365198-16101011,-2977.44,Decoy Farm,Care Establishment,4 - Operations - Providers services,LDP E Cambs Special Needs,Residential Independent Sector
Cambridgeshire County Council,28-Sep-17,24365218-16101031,-2977.44,Decoy Farm,Care Establishment,4 - Operations - Providers services,LDP E Cambs Special Needs,Residential Independent Sector
Cambridgeshire County Council,28-Sep-17,24365228-16101041,-2977.44,Decoy Farm,Care Establishment,4 - Operations - Providers services,LDP E Cambs Special Needs,Residential Independent Sector
Cambridgeshire County Council,28-Sep-17,24365345-16101073,-2977.44,Decoy Farm,Care Establishment,4 - Operations - Providers services,LDP E Cambs Special Needs,Residential Independent Sector
Cambridgeshire County Council,28-Sep-17,24328578-16102142,-2681.48,Kisimul School,Care Establishment,S&C,Placements - Education,Independent School Placements
Cambridgeshire County Council,13-Sep-17,24232713-15993608,-2622,Archway Care Ltd (Milton Keynes),Care Establishment,S&C,Placements - Social Care,Agency Placements - In Cambs
Cambridgeshire County Council,04-Sep-17,24142389-15953915,-2622,Archway Care Ltd (Milton Keynes),Care Establishment,CSC,Unaccompanied Asylum Seeking Children,Living support grants - Financial Assistance - Asylum Seekers
Cambridgeshire County Council,08-Sep-17,24207121-15974490,-2552.09,Decoy Farm,Care Establishment,4 - Operations - Providers services,LDP E Cambs Special Needs,Residential Independent Sector
Cambridgeshire County Council,22-Sep-17,24240503-16069219,-2552.09,Decoy Farm,Care Establishment,4 - Operations - Providers services,LDP E Cambs Special Needs,Residential Independent Sector
Cambridgeshire County Council,22-Sep-17,24327259-16069700,-2552.09,Decoy Farm,Care Establishment,4 - Operations - Providers services,LDP E Cambs Special Needs,Residential Independent Sector
Cambridgeshire County Council,28-Sep-17,24363277-16100882,-2552.09,Decoy Farm,Care Establishment,4 - Operations - Providers services,LDP E Cambs Special Needs,Residential Independent Sector
Cambridgeshire County Council,08-Sep-17,24209081-15974553,-2552.09,Decoy Farm,Care Establishment,4 - Operations - Providers services,LDP E Cambs Special Needs,Residential Independent Sector
Cambridgeshire County Council,22-Sep-17,24322184-16069600,-2552.09,Decoy Farm,Care Establishment,4 - Operations - Providers services,LDP E Cambs Special Needs,Residential Independent Sector
Cambridgeshire County Council,22-Sep-17,24240542-16069270,-2552.09,Decoy Farm,Care Establishment,4 - Operations - Providers services,LDP E Cambs Special Needs,Residential Independent Sector
Cambridgeshire County Council,28-Sep-17,24365334-16101062,-2552.09,Decoy Farm,Care Establishment,4 - Operations - Providers services,LDP E Cambs Special Needs,Residential Independent Sector
Cambridgeshire County Council,25-Sep-17,23428583-16080262,-2419.24,Civica Uk Ltd,Trade Supplier,LGSS,3rd Party Contracts,Computer hardware - maintenance
Cambridgeshire County Council,14-Sep-17,24100003-16015471,-2344.57,Autism Plus,Care Establishment,2 - Operations - Learning Disability,LDP Fenland Locality - Care,Supported Living
Cambridgeshire County Council,14-Sep-17,24099996-16015464,-2344.57,Autism Plus,Care Establishment,2 - Operations - Learning Disability,LDP Fenland Locality - Care,Supported Living
Cambridgeshire County Council,14-Sep-17,24100000-16015468,-2344.57,Autism Plus,Care Establishment,2 - Operations - Learning Disability,LDP Fenland Locality - Care,Supported Living
Cambridgeshire County Council,14-Sep-17,24099997-16015465,-2344.57,Autism Plus,Care Establishment,2 - Operations - Learning Disability,LDP Fenland Locality - Care,Supported Living
Cambridgeshire County Council,14-Sep-17,24101635-16002023,-2342.06,Kisimul School,Care Establishment,2 - Operations - Learning Disability,LDP Fenland Locality - Care,Supported Living
Cambridgeshire County Council,14-Sep-17,24101628-16002016,-2342.06,Kisimul School,Care Establishment,2 - Operations - Learning Disability,LDP Fenland Locality - Care,Supported Living
Cambridgeshire County Council,14-Sep-17,24101629-16002017,-2342.06,Kisimul School,Care Establishment,2 - Operations - Learning Disability,LDP Fenland Locality - Care,Supported Living
Cambridgeshire County Council,14-Sep-17,24101630-16002018,-2342.06,Kisimul School,Care Establishment,2 - Operations - Learning Disability,LDP Fenland Locality - Care,Supported Living
Cambridgeshire County Council,22-Sep-17,23912786-16073599,-2337.51,Futures For Children Ltd,Care Establishment,S&C,Placements - Social Care,Agency Placements - Out County
Cambridgeshire County Council,14-Sep-17,24098236-16026286,-2337.29,Dimensions (Uk) Ltd,Care Establishment,4 - Operations - Providers services,LDP South Cambs - Special Needs,Supported Living
Cambridgeshire County Council,14-Sep-17,24212304-16026317,-2337.29,Dimensions (Uk) Ltd,Care Establishment,4 - Operations - Providers services,LDP Cambs City - Special Needs,Supported Living
Cambridgeshire County Council,14-Sep-17,24212316-16026329,-2337.29,Dimensions (Uk) Ltd,Care Establishment,4 - Operations - Providers services,LDP Cambs City - Special Needs,Supported Living
Cambridgeshire County Council,14-Sep-17,24256207-16026427,-2337.29,Dimensions (Uk) Ltd,Care Establishment,4 - Operations - Providers services,LDP South Cambs - Special Needs,Supported Living
Cambridgeshire County Council,22-Sep-17,24325634-16076812,-2337.29,Dimensions (Uk) Ltd,Care Establishment,4 - Operations - Providers services,LDP Cambs City - Special Needs,Supported Living
Cambridgeshire County Council,14-Sep-17,24098234-16026284,-2337.29,Dimensions (Uk) Ltd,Care Establishment,4 - Operations - Providers services,LDP Cambs City - Special Needs,Supported Living
Cambridgeshire County Council,14-Sep-17,24098227-16026277,-2337.29,Dimensions (Uk) Ltd,Care Establishment,4 - Operations - Providers services,LDP Cambs City - Special Needs,Supported Living
Cambridgeshire County Council,14-Sep-17,24260601-16026455,-2337.29,Dimensions (Uk) Ltd,Care Establishment,4 - Operations - Providers services,LDP Cambs City - Special Needs,Supported Living
Cambridgeshire County Council,22-Sep-17,24320609-16076807,-2337.29,Dimensions (Uk) Ltd,Care Establishment,4 - Operations - Providers services,LDP Cambs City - Special Needs,Supported Living
Cambridgeshire County Council,22-Sep-17,24320610-16076808,-2337.29,Dimensions (Uk) Ltd,Care Establishment,4 - Operations - Providers services,LDP South Cambs - Special Needs,Supported Living
Cambridgeshire County Council,14-Sep-17,24098232-16026282,-2337.29,Dimensions (Uk) Ltd,Care Establishment,4 - Operations - Providers services,LDP South Cambs - Special Needs,Supported Living
Cambridgeshire County Council,14-Sep-17,24210617-16026314,-2337.29,Dimensions (Uk) Ltd,Care Establishment,4 - Operations - Providers services,LDP Cambs City - Special Needs,Supported Living
Cambridgeshire County Council,22-Sep-17,24320605-16076803,-2337.29,Dimensions (Uk) Ltd,Care Establishment,4 - Operations - Providers services,LDP South Cambs - Special Needs,Supported Living
Cambridgeshire County Council,14-Sep-17,24098229-16026279,-2337.29,Dimensions (Uk) Ltd,Care Establishment,4 - Operations - Providers services,LDP South Cambs - Special Needs,Supported Living
Cambridgeshire County Council,14-Sep-17,24098241-16026291,-2337.29,Dimensions (Uk) Ltd,Care Establishment,4 - Operations - Providers services,LDP South Cambs - Special Needs,Supported Living
Cambridgeshire County Council,14-Sep-17,24132498-16026300,-2337.29,Dimensions (Uk) Ltd,Care Establishment,4 - Operations - Providers services,LDP South Cambs - Special Needs,Supported Living
Cambridgeshire County Council,14-Sep-17,24132501-16026303,-2337.29,Dimensions (Uk) Ltd,Care Establishment,4 - Operations - Providers services,LDP South Cambs - Special Needs,Supported Living
Cambridgeshire County Council,14-Sep-17,24132504-16026306,-2337.29,Dimensions (Uk) Ltd,Care Establishment,4 - Operations - Providers services,LDP Cambs City - Special Needs,Supported Living
Cambridgeshire County Council,14-Sep-17,24212313-16026326,-2337.29,Dimensions (Uk) Ltd,Care Establishment,4 - Operations - Providers services,LDP Cambs City - Special Needs,Supported Living
Cambridgeshire County Council,14-Sep-17,24132509-16026311,-2337.29,Dimensions (Uk) Ltd,Care Establishment,4 - Operations - Providers services,LDP South Cambs - Special Needs,Supported Living
Cambridgeshire County Council,14-Sep-17,24212303-16026316,-2337.29,Dimensions (Uk) Ltd,Care Establishment,4 - Operations - Providers services,LDP South Cambs - Special Needs,Supported Living
Cambridgeshire County Council,14-Sep-17,24212307-16026320,-2337.29,Dimensions (Uk) Ltd,Care Establishment,4 - Operations - Providers services,LDP Cambs City - Special Needs,Supported Living
Cambridgeshire County Council,14-Sep-17,24212309-16026322,-2337.29,Dimensions (Uk) Ltd,Care Establishment,4 - Operations - Providers services,LDP Cambs City - Special Needs,Supported Living
Cambridgeshire County Council,14-Sep-17,24256211-16026431,-2337.29,Dimensions (Uk) Ltd,Care Establishment,4 - Operations - Providers services,LDP South Cambs - Special Needs,Supported Living
Cambridgeshire County Council,14-Sep-17,24256214-16026434,-2337.29,Dimensions (Uk) Ltd,Care Establishment,4 - Operations - Providers services,LDP South Cambs - Special Needs,Supported Living
Cambridgeshire County Council,22-Sep-17,24320607-16076805,-2337.29,Dimensions (Uk) Ltd,Care Establishment,4 - Operations - Providers services,LDP Cambs City - Special Needs,Supported Living
Cambridgeshire County Council,14-Sep-17,24132494-16026296,-2337.29,Dimensions (Uk) Ltd,Care Establishment,4 - Operations - Providers services,LDP South Cambs - Special Needs,Supported Living
Cambridgeshire County Council,14-Sep-17,24132495-16026297,-2337.29,Dimensions (Uk) Ltd,Care Establishment,4 - Operations - Providers services,LDP South Cambs - Special Needs,Supported Living
Cambridgeshire County Council,14-Sep-17,24212310-16026323,-2337.29,Dimensions (Uk) Ltd,Care Establishment,4 - Operations - Providers services,LDP South Cambs - Special Needs,Supported Living
Cambridgeshire County Council,14-Sep-17,24256217-16026437,-2337.29,Dimensions (Uk) Ltd,Care Establishment,4 - Operations - Providers services,LDP South Cambs - Special Needs,Supported Living
Cambridgeshire County Council,14-Sep-17,24260596-16026451,-2337.29,Dimensions (Uk) Ltd,Care Establishment,4 - Operations - Providers services,LDP Cambs City - Special Needs,Supported Living
Cambridgeshire County Council,14-Sep-17,24260600-16026454,-2337.29,Dimensions (Uk) Ltd,Care Establishment,4 - Operations - Providers services,LDP Cambs City - Special Needs,Supported Living
Cambridgeshire County Council,22-Sep-17,24320604-16076802,-2337.29,Dimensions (Uk) Ltd,Care Establishment,4 - Operations - Providers services,LDP South Cambs - Special Needs,Supported Living
Cambridgeshire County Council,22-Sep-17,24325638-16076816,-2337.29,Dimensions (Uk) Ltd,Care Establishment,4 - Operations - Providers services,LDP Cambs City - Special Needs,Supported Living
Cambridgeshire County Council,14-Sep-17,24098237-16026287,-2337.29,Dimensions (Uk) Ltd,Care Establishment,4 - Operations - Providers services,LDP South Cambs - Special Needs,Supported Living
Cambridgeshire County Council,14-Sep-17,24098243-16026293,-2337.29,Dimensions (Uk) Ltd,Care Establishment,4 - Operations - Providers services,LDP Cambs City - Special Needs,Supported Living
Cambridgeshire County Council,14-Sep-17,24132502-16026304,-2337.29,Dimensions (Uk) Ltd,Care Establishment,4 - Operations - Providers services,LDP South Cambs - Special Needs,Supported Living
Cambridgeshire County Council,14-Sep-17,24132492-16026294,-2337.29,Dimensions (Uk) Ltd,Care Establishment,4 - Operations - Providers services,LDP South Cambs - Special Needs,Supported Living
Cambridgeshire County Council,14-Sep-17,24256208-16026428,-2337.29,Dimensions (Uk) Ltd,Care Establishment,4 - Operations - Providers services,LDP South Cambs - Special Needs,Supported Living
Cambridgeshire County Council,22-Sep-17,24320611-16076809,-2337.29,Dimensions (Uk) Ltd,Care Establishment,4 - Operations - Providers services,LDP South Cambs - Special Needs,Supported Living
Cambridgeshire County Council,14-Sep-17,24100795-16007257,-2314.1,Porlock House,Care Establishment,2 - Operations - Learning Disability,LDP Fenland Locality - Care,Supported Living
Cambridgeshire County Council,14-Sep-17,24100806-16007260,-2314.1,Porlock House,Care Establishment,2 - Operations - Learning Disability,LDP Fenland Locality - Care,Supported Living
Cambridgeshire County Council,14-Sep-17,24104715-16007263,-2314.1,Porlock House,Care Establishment,2 - Operations - Learning Disability,LDP Fenland Locality - Care,Supported Living
Cambridgeshire County Council,14-Sep-17,24101098-16007259,-2314.1,Porlock House,Care Establishment,2 - Operations - Learning Disability,LDP Fenland Locality - Care,Supported Living
Cambridgeshire County Council,14-Sep-17,24097301-16007250,-2304.93,Porlock House,Care Establishment,2 - Operations - Learning Disability,LDP Fenland Locality - Care,Supported Living
Cambridgeshire County Council,14-Sep-17,24097296-16007253,-2304.93,Porlock House,Care Establishment,2 - Operations - Learning Disability,LDP Fenland Locality - Care,Supported Living
Cambridgeshire County Council,14-Sep-17,24097297-16007254,-2304.93,Porlock House,Care Establishment,2 - Operations - Learning Disability,LDP Fenland Locality - Care,Supported Living
Cambridgeshire County Council,14-Sep-17,24097299-16007256,-2304.93,Porlock House,Care Establishment,2 - Operations - Learning Disability,LDP Fenland Locality - Care,Supported Living
Cambridgeshire County Council,14-Sep-17,24103381-16018267,-2185.37,Turning Point Services Ltd,Care Establishment,2 - Operations - Learning Disability,LDP Fenland Locality - Care,Day and Domicillary Care Independent Sector
Cambridgeshire County Council,14-Sep-17,24103388-16018274,-2185.37,Turning Point Services Ltd,Care Establishment,2 - Operations - Learning Disability,LDP Fenland Locality - Care,Day and Domicillary Care Independent Sector
Cambridgeshire County Council,14-Sep-17,24103384-16018270,-2185.37,Turning Point Services Ltd,Care Establishment,2 - Operations - Learning Disability,LDP Fenland Locality - Care,Day and Domicillary Care Independent Sector
Cambridgeshire County Council,14-Sep-17,24103387-16018273,-2185.37,Turning Point Services Ltd,Care Establishment,2 - Operations - Learning Disability,LDP Fenland Locality - Care,Day and Domicillary Care Independent Sector
Cambridgeshire County Council,22-Sep-17,24241705-16069253,-2126.74,Decoy Farm,Care Establishment,4 - Operations - Providers services,LDP E Cambs Special Needs,Residential Independent Sector
Cambridgeshire County Council,28-Sep-17,24365266-16100952,-2126.74,Decoy Farm,Care Establishment,4 - Operations - Providers services,LDP E Cambs Special Needs,Residential Independent Sector
Cambridgeshire County Council,08-Sep-17,24209075-15974547,-2126.74,Decoy Farm,Care Establishment,4 - Operations - Providers services,LDP E Cambs Special Needs,Residential Independent Sector
Cambridgeshire County Council,22-Sep-17,24327167-16069640,-2126.74,Decoy Farm,Care Establishment,4 - Operations - Providers services,LDP E Cambs Special Needs,Residential Independent Sector
Cambridgeshire County Council,14-Sep-17,24097598-16004491,-2078.69,Augusta Care Ltd,Care Establishment,2 - Operations - Learning Disability,LDP Fenland Locality - Care,Supported Living
Cambridgeshire County Council,14-Sep-17,24097591-16004484,-2078.69,Augusta Care Ltd,Care Establishment,2 - Operations - Learning Disability,LDP Fenland Locality - Care,Supported Living
Cambridgeshire County Council,14-Sep-17,24097596-16004489,-2078.69,Augusta Care Ltd,Care Establishment,2 - Operations - Learning Disability,LDP Fenland Locality - Care,Supported Living
Cambridgeshire County Council,14-Sep-17,24097594-16004487,-2078.69,Augusta Care Ltd,Care Establishment,2 - Operations - Learning Disability,LDP Fenland Locality - Care,Supported Living
Cambridgeshire County Council,14-Sep-17,24100697-16001464,-2028.81,Social Care Solutions Ltd,Care Establishment,4 - Operations - Providers services,LDP Huntingdonshire Locality - Care,Day and Domicillary Care Independent Sector
Cambridgeshire County Council,14-Sep-17,24100699-16001466,-2028.81,Social Care Solutions Ltd,Care Establishment,4 - Operations - Providers services,LDP Huntingdonshire Locality - Care,Day and Domicillary Care Independent Sector
Cambridgeshire County Council,14-Sep-17,24102963-16001469,-2028.81,Social Care Solutions Ltd,Care Establishment,4 - Operations - Providers services,LDP Huntingdonshire Locality - Care,Day and Domicillary Care Independent Sector
Cambridgeshire County Council,14-Sep-17,24102964-16001470,-2028.81,Social Care Solutions Ltd,Care Establishment,4 - Operations - Providers services,LDP Huntingdonshire Locality - Care,Day and Domicillary Care Independent Sector
Cambridgeshire County Council,22-Sep-17,24321712-16074501,-2020.62,Westminster (Iln East),Care Establishment,4 - Operations - Providers services,LDP E Cambs Special Needs,Supported Living
Cambridgeshire County Council,22-Sep-17,24321715-16074504,-2020.62,Westminster (Iln East),Care Establishment,4 - Operations - Providers services,LDP E Cambs Special Needs,Supported Living
Cambridgeshire County Council,20-Sep-17,24277509-16050629,-2006.24,Ccs Media Limited,Trade Supplier,LRNG,ICT Service Procurement,Materials for resale
Cambridgeshire County Council,14-Sep-17,24209136-16009255,-1993.84,Alderton House,Care Establishment,4 - Operations - Providers services,LDP E Cambs Locality - Care,Residential Independent Sector
Cambridgeshire County Council,14-Sep-17,24209134-16009253,-1993.84,Alderton House,Care Establishment,4 - Operations - Providers services,LDP E Cambs Locality - Care,Residential Independent Sector
Cambridgeshire County Council,14-Sep-17,24209132-16009251,-1993.84,Alderton House,Care Establishment,4 - Operations - Providers services,LDP E Cambs Locality - Care,Residential Independent Sector
Cambridgeshire County Council,14-Sep-17,24100064-16001459,-1882.74,Social Care Solutions Ltd,Care Establishment,2 - Operations - Learning Disability,LDP Fenland Locality - Care,Supported Living
Cambridgeshire County Council,14-Sep-17,24100061-16001456,-1882.74,Social Care Solutions Ltd,Care Establishment,2 - Operations - Learning Disability,LDP Fenland Locality - Care,Supported Living
Cambridgeshire County Council,14-Sep-17,24100060-16001455,-1882.74,Social Care Solutions Ltd,Care Establishment,2 - Operations - Learning Disability,LDP Fenland Locality - Care,Supported Living
Cambridgeshire County Council,14-Sep-17,24100062-16001457,-1882.74,Social Care Solutions Ltd,Care Establishment,2 - Operations - Learning Disability,LDP Fenland Locality - Care,Supported Living
Cambridgeshire County Council,25-Sep-17,24111298-16080171,-1837.02,Vix Technology Uk Limited,Company,Traffic Management & Road Safety,RTPI,Capital WIP - roads  -  Expenditure / Payments
Cambridgeshire County Council,22-Sep-17,24327475-16074211,-1808.37,The Red House Residential & Nursing Home,Care Establishment,2 - Commissioning - Older people Pool,Hunts - Long term blocks,Residential Independent Sector
Cambridgeshire County Council,14-Sep-17,24255904-16010163,-1711.36,Affinity Trust,Care Establishment,2 - Operations - Learning Disability,LDP Fenland Locality - Care,Supported Living
Cambridgeshire County Council,14-Sep-17,24255934-16010198,-1711.36,Affinity Trust,Care Establishment,4 - Operations - Providers services,LDP Fens - Special Needs,Supported Living
Cambridgeshire County Council,14-Sep-17,24132606-16009896,-1711.36,Affinity Trust,Care Establishment,4 - Operations - Providers services,LDP Fens - Special Needs,Supported Living
Cambridgeshire County Council,14-Sep-17,24132610-16009900,-1711.36,Affinity Trust,Care Establishment,4 - Operations - Providers services,LDP Fens - Special Needs,Supported Living
Cambridgeshire County Council,14-Sep-17,24132615-16009905,-1711.36,Affinity Trust,Care Establishment,4 - Operations - Providers services,LDP Fens - Special Needs,Supported Living
Cambridgeshire County Council,14-Sep-17,24132616-16009906,-1711.36,Affinity Trust,Care Establishment,4 - Operations - Providers services,LDP Fens - Special Needs,Supported Living
Cambridgeshire County Council,14-Sep-17,24208694-16009922,-1711.36,Affinity Trust,Care Establishment,2 - Operations - Learning Disability,LDP Fenland Locality - Care,Supported Living
Cambridgeshire County Council,22-Sep-17,24324807-16072070,-1711.36,Affinity Trust,Care Establishment,2 - Operations - Learning Disability,LDP Fenland Locality - Care,Supported Living
Cambridgeshire County Council,22-Sep-17,24324820-16072083,-1711.36,Affinity Trust,Care Establishment,2 - Operations - Learning Disability,LDP Fenland Locality - Care,Supported Living
Cambridgeshire County Council,14-Sep-17,24255932-16010196,-1711.36,Affinity Trust,Care Establishment,2 - Operations - Learning Disability,LDP Fenland Locality - Care,Supported Living
Cambridgeshire County Council,14-Sep-17,24132623-16009913,-1711.36,Affinity Trust,Care Establishment,4 - Operations - Providers services,LDP Fens - Special Needs,Supported Living
Cambridgeshire County Council,14-Sep-17,24132625-16009915,-1711.36,Affinity Trust,Care Establishment,4 - Operations - Providers services,LDP Fens - Special Needs,Supported Living
Cambridgeshire County Council,14-Sep-17,24132595-16009919,-1711.36,Affinity Trust,Care Establishment,4 - Operations - Providers services,LDP Fens - Special Needs,Supported Living
Cambridgeshire County Council,22-Sep-17,24324805-16072068,-1711.36,Affinity Trust,Care Establishment,2 - Operations - Learning Disability,LDP Fenland Locality - Care,Supported Living
Cambridgeshire County Council,22-Sep-17,24324812-16072075,-1711.36,Affinity Trust,Care Establishment,2 - Operations - Learning Disability,LDP Fenland Locality - Care,Supported Living
Cambridgeshire County Council,22-Sep-17,24324815-16072078,-1711.36,Affinity Trust,Care Establishment,2 - Operations - Learning Disability,LDP Fenland Locality - Care,Supported Living
Cambridgeshire County Council,14-Sep-17,24255909-16010173,-1711.36,Affinity Trust,Care Establishment,2 - Operations - Learning Disability,LDP Fenland Locality - Care,Supported Living
Cambridgeshire County Council,14-Sep-17,24255914-16010178,-1711.36,Affinity Trust,Care Establishment,4 - Operations - Providers services,LDP Fens - Special Needs,Supported Living
Cambridgeshire County Council,14-Sep-17,24255923-16010187,-1711.36,Affinity Trust,Care Establishment,2 - Operations - Learning Disability,LDP Fenland Locality - Care,Supported Living
Cambridgeshire County Council,14-Sep-17,24132600-16009890,-1711.36,Affinity Trust,Care Establishment,4 - Operations - Providers services,LDP Fens - Special Needs,Supported Living
Cambridgeshire County Council,14-Sep-17,24208705-16009932,-1711.36,Affinity Trust,Care Establishment,4 - Operations - Providers services,LDP Fens - Special Needs,Supported Living
Cambridgeshire County Council,14-Sep-17,24208685-16009948,-1711.36,Affinity Trust,Care Establishment,2 - Operations - Learning Disability,LDP Fenland Locality - Care,Supported Living
Cambridgeshire County Council,22-Sep-17,24324795-16072058,-1711.36,Affinity Trust,Care Establishment,4 - Operations - Providers services,LDP Fens - Special Needs,Supported Living
Cambridgeshire County Council,22-Sep-17,24324798-16072061,-1711.36,Affinity Trust,Care Establishment,2 - Operations - Learning Disability,LDP Fenland Locality - Care,Supported Living
Cambridgeshire County Council,14-Sep-17,24255935-16010199,-1711.36,Affinity Trust,Care Establishment,4 - Operations - Providers services,LDP Fens - Special Needs,Supported Living
Cambridgeshire County Council,14-Sep-17,24255938-16010202,-1711.36,Affinity Trust,Care Establishment,4 - Operations - Providers services,LDP Fens - Special Needs,Supported Living
Cambridgeshire County Council,14-Sep-17,24132596-16009886,-1711.36,Affinity Trust,Care Establishment,2 - Operations - Learning Disability,LDP Fenland Locality - Care,Supported Living
Cambridgeshire County Council,14-Sep-17,24132603-16009893,-1711.36,Affinity Trust,Care Establishment,4 - Operations - Providers services,LDP Fens - Special Needs,Supported Living
Cambridgeshire County Council,14-Sep-17,24132612-16009902,-1711.36,Affinity Trust,Care Establishment,4 - Operations - Providers services,LDP Fens - Special Needs,Supported Living
Cambridgeshire County Council,14-Sep-17,24132614-16009904,-1711.36,Affinity Trust,Care Establishment,2 - Operations - Learning Disability,LDP Fenland Locality - Care,Supported Living
Cambridgeshire County Council,14-Sep-17,24208701-16009928,-1711.36,Affinity Trust,Care Establishment,2 - Operations - Learning Disability,LDP Fenland Locality - Care,Supported Living
Cambridgeshire County Council,14-Sep-17,24208709-16009936,-1711.36,Affinity Trust,Care Establishment,4 - Operations - Providers services,LDP Fens - Special Needs,Supported Living
Cambridgeshire County Council,14-Sep-17,24208681-16009944,-1711.36,Affinity Trust,Care Establishment,2 - Operations - Learning Disability,LDP Fenland Locality - Care,Supported Living
Cambridgeshire County Council,14-Sep-17,24208683-16009946,-1711.36,Affinity Trust,Care Establishment,4 - Operations - Providers services,LDP Fens - Special Needs,Supported Living
Cambridgeshire County Council,14-Sep-17,24208689-16009952,-1711.36,Affinity Trust,Care Establishment,4 - Operations - Providers services,LDP Fens - Special Needs,Supported Living
Cambridgeshire County Council,22-Sep-17,24324796-16072059,-1711.36,Affinity Trust,Care Establishment,4 - Operations - Providers services,LDP Fens - Special Needs,Supported Living
Cambridgeshire County Council,14-Sep-17,24255905-16010169,-1711.36,Affinity Trust,Care Establishment,2 - Operations - Learning Disability,LDP Fenland Locality - Care,Supported Living
Cambridgeshire County Council,14-Sep-17,24255915-16010179,-1711.36,Affinity Trust,Care Establishment,4 - Operations - Providers services,LDP Fens - Special Needs,Supported Living
Cambridgeshire County Council,14-Sep-17,24255939-16010203,-1711.36,Affinity Trust,Care Establishment,2 - Operations - Learning Disability,LDP Fenland Locality - Care,Supported Living
Cambridgeshire County Council,14-Sep-17,24132608-16009898,-1711.36,Affinity Trust,Care Establishment,2 - Operations - Learning Disability,LDP Fenland Locality - Care,Supported Living
Cambridgeshire County Council,14-Sep-17,24208688-16009951,-1711.36,Affinity Trust,Care Establishment,4 - Operations - Providers services,LDP Fens - Special Needs,Supported Living
Cambridgeshire County Council,22-Sep-17,24324810-16072073,-1711.36,Affinity Trust,Care Establishment,4 - Operations - Providers services,LDP Fens - Special Needs,Supported Living
Cambridgeshire County Council,22-Sep-17,24324822-16072085,-1711.36,Affinity Trust,Care Establishment,2 - Operations - Learning Disability,LDP Fenland Locality - Care,Supported Living
Cambridgeshire County Council,22-Sep-17,24324824-16072087,-1711.36,Affinity Trust,Care Establishment,4 - Operations - Providers services,LDP Fens - Special Needs,Supported Living
Cambridgeshire County Council,22-Sep-17,24324825-16072088,-1711.36,Affinity Trust,Care Establishment,2 - Operations - Learning Disability,LDP Fenland Locality - Care,Supported Living
Cambridgeshire County Council,14-Sep-17,24255925-16010189,-1711.36,Affinity Trust,Care Establishment,4 - Operations - Providers services,LDP Fens - Special Needs,Supported Living
Cambridgeshire County Council,14-Sep-17,24208698-16009925,-1711.36,Affinity Trust,Care Establishment,2 - Operations - Learning Disability,LDP Fenland Locality - Care,Supported Living
Cambridgeshire County Council,14-Sep-17,24208675-16009940,-1711.36,Affinity Trust,Care Establishment,4 - Operations - Providers services,LDP Fens - Special Needs,Supported Living
Cambridgeshire County Council,14-Sep-17,24208684-16009947,-1711.36,Affinity Trust,Care Establishment,4 - Operations - Providers services,LDP Fens - Special Needs,Supported Living
Cambridgeshire County Council,22-Sep-17,24324821-16072084,-1711.36,Affinity Trust,Care Establishment,4 - Operations - Providers services,LDP Fens - Special Needs,Supported Living
Cambridgeshire County Council,14-Sep-17,24255941-16010164,-1711.36,Affinity Trust,Care Establishment,2 - Operations - Learning Disability,LDP Fenland Locality - Care,Supported Living
Cambridgeshire County Council,14-Sep-17,24255919-16010183,-1711.36,Affinity Trust,Care Establishment,2 - Operations - Learning Disability,LDP Fenland Locality - Care,Supported Living
Cambridgeshire County Council,14-Sep-17,24132598-16009888,-1711.36,Affinity Trust,Care Establishment,4 - Operations - Providers services,LDP Fens - Special Needs,Supported Living
Cambridgeshire County Council,14-Sep-17,24132609-16009899,-1711.36,Affinity Trust,Care Establishment,4 - Operations - Providers services,LDP Fens - Special Needs,Supported Living
Cambridgeshire County Council,14-Sep-17,24132620-16009910,-1711.36,Affinity Trust,Care Establishment,2 - Operations - Learning Disability,LDP Fenland Locality - Care,Supported Living
Cambridgeshire County Council,14-Sep-17,24208707-16009934,-1711.36,Affinity Trust,Care Establishment,4 - Operations - Providers services,LDP Fens - Special Needs,Supported Living
Cambridgeshire County Council,22-Sep-17,24324802-16072065,-1711.36,Affinity Trust,Care Establishment,4 - Operations - Providers services,LDP Fens - Special Needs,Supported Living
Cambridgeshire County Council,22-Sep-17,24324817-16072080,-1711.36,Affinity Trust,Care Establishment,4 - Operations - Providers services,LDP Fens - Special Needs,Supported Living
Cambridgeshire County Council,14-Sep-17,24255912-16010176,-1711.36,Affinity Trust,Care Establishment,4 - Operations - Providers services,LDP Fens - Special Needs,Supported Living
Cambridgeshire County Council,14-Sep-17,24255916-16010180,-1711.36,Affinity Trust,Care Establishment,2 - Operations - Learning Disability,LDP Fenland Locality - Care,Supported Living
Cambridgeshire County Council,14-Sep-17,24208704-16009931,-1711.36,Affinity Trust,Care Establishment,4 - Operations - Providers services,LDP Fens - Special Needs,Supported Living
Cambridgeshire County Council,14-Sep-17,24208708-16009935,-1711.36,Affinity Trust,Care Establishment,4 - Operations - Providers services,LDP Fens - Special Needs,Supported Living
Cambridgeshire County Council,14-Sep-17,24208682-16009945,-1711.36,Affinity Trust,Care Establishment,2 - Operations - Learning Disability,LDP Fenland Locality - Care,Supported Living
Cambridgeshire County Council,22-Sep-17,24324819-16072082,-1711.36,Affinity Trust,Care Establishment,2 - Operations - Learning Disability,LDP Fenland Locality - Care,Supported Living
Cambridgeshire County Council,01-Sep-17,24139081-15946189,-1676.52,Compass Fostering Central Limited,Care Establishment,S&C,Placements - Social Care,Agency Placements - Out County
Cambridgeshire County Council,01-Sep-17,24137735-15946186,-1676.52,Compass Fostering Central Limited,Care Establishment,S&C,Placements - Social Care,Agency Placements - Out County
Cambridgeshire County Council,14-Sep-17,24207869-16009246,-1627.85,Alderton House,Care Establishment,4 - Operations - Providers services,LDP E Cambs Locality - Care,Residential Independent Sector
Cambridgeshire County Council,14-Sep-17,24207870-16009247,-1627.85,Alderton House,Care Establishment,4 - Operations - Providers services,LDP E Cambs Locality - Care,Residential Independent Sector
Cambridgeshire County Council,14-Sep-17,24212732-16009346,-1627.85,Alderton House,Care Establishment,4 - Operations - Providers services,LDP E Cambs Locality - Care,Residential Independent Sector
Cambridgeshire County Council,14-Sep-17,24241280-16001054,-1615.03,The Cambridge Nursing Centre,Care Establishment,2 - Commissioning - Older people Pool,City and South - Long term blocks,Nursing Independent Sector
Cambridgeshire County Council,08-Sep-17,24210873-15975821,-1561.48,Caretech Community Services,Care Establishment,2 - Operations - Learning Disability,LDP South Cambs Locality - Care,Residential Independent Sector
Cambridgeshire County Council,08-Sep-17,24210900-15975833,-1561.48,Caretech Community Services,Care Establishment,2 - Operations - Learning Disability,LDP South Cambs Locality - Care,Residential Independent Sector
Cambridgeshire County Council,08-Sep-17,24210888-15975826,-1561.48,Caretech Community Services,Care Establishment,2 - Operations - Learning Disability,LDP South Cambs Locality - Care,Residential Independent Sector
Cambridgeshire County Council,08-Sep-17,24098086-15975564,-1534.8,Caretech Community Services,Care Establishment,2 - Operations - Learning Disability,LDP Fenland Locality - Care,Supported Living
Cambridgeshire County Council,08-Sep-17,24098092-15975570,-1534.8,Caretech Community Services,Care Establishment,2 - Operations - Learning Disability,LDP Fenland Locality - Care,Supported Living
Cambridgeshire County Council,08-Sep-17,24098090-15975568,-1534.8,Caretech Community Services,Care Establishment,2 - Operations - Learning Disability,LDP Fenland Locality - Care,Supported Living
Cambridgeshire County Council,08-Sep-17,24098085-15975563,-1534.8,Caretech Community Services,Care Establishment,2 - Operations - Learning Disability,LDP Fenland Locality - Care,Supported Living
Cambridgeshire County Council,01-Sep-17,24139073-15946187,-1521,Compass Fostering Central Limited,Care Establishment,S&C,Placements - Social Care,Agency Placements - Out County
Cambridgeshire County Council,14-Sep-17,24103846-16025194,-1490.8,Voyage (Lichfield),Care Establishment,2 - Operations - Learning Disability,LDP Fenland Locality - Care,Supported Living
Cambridgeshire County Council,14-Sep-17,24103812-16025189,-1490.8,Voyage (Lichfield),Care Establishment,2 - Operations - Learning Disability,LDP Fenland Locality - Care,Supported Living
Cambridgeshire County Council,14-Sep-17,24103845-16025193,-1490.8,Voyage (Lichfield),Care Establishment,2 - Operations - Learning Disability,LDP Fenland Locality - Care,Supported Living
Cambridgeshire County Council,14-Sep-17,24104805-16025196,-1490.8,Voyage (Lichfield),Care Establishment,2 - Operations - Learning Disability,LDP Fenland Locality - Care,Supported Living
Cambridgeshire County Council,28-Sep-17,24320062-16104685,-1408.45,Voyage (Lichfield),Care Establishment,2 - Operations - Learning Disability,LDP South Cambs Locality - Care,Day and Domicillary Care Independent Sector
Cambridgeshire County Council,28-Sep-17,24320068-16104686,-1408.45,Voyage (Lichfield),Care Establishment,2 - Operations - Learning Disability,LDP South Cambs Locality - Care,Day and Domicillary Care Independent Sector
Cambridgeshire County Council,28-Sep-17,24367632-16104155,-1389.56,Haddon House,Care Establishment,4 - Commissioning - Mental Health & Supporting People,Hunts Mental Health Team,Residential Independent Sector
Cambridgeshire County Council,28-Sep-17,24367633-16104156,-1389.56,Haddon House,Care Establishment,4 - Commissioning - Mental Health & Supporting People,Hunts Mental Health Team,Residential Independent Sector
Cambridgeshire County Council,28-Sep-17,24367634-16104157,-1389.56,Haddon House,Care Establishment,4 - Commissioning - Mental Health & Supporting People,Hunts Mental Health Team,Residential Independent Sector
Cambridgeshire County Council,28-Sep-17,24367636-16104158,-1389.56,Haddon House,Care Establishment,4 - Commissioning - Mental Health & Supporting People,Hunts Mental Health Team,Residential Independent Sector
Cambridgeshire County Council,22-Sep-17,24133036-16070648,-1328.44,Care Management Group (64-66 Carlton),Care Establishment,4 - Operations - Providers services,LDP E Cambs Special Needs,Residential Independent Sector
Cambridgeshire County Council,22-Sep-17,24133039-16070651,-1328.44,Care Management Group (64-66 Carlton),Care Establishment,4 - Operations - Providers services,LDP E Cambs Special Needs,Residential Independent Sector
Cambridgeshire County Council,22-Sep-17,24133043-16070655,-1328.44,Care Management Group (64-66 Carlton),Care Establishment,4 - Operations - Providers services,LDP E Cambs Special Needs,Residential Independent Sector
Cambridgeshire County Council,22-Sep-17,24207631-16070742,-1328.44,Care Management Group (64-66 Carlton),Care Establishment,4 - Operations - Providers services,LDP E Cambs Special Needs,Residential Independent Sector
Cambridgeshire County Council,22-Sep-17,24209349-16070750,-1328.44,Care Management Group (64-66 Carlton),Care Establishment,4 - Operations - Providers services,LDP E Cambs Special Needs,Residential Independent Sector
Cambridgeshire County Council,22-Sep-17,24209355-16070756,-1328.44,Care Management Group (64-66 Carlton),Care Establishment,4 - Operations - Providers services,LDP E Cambs Special Needs,Residential Independent Sector
Cambridgeshire County Council,22-Sep-17,24209416-16070781,-1328.44,Care Management Group (64-66 Carlton),Care Establishment,4 - Operations - Providers services,LDP E Cambs Special Needs,Residential Independent Sector
Cambridgeshire County Council,22-Sep-17,24207543-16070686,-1328.44,Care Management Group (64-66 Carlton),Care Establishment,4 - Operations - Providers services,LDP E Cambs Special Needs,Residential Independent Sector
Cambridgeshire County Council,22-Sep-17,24207546-16070709,-1328.44,Care Management Group (64-66 Carlton),Care Establishment,4 - Operations - Providers services,LDP E Cambs Special Needs,Residential Independent Sector
Cambridgeshire County Council,22-Sep-17,24207550-16070713,-1328.44,Care Management Group (64-66 Carlton),Care Establishment,4 - Operations - Providers services,LDP E Cambs Special Needs,Residential Independent Sector
Cambridgeshire County Council,22-Sep-17,24207553-16070716,-1328.44,Care Management Group (64-66 Carlton),Care Establishment,4 - Operations - Providers services,LDP E Cambs Special Needs,Residential Independent Sector
Cambridgeshire County Council,22-Sep-17,24207560-16070723,-1328.44,Care Management Group (64-66 Carlton),Care Establishment,4 - Operations - Providers services,LDP E Cambs Special Needs,Residential Independent Sector
Cambridgeshire County Council,22-Sep-17,24207616-16070727,-1328.44,Care Management Group (64-66 Carlton),Care Establishment,4 - Operations - Providers services,LDP E Cambs Special Needs,Residential Independent Sector
Cambridgeshire County Council,22-Sep-17,24131038-16070465,-1328.44,Care Management Group (64-66 Carlton),Care Establishment,4 - Operations - Providers services,LDP E Cambs Special Needs,Residential Independent Sector
Cambridgeshire County Council,22-Sep-17,24131043-16070470,-1328.44,Care Management Group (64-66 Carlton),Care Establishment,4 - Operations - Providers services,LDP E Cambs Special Needs,Residential Independent Sector
Cambridgeshire County Council,22-Sep-17,24131061-16070488,-1328.44,Care Management Group (64-66 Carlton),Care Establishment,4 - Operations - Providers services,LDP E Cambs Special Needs,Residential Independent Sector
Cambridgeshire County Council,22-Sep-17,24131128-16070520,-1328.44,Care Management Group (64-66 Carlton),Care Establishment,4 - Operations - Providers services,LDP E Cambs Special Needs,Residential Independent Sector
Cambridgeshire County Council,22-Sep-17,24133027-16070552,-1328.44,Care Management Group (64-66 Carlton),Care Establishment,4 - Operations - Providers services,LDP E Cambs Special Needs,Residential Independent Sector
Cambridgeshire County Council,22-Sep-17,24133033-16070558,-1328.44,Care Management Group (64-66 Carlton),Care Establishment,4 - Operations - Providers services,LDP E Cambs Special Needs,Residential Independent Sector
Cambridgeshire County Council,22-Sep-17,24132966-16070561,-1328.44,Care Management Group (64-66 Carlton),Care Establishment,4 - Operations - Providers services,LDP E Cambs Special Needs,Residential Independent Sector
Cambridgeshire County Council,22-Sep-17,24132977-16070572,-1328.44,Care Management Group (64-66 Carlton),Care Establishment,4 - Operations - Providers services,LDP E Cambs Special Needs,Residential Independent Sector
Cambridgeshire County Council,22-Sep-17,24132983-16070578,-1328.44,Care Management Group (64-66 Carlton),Care Establishment,4 - Operations - Providers services,LDP E Cambs Special Needs,Residential Independent Sector
Cambridgeshire County Council,22-Sep-17,24131084-16070597,-1328.44,Care Management Group (64-66 Carlton),Care Establishment,4 - Operations - Providers services,LDP E Cambs Special Needs,Residential Independent Sector
Cambridgeshire County Council,22-Sep-17,24131105-16070618,-1328.44,Care Management Group (64-66 Carlton),Care Establishment,4 - Operations - Providers services,LDP E Cambs Special Needs,Residential Independent Sector
Cambridgeshire County Council,22-Sep-17,24131109-16070622,-1328.44,Care Management Group (64-66 Carlton),Care Establishment,4 - Operations - Providers services,LDP E Cambs Special Needs,Residential Independent Sector
Cambridgeshire County Council,22-Sep-17,24259346-16071187,-1328.44,Care Management Group (64-66 Carlton),Care Establishment,4 - Operations - Providers services,LDP E Cambs Special Needs,Residential Independent Sector
Cambridgeshire County Council,22-Sep-17,24259348-16071189,-1328.44,Care Management Group (64-66 Carlton),Care Establishment,4 - Operations - Providers services,LDP E Cambs Special Needs,Residential Independent Sector
Cambridgeshire County Council,22-Sep-17,24249062-16071140,-1328.44,Care Management Group (64-66 Carlton),Care Establishment,4 - Operations - Providers services,LDP E Cambs Special Needs,Residential Independent Sector
Cambridgeshire County Council,22-Sep-17,24249069-16071147,-1328.44,Care Management Group (64-66 Carlton),Care Establishment,4 - Operations - Providers services,LDP E Cambs Special Needs,Residential Independent Sector
Cambridgeshire County Council,22-Sep-17,24249099-16071177,-1328.44,Care Management Group (64-66 Carlton),Care Establishment,4 - Operations - Providers services,LDP E Cambs Special Needs,Residential Independent Sector
Cambridgeshire County Council,22-Sep-17,24209366-16070801,-1328.44,Care Management Group (64-66 Carlton),Care Establishment,4 - Operations - Providers services,LDP E Cambs Special Needs,Residential Independent Sector
Cambridgeshire County Council,22-Sep-17,24209325-16070847,-1328.44,Care Management Group (64-66 Carlton),Care Establishment,4 - Operations - Providers services,LDP E Cambs Special Needs,Residential Independent Sector
Cambridgeshire County Council,22-Sep-17,24209328-16070850,-1328.44,Care Management Group (64-66 Carlton),Care Establishment,4 - Operations - Providers services,LDP E Cambs Special Needs,Residential Independent Sector
Cambridgeshire County Council,22-Sep-17,24209336-16070857,-1328.44,Care Management Group (64-66 Carlton),Care Establishment,4 - Operations - Providers services,LDP E Cambs Special Needs,Residential Independent Sector
Cambridgeshire County Council,22-Sep-17,24209338-16070859,-1328.44,Care Management Group (64-66 Carlton),Care Establishment,4 - Operations - Providers services,LDP E Cambs Special Needs,Residential Independent Sector
Cambridgeshire County Council,22-Sep-17,24207574-16070886,-1328.44,Care Management Group (64-66 Carlton),Care Establishment,4 - Operations - Providers services,LDP E Cambs Special Needs,Residential Independent Sector
Cambridgeshire County Council,22-Sep-17,24207575-16070887,-1328.44,Care Management Group (64-66 Carlton),Care Establishment,4 - Operations - Providers services,LDP E Cambs Special Needs,Residential Independent Sector
Cambridgeshire County Council,22-Sep-17,24207576-16070888,-1328.44,Care Management Group (64-66 Carlton),Care Establishment,4 - Operations - Providers services,LDP E Cambs Special Needs,Residential Independent Sector
Cambridgeshire County Council,22-Sep-17,24207581-16070893,-1328.44,Care Management Group (64-66 Carlton),Care Establishment,4 - Operations - Providers services,LDP E Cambs Special Needs,Residential Independent Sector
Cambridgeshire County Council,22-Sep-17,24207587-16070899,-1328.44,Care Management Group (64-66 Carlton),Care Establishment,4 - Operations - Providers services,LDP E Cambs Special Needs,Residential Independent Sector
Cambridgeshire County Council,22-Sep-17,24207589-16070901,-1328.44,Care Management Group (64-66 Carlton),Care Establishment,4 - Operations - Providers services,LDP E Cambs Special Needs,Residential Independent Sector
Cambridgeshire County Council,22-Sep-17,24207593-16070905,-1328.44,Care Management Group (64-66 Carlton),Care Establishment,4 - Operations - Providers services,LDP E Cambs Special Needs,Residential Independent Sector
Cambridgeshire County Council,22-Sep-17,24207609-16070921,-1328.44,Care Management Group (64-66 Carlton),Care Establishment,4 - Operations - Providers services,LDP E Cambs Special Needs,Residential Independent Sector
Cambridgeshire County Council,22-Sep-17,24209436-16070932,-1328.44,Care Management Group (64-66 Carlton),Care Establishment,4 - Operations - Providers services,LDP E Cambs Special Needs,Residential Independent Sector
Cambridgeshire County Council,22-Sep-17,24209439-16070935,-1328.44,Care Management Group (64-66 Carlton),Care Establishment,4 - Operations - Providers services,LDP E Cambs Special Needs,Residential Independent Sector
Cambridgeshire County Council,22-Sep-17,24209444-16070940,-1328.44,Care Management Group (64-66 Carlton),Care Establishment,4 - Operations - Providers services,LDP E Cambs Special Needs,Residential Independent Sector
Cambridgeshire County Council,22-Sep-17,24242094-16070979,-1328.44,Care Management Group (64-66 Carlton),Care Establishment,4 - Operations - Providers services,LDP E Cambs Special Needs,Residential Independent Sector
Cambridgeshire County Council,22-Sep-17,24242097-16070982,-1328.44,Care Management Group (64-66 Carlton),Care Establishment,4 - Operations - Providers services,LDP E Cambs Special Needs,Residential Independent Sector
Cambridgeshire County Council,22-Sep-17,24242099-16070997,-1328.44,Care Management Group (64-66 Carlton),Care Establishment,4 - Operations - Providers services,LDP E Cambs Special Needs,Residential Independent Sector
Cambridgeshire County Council,22-Sep-17,24242166-16071013,-1328.44,Care Management Group (64-66 Carlton),Care Establishment,4 - Operations - Providers services,LDP E Cambs Special Needs,Residential Independent Sector
Cambridgeshire County Council,22-Sep-17,24249047-16071056,-1328.44,Care Management Group (64-66 Carlton),Care Establishment,4 - Operations - Providers services,LDP E Cambs Special Needs,Residential Independent Sector
Cambridgeshire County Council,22-Sep-17,24249050-16071059,-1328.44,Care Management Group (64-66 Carlton),Care Establishment,4 - Operations - Providers services,LDP E Cambs Special Needs,Residential Independent Sector
Cambridgeshire County Council,22-Sep-17,24249015-16071072,-1328.44,Care Management Group (64-66 Carlton),Care Establishment,4 - Operations - Providers services,LDP E Cambs Special Needs,Residential Independent Sector
Cambridgeshire County Council,22-Sep-17,24314897-16071235,-1328.44,Care Management Group (64-66 Carlton),Care Establishment,4 - Operations - Providers services,LDP E Cambs Special Needs,Residential Independent Sector
Cambridgeshire County Council,22-Sep-17,24314875-16071288,-1328.44,Care Management Group (64-66 Carlton),Care Establishment,4 - Operations - Providers services,LDP E Cambs Special Needs,Residential Independent Sector
Cambridgeshire County Council,22-Sep-17,24319649-16071368,-1328.44,Care Management Group (64-66 Carlton),Care Establishment,4 - Operations - Providers services,LDP E Cambs Special Needs,Residential Independent Sector
Cambridgeshire County Council,22-Sep-17,24319664-16071382,-1328.44,Care Management Group (64-66 Carlton),Care Establishment,4 - Operations - Providers services,LDP E Cambs Special Needs,Residential Independent Sector
Cambridgeshire County Council,22-Sep-17,24319667-16071385,-1328.44,Care Management Group (64-66 Carlton),Care Establishment,4 - Operations - Providers services,LDP E Cambs Special Needs,Residential Independent Sector
Cambridgeshire County Council,22-Sep-17,24319681-16071399,-1328.44,Care Management Group (64-66 Carlton),Care Establishment,4 - Operations - Providers services,LDP E Cambs Special Needs,Residential Independent Sector
Cambridgeshire County Council,22-Sep-17,24319683-16071400,-1328.44,Care Management Group (64-66 Carlton),Care Establishment,4 - Operations - Providers services,LDP E Cambs Special Needs,Residential Independent Sector
Cambridgeshire County Council,22-Sep-17,24319684-16071401,-1328.44,Care Management Group (64-66 Carlton),Care Establishment,4 - Operations - Providers services,LDP E Cambs Special Needs,Residential Independent Sector
Cambridgeshire County Council,22-Sep-17,24319696-16071413,-1328.44,Care Management Group (64-66 Carlton),Care Establishment,4 - Operations - Providers services,LDP E Cambs Special Needs,Residential Independent Sector
Cambridgeshire County Council,22-Sep-17,24322023-16071424,-1328.44,Care Management Group (64-66 Carlton),Care Establishment,4 - Operations - Providers services,LDP E Cambs Special Needs,Residential Independent Sector
Cambridgeshire County Council,22-Sep-17,24321997-16071473,-1328.44,Care Management Group (64-66 Carlton),Care Establishment,4 - Operations - Providers services,LDP E Cambs Special Needs,Residential Independent Sector
Cambridgeshire County Council,22-Sep-17,24136957-16070662,-1328.44,Care Management Group (64-66 Carlton),Care Establishment,4 - Operations - Providers services,LDP E Cambs Special Needs,Residential Independent Sector
Cambridgeshire County Council,22-Sep-17,24207623-16070734,-1328.44,Care Management Group (64-66 Carlton),Care Establishment,4 - Operations - Providers services,LDP E Cambs Special Needs,Residential Independent Sector
Cambridgeshire County Council,22-Sep-17,24207632-16070743,-1328.44,Care Management Group (64-66 Carlton),Care Establishment,4 - Operations - Providers services,LDP E Cambs Special Needs,Residential Independent Sector
Cambridgeshire County Council,22-Sep-17,24209401-16070767,-1328.44,Care Management Group (64-66 Carlton),Care Establishment,4 - Operations - Providers services,LDP E Cambs Special Needs,Residential Independent Sector
Cambridgeshire County Council,22-Sep-17,24209404-16070770,-1328.44,Care Management Group (64-66 Carlton),Care Establishment,4 - Operations - Providers services,LDP E Cambs Special Needs,Residential Independent Sector
Cambridgeshire County Council,22-Sep-17,24209406-16070772,-1328.44,Care Management Group (64-66 Carlton),Care Establishment,4 - Operations - Providers services,LDP E Cambs Special Needs,Residential Independent Sector
Cambridgeshire County Council,22-Sep-17,24207539-16070682,-1328.44,Care Management Group (64-66 Carlton),Care Establishment,4 - Operations - Providers services,LDP E Cambs Special Needs,Residential Independent Sector
Cambridgeshire County Council,22-Sep-17,24207542-16070685,-1328.44,Care Management Group (64-66 Carlton),Care Establishment,4 - Operations - Providers services,LDP E Cambs Special Needs,Residential Independent Sector
Cambridgeshire County Council,22-Sep-17,24136975-16070693,-1328.44,Care Management Group (64-66 Carlton),Care Establishment,4 - Operations - Providers services,LDP E Cambs Special Needs,Residential Independent Sector
Cambridgeshire County Council,22-Sep-17,24136991-16070708,-1328.44,Care Management Group (64-66 Carlton),Care Establishment,4 - Operations - Providers services,LDP E Cambs Special Needs,Residential Independent Sector
Cambridgeshire County Council,22-Sep-17,24131042-16070469,-1328.44,Care Management Group (64-66 Carlton),Care Establishment,4 - Operations - Providers services,LDP E Cambs Special Needs,Residential Independent Sector
Cambridgeshire County Council,22-Sep-17,24131066-16070493,-1328.44,Care Management Group (64-66 Carlton),Care Establishment,4 - Operations - Providers services,LDP E Cambs Special Needs,Residential Independent Sector
Cambridgeshire County Council,22-Sep-17,24131067-16070494,-1328.44,Care Management Group (64-66 Carlton),Care Establishment,4 - Operations - Providers services,LDP E Cambs Special Needs,Residential Independent Sector
Cambridgeshire County Council,22-Sep-17,24131076-16070502,-1328.44,Care Management Group (64-66 Carlton),Care Establishment,4 - Operations - Providers services,LDP E Cambs Special Needs,Residential Independent Sector
Cambridgeshire County Council,22-Sep-17,24131125-16070517,-1328.44,Care Management Group (64-66 Carlton),Care Establishment,4 - Operations - Providers services,LDP E Cambs Special Needs,Residential Independent Sector
Cambridgeshire County Council,22-Sep-17,24132962-16070523,-1328.44,Care Management Group (64-66 Carlton),Care Establishment,4 - Operations - Providers services,LDP E Cambs Special Needs,Residential Independent Sector
Cambridgeshire County Council,22-Sep-17,24132980-16070575,-1328.44,Care Management Group (64-66 Carlton),Care Establishment,4 - Operations - Providers services,LDP E Cambs Special Needs,Residential Independent Sector
Cambridgeshire County Council,22-Sep-17,24132986-16070581,-1328.44,Care Management Group (64-66 Carlton),Care Establishment,4 - Operations - Providers services,LDP E Cambs Special Needs,Residential Independent Sector
Cambridgeshire County Council,22-Sep-17,24132993-16070588,-1328.44,Care Management Group (64-66 Carlton),Care Establishment,4 - Operations - Providers services,LDP E Cambs Special Needs,Residential Independent Sector
Cambridgeshire County Council,22-Sep-17,24132994-16070589,-1328.44,Care Management Group (64-66 Carlton),Care Establishment,4 - Operations - Providers services,LDP E Cambs Special Needs,Residential Independent Sector
Cambridgeshire County Council,22-Sep-17,24131096-16070609,-1328.44,Care Management Group (64-66 Carlton),Care Establishment,4 - Operations - Providers services,LDP E Cambs Special Needs,Residential Independent Sector
Cambridgeshire County Council,22-Sep-17,24131017-16070635,-1328.44,Care Management Group (64-66 Carlton),Care Establishment,4 - Operations - Providers services,LDP E Cambs Special Needs,Residential Independent Sector
Cambridgeshire County Council,22-Sep-17,24242139-16071106,-1328.44,Care Management Group (64-66 Carlton),Care Establishment,4 - Operations - Providers services,LDP E Cambs Special Needs,Residential Independent Sector
Cambridgeshire County Council,22-Sep-17,24242143-16071110,-1328.44,Care Management Group (64-66 Carlton),Care Establishment,4 - Operations - Providers services,LDP E Cambs Special Needs,Residential Independent Sector
Cambridgeshire County Council,22-Sep-17,24259344-16071185,-1328.44,Care Management Group (64-66 Carlton),Care Establishment,4 - Operations - Providers services,LDP E Cambs Special Needs,Residential Independent Sector
Cambridgeshire County Council,22-Sep-17,24259349-16071190,-1328.44,Care Management Group (64-66 Carlton),Care Establishment,4 - Operations - Providers services,LDP E Cambs Special Needs,Residential Independent Sector
Cambridgeshire County Council,22-Sep-17,24259353-16071194,-1328.44,Care Management Group (64-66 Carlton),Care Establishment,4 - Operations - Providers services,LDP E Cambs Special Needs,Residential Independent Sector
Cambridgeshire County Council,22-Sep-17,24259329-16071207,-1328.44,Care Management Group (64-66 Carlton),Care Establishment,4 - Operations - Providers services,LDP E Cambs Special Needs,Residential Independent Sector
Cambridgeshire County Council,22-Sep-17,24314868-16071223,-1328.44,Care Management Group (64-66 Carlton),Care Establishment,4 - Operations - Providers services,LDP E Cambs Special Needs,Residential Independent Sector
Cambridgeshire County Council,22-Sep-17,24249073-16071151,-1328.44,Care Management Group (64-66 Carlton),Care Establishment,4 - Operations - Providers services,LDP E Cambs Special Needs,Residential Independent Sector
Cambridgeshire County Council,22-Sep-17,24249074-16071152,-1328.44,Care Management Group (64-66 Carlton),Care Establishment,4 - Operations - Providers services,LDP E Cambs Special Needs,Residential Independent Sector
Cambridgeshire County Council,22-Sep-17,24209312-16070834,-1328.44,Care Management Group (64-66 Carlton),Care Establishment,4 - Operations - Providers services,LDP E Cambs Special Needs,Residential Independent Sector
Cambridgeshire County Council,22-Sep-17,24209319-16070841,-1328.44,Care Management Group (64-66 Carlton),Care Establishment,4 - Operations - Providers services,LDP E Cambs Special Needs,Residential Independent Sector
Cambridgeshire County Council,22-Sep-17,24207573-16070885,-1328.44,Care Management Group (64-66 Carlton),Care Establishment,4 - Operations - Providers services,LDP E Cambs Special Needs,Residential Independent Sector
Cambridgeshire County Council,22-Sep-17,24207599-16070911,-1328.44,Care Management Group (64-66 Carlton),Care Establishment,4 - Operations - Providers services,LDP E Cambs Special Needs,Residential Independent Sector
Cambridgeshire County Council,22-Sep-17,24209434-16070930,-1328.44,Care Management Group (64-66 Carlton),Care Establishment,4 - Operations - Providers services,LDP E Cambs Special Needs,Residential Independent Sector
Cambridgeshire County Council,22-Sep-17,24209435-16070931,-1328.44,Care Management Group (64-66 Carlton),Care Establishment,4 - Operations - Providers services,LDP E Cambs Special Needs,Residential Independent Sector
Cambridgeshire County Council,22-Sep-17,24209441-16070937,-1328.44,Care Management Group (64-66 Carlton),Care Establishment,4 - Operations - Providers services,LDP E Cambs Special Needs,Residential Independent Sector
Cambridgeshire County Council,22-Sep-17,24209451-16070947,-1328.44,Care Management Group (64-66 Carlton),Care Establishment,4 - Operations - Providers services,LDP E Cambs Special Needs,Residential Independent Sector
Cambridgeshire County Council,22-Sep-17,24242067-16070952,-1328.44,Care Management Group (64-66 Carlton),Care Establishment,4 - Operations - Providers services,LDP E Cambs Special Needs,Residential Independent Sector
Cambridgeshire County Council,22-Sep-17,24242061-16070991,-1328.44,Care Management Group (64-66 Carlton),Care Establishment,4 - Operations - Providers services,LDP E Cambs Special Needs,Residential Independent Sector
Cambridgeshire County Council,22-Sep-17,24249025-16071034,-1328.44,Care Management Group (64-66 Carlton),Care Establishment,4 - Operations - Providers services,LDP E Cambs Special Needs,Residential Independent Sector
Cambridgeshire County Council,22-Sep-17,24249031-16071040,-1328.44,Care Management Group (64-66 Carlton),Care Establishment,4 - Operations - Providers services,LDP E Cambs Special Needs,Residential Independent Sector
Cambridgeshire County Council,22-Sep-17,24249038-16071047,-1328.44,Care Management Group (64-66 Carlton),Care Establishment,4 - Operations - Providers services,LDP E Cambs Special Needs,Residential Independent Sector
Cambridgeshire County Council,22-Sep-17,24249017-16071074,-1328.44,Care Management Group (64-66 Carlton),Care Establishment,4 - Operations - Providers services,LDP E Cambs Special Needs,Residential Independent Sector
Cambridgeshire County Council,22-Sep-17,24249019-16071076,-1328.44,Care Management Group (64-66 Carlton),Care Establishment,4 - Operations - Providers services,LDP E Cambs Special Needs,Residential Independent Sector
Cambridgeshire County Council,22-Sep-17,24314916-16071254,-1328.44,Care Management Group (64-66 Carlton),Care Establishment,4 - Operations - Providers services,LDP E Cambs Special Needs,Residential Independent Sector
Cambridgeshire County Council,22-Sep-17,24314927-16071265,-1328.44,Care Management Group (64-66 Carlton),Care Establishment,4 - Operations - Providers services,LDP E Cambs Special Needs,Residential Independent Sector
Cambridgeshire County Council,22-Sep-17,24314871-16071284,-1328.44,Care Management Group (64-66 Carlton),Care Establishment,4 - Operations - Providers services,LDP E Cambs Special Needs,Residential Independent Sector
Cambridgeshire County Council,22-Sep-17,24319709-16071342,-1328.44,Care Management Group (64-66 Carlton),Care Establishment,4 - Operations - Providers services,LDP E Cambs Special Needs,Residential Independent Sector
Cambridgeshire County Council,22-Sep-17,24319713-16071346,-1328.44,Care Management Group (64-66 Carlton),Care Establishment,4 - Operations - Providers services,LDP E Cambs Special Needs,Residential Independent Sector
Cambridgeshire County Council,22-Sep-17,24319730-16071363,-1328.44,Care Management Group (64-66 Carlton),Care Establishment,4 - Operations - Providers services,LDP E Cambs Special Needs,Residential Independent Sector
Cambridgeshire County Council,22-Sep-17,24319668-16071386,-1328.44,Care Management Group (64-66 Carlton),Care Establishment,4 - Operations - Providers services,LDP E Cambs Special Needs,Residential Independent Sector
Cambridgeshire County Council,22-Sep-17,24319673-16071391,-1328.44,Care Management Group (64-66 Carlton),Care Establishment,4 - Operations - Providers services,LDP E Cambs Special Needs,Residential Independent Sector
Cambridgeshire County Council,22-Sep-17,24322022-16071423,-1328.44,Care Management Group (64-66 Carlton),Care Establishment,4 - Operations - Providers services,LDP E Cambs Special Needs,Residential Independent Sector
Cambridgeshire County Council,22-Sep-17,24136961-16070666,-1328.44,Care Management Group (64-66 Carlton),Care Establishment,4 - Operations - Providers services,LDP E Cambs Special Needs,Residential Independent Sector
Cambridgeshire County Council,22-Sep-17,24207621-16070732,-1328.44,Care Management Group (64-66 Carlton),Care Establishment,4 - Operations - Providers services,LDP E Cambs Special Needs,Residential Independent Sector
Cambridgeshire County Council,22-Sep-17,24209420-16070785,-1328.44,Care Management Group (64-66 Carlton),Care Establishment,4 - Operations - Providers services,LDP E Cambs Special Needs,Residential Independent Sector
Cambridgeshire County Council,22-Sep-17,24207532-16070675,-1328.44,Care Management Group (64-66 Carlton),Care Establishment,4 - Operations - Providers services,LDP E Cambs Special Needs,Residential Independent Sector
Cambridgeshire County Council,22-Sep-17,24136976-16070694,-1328.44,Care Management Group (64-66 Carlton),Care Establishment,4 - Operations - Providers services,LDP E Cambs Special Needs,Residential Independent Sector
Cambridgeshire County Council,22-Sep-17,24136985-16070702,-1328.44,Care Management Group (64-66 Carlton),Care Establishment,4 - Operations - Providers services,LDP E Cambs Special Needs,Residential Independent Sector
Cambridgeshire County Council,22-Sep-17,24131070-16070497,-1328.44,Care Management Group (64-66 Carlton),Care Establishment,4 - Operations - Providers services,LDP E Cambs Special Needs,Residential Independent Sector
Cambridgeshire County Council,22-Sep-17,24131079-16070505,-1328.44,Care Management Group (64-66 Carlton),Care Establishment,4 - Operations - Providers services,LDP E Cambs Special Needs,Residential Independent Sector
Cambridgeshire County Council,22-Sep-17,24133000-16070525,-1328.44,Care Management Group (64-66 Carlton),Care Establishment,4 - Operations - Providers services,LDP E Cambs Special Needs,Residential Independent Sector
Cambridgeshire County Council,22-Sep-17,24133007-16070532,-1328.44,Care Management Group (64-66 Carlton),Care Establishment,4 - Operations - Providers services,LDP E Cambs Special Needs,Residential Independent Sector
Cambridgeshire County Council,22-Sep-17,24132968-16070563,-1328.44,Care Management Group (64-66 Carlton),Care Establishment,4 - Operations - Providers services,LDP E Cambs Special Needs,Residential Independent Sector
Cambridgeshire County Council,22-Sep-17,24132973-16070568,-1328.44,Care Management Group (64-66 Carlton),Care Establishment,4 - Operations - Providers services,LDP E Cambs Special Needs,Residential Independent Sector
Cambridgeshire County Council,22-Sep-17,24131082-16070595,-1328.44,Care Management Group (64-66 Carlton),Care Establishment,4 - Operations - Providers services,LDP E Cambs Special Needs,Residential Independent Sector
Cambridgeshire County Council,22-Sep-17,24131104-16070617,-1328.44,Care Management Group (64-66 Carlton),Care Establishment,4 - Operations - Providers services,LDP E Cambs Special Needs,Residential Independent Sector
Cambridgeshire County Council,22-Sep-17,24259339-16071180,-1328.44,Care Management Group (64-66 Carlton),Care Establishment,4 - Operations - Providers services,LDP E Cambs Special Needs,Residential Independent Sector
Cambridgeshire County Council,22-Sep-17,24259332-16071210,-1328.44,Care Management Group (64-66 Carlton),Care Establishment,4 - Operations - Providers services,LDP E Cambs Special Needs,Residential Independent Sector
Cambridgeshire County Council,22-Sep-17,24249055-16071133,-1328.44,Care Management Group (64-66 Carlton),Care Establishment,4 - Operations - Providers services,LDP E Cambs Special Needs,Residential Independent Sector
Cambridgeshire County Council,22-Sep-17,24249058-16071136,-1328.44,Care Management Group (64-66 Carlton),Care Establishment,4 - Operations - Providers services,LDP E Cambs Special Needs,Residential Independent Sector
Cambridgeshire County Council,22-Sep-17,24249068-16071146,-1328.44,Care Management Group (64-66 Carlton),Care Establishment,4 - Operations - Providers services,LDP E Cambs Special Needs,Residential Independent Sector
Cambridgeshire County Council,22-Sep-17,24249082-16071160,-1328.44,Care Management Group (64-66 Carlton),Care Establishment,4 - Operations - Providers services,LDP E Cambs Special Needs,Residential Independent Sector
Cambridgeshire County Council,22-Sep-17,24209374-16070809,-1328.44,Care Management Group (64-66 Carlton),Care Establishment,4 - Operations - Providers services,LDP E Cambs Special Needs,Residential Independent Sector
Cambridgeshire County Council,22-Sep-17,24209377-16070812,-1328.44,Care Management Group (64-66 Carlton),Care Establishment,4 - Operations - Providers services,LDP E Cambs Special Needs,Residential Independent Sector
Cambridgeshire County Council,22-Sep-17,24209392-16070827,-1328.44,Care Management Group (64-66 Carlton),Care Establishment,4 - Operations - Providers services,LDP E Cambs Special Needs,Residential Independent Sector
Cambridgeshire County Council,22-Sep-17,24209310-16070832,-1328.44,Care Management Group (64-66 Carlton),Care Establishment,4 - Operations - Providers services,LDP E Cambs Special Needs,Residential Independent Sector
Cambridgeshire County Council,22-Sep-17,24209324-16070846,-1328.44,Care Management Group (64-66 Carlton),Care Establishment,4 - Operations - Providers services,LDP E Cambs Special Needs,Residential Independent Sector
Cambridgeshire County Council,22-Sep-17,24207567-16070879,-1328.44,Care Management Group (64-66 Carlton),Care Establishment,4 - Operations - Providers services,LDP E Cambs Special Needs,Residential Independent Sector
Cambridgeshire County Council,22-Sep-17,24207578-16070890,-1328.44,Care Management Group (64-66 Carlton),Care Establishment,4 - Operations - Providers services,LDP E Cambs Special Needs,Residential Independent Sector
Cambridgeshire County Council,22-Sep-17,24209447-16070943,-1328.44,Care Management Group (64-66 Carlton),Care Establishment,4 - Operations - Providers services,LDP E Cambs Special Needs,Residential Independent Sector
Cambridgeshire County Council,22-Sep-17,24242082-16070967,-1328.44,Care Management Group (64-66 Carlton),Care Establishment,4 - Operations - Providers services,LDP E Cambs Special Needs,Residential Independent Sector
Cambridgeshire County Council,22-Sep-17,24242056-16070986,-1328.44,Care Management Group (64-66 Carlton),Care Establishment,4 - Operations - Providers services,LDP E Cambs Special Needs,Residential Independent Sector
Cambridgeshire County Council,22-Sep-17,24249028-16071037,-1328.44,Care Management Group (64-66 Carlton),Care Establishment,4 - Operations - Providers services,LDP E Cambs Special Needs,Residential Independent Sector
Cambridgeshire County Council,22-Sep-17,24249030-16071039,-1328.44,Care Management Group (64-66 Carlton),Care Establishment,4 - Operations - Providers services,LDP E Cambs Special Needs,Residential Independent Sector
Cambridgeshire County Council,22-Sep-17,24249020-16071077,-1328.44,Care Management Group (64-66 Carlton),Care Establishment,4 - Operations - Providers services,LDP E Cambs Special Needs,Residential Independent Sector
Cambridgeshire County Council,22-Sep-17,24242186-16071081,-1328.44,Care Management Group (64-66 Carlton),Care Establishment,4 - Operations - Providers services,LDP E Cambs Special Needs,Residential Independent Sector
Cambridgeshire County Council,22-Sep-17,24242120-16071087,-1328.44,Care Management Group (64-66 Carlton),Care Establishment,4 - Operations - Providers services,LDP E Cambs Special Needs,Residential Independent Sector
Cambridgeshire County Council,22-Sep-17,24314914-16071252,-1328.44,Care Management Group (64-66 Carlton),Care Establishment,4 - Operations - Providers services,LDP E Cambs Special Needs,Residential Independent Sector
Cambridgeshire County Council,22-Sep-17,24314925-16071263,-1328.44,Care Management Group (64-66 Carlton),Care Establishment,4 - Operations - Providers services,LDP E Cambs Special Needs,Residential Independent Sector
Cambridgeshire County Council,22-Sep-17,24314941-16071279,-1328.44,Care Management Group (64-66 Carlton),Care Establishment,4 - Operations - Providers services,LDP E Cambs Special Needs,Residential Independent Sector
Cambridgeshire County Council,22-Sep-17,24314881-16071294,-1328.44,Care Management Group (64-66 Carlton),Care Establishment,4 - Operations - Providers services,LDP E Cambs Special Needs,Residential Independent Sector
Cambridgeshire County Council,22-Sep-17,24319716-16071349,-1328.44,Care Management Group (64-66 Carlton),Care Establishment,4 - Operations - Providers services,LDP E Cambs Special Needs,Residential Independent Sector
Cambridgeshire County Council,22-Sep-17,24319718-16071351,-1328.44,Care Management Group (64-66 Carlton),Care Establishment,4 - Operations - Providers services,LDP E Cambs Special Needs,Residential Independent Sector
Cambridgeshire County Council,22-Sep-17,24319650-16071369,-1328.44,Care Management Group (64-66 Carlton),Care Establishment,4 - Operations - Providers services,LDP E Cambs Special Needs,Residential Independent Sector
Cambridgeshire County Council,22-Sep-17,24319658-16071377,-1328.44,Care Management Group (64-66 Carlton),Care Establishment,4 - Operations - Providers services,LDP E Cambs Special Needs,Residential Independent Sector
Cambridgeshire County Council,22-Sep-17,24319662-16071381,-1328.44,Care Management Group (64-66 Carlton),Care Establishment,4 - Operations - Providers services,LDP E Cambs Special Needs,Residential Independent Sector
Cambridgeshire County Council,22-Sep-17,24319680-16071398,-1328.44,Care Management Group (64-66 Carlton),Care Establishment,4 - Operations - Providers services,LDP E Cambs Special Needs,Residential Independent Sector
Cambridgeshire County Council,22-Sep-17,24319697-16071414,-1328.44,Care Management Group (64-66 Carlton),Care Establishment,4 - Operations - Providers services,LDP E Cambs Special Needs,Residential Independent Sector
Cambridgeshire County Council,22-Sep-17,24322029-16071430,-1328.44,Care Management Group (64-66 Carlton),Care Establishment,4 - Operations - Providers services,LDP E Cambs Special Needs,Residential Independent Sector
Cambridgeshire County Council,22-Sep-17,24322038-16071439,-1328.44,Care Management Group (64-66 Carlton),Care Establishment,4 - Operations - Providers services,LDP E Cambs Special Needs,Residential Independent Sector
Cambridgeshire County Council,22-Sep-17,24321972-16071448,-1328.44,Care Management Group (64-66 Carlton),Care Establishment,4 - Operations - Providers services,LDP E Cambs Special Needs,Residential Independent Sector
Cambridgeshire County Council,22-Sep-17,24321985-16071461,-1328.44,Care Management Group (64-66 Carlton),Care Establishment,4 - Operations - Providers services,LDP E Cambs Special Needs,Residential Independent Sector
Cambridgeshire County Council,22-Sep-17,24322007-16071483,-1328.44,Care Management Group (64-66 Carlton),Care Establishment,4 - Operations - Providers services,LDP E Cambs Special Needs,Residential Independent Sector
Cambridgeshire County Council,22-Sep-17,24133044-16070656,-1328.44,Care Management Group (64-66 Carlton),Care Establishment,4 - Operations - Providers services,LDP E Cambs Special Needs,Residential Independent Sector
Cambridgeshire County Council,22-Sep-17,24209346-16070747,-1328.44,Care Management Group (64-66 Carlton),Care Establishment,4 - Operations - Providers services,LDP E Cambs Special Needs,Residential Independent Sector
Cambridgeshire County Council,22-Sep-17,24209359-16070760,-1328.44,Care Management Group (64-66 Carlton),Care Establishment,4 - Operations - Providers services,LDP E Cambs Special Needs,Residential Independent Sector
Cambridgeshire County Council,22-Sep-17,24209411-16070777,-1328.44,Care Management Group (64-66 Carlton),Care Establishment,4 - Operations - Providers services,LDP E Cambs Special Needs,Residential Independent Sector
Cambridgeshire County Council,22-Sep-17,24207535-16070678,-1328.44,Care Management Group (64-66 Carlton),Care Establishment,4 - Operations - Providers services,LDP E Cambs Special Needs,Residential Independent Sector
Cambridgeshire County Council,22-Sep-17,24207537-16070680,-1328.44,Care Management Group (64-66 Carlton),Care Establishment,4 - Operations - Providers services,LDP E Cambs Special Needs,Residential Independent Sector
Cambridgeshire County Council,22-Sep-17,24207540-16070683,-1328.44,Care Management Group (64-66 Carlton),Care Establishment,4 - Operations - Providers services,LDP E Cambs Special Needs,Residential Independent Sector
Cambridgeshire County Council,22-Sep-17,24131003-16070447,-1328.44,Care Management Group (64-66 Carlton),Care Establishment,4 - Operations - Providers services,LDP E Cambs Special Needs,Residential Independent Sector
Cambridgeshire County Council,22-Sep-17,24131050-16070477,-1328.44,Care Management Group (64-66 Carlton),Care Establishment,4 - Operations - Providers services,LDP E Cambs Special Needs,Residential Independent Sector
Cambridgeshire County Council,22-Sep-17,24131054-16070481,-1328.44,Care Management Group (64-66 Carlton),Care Establishment,4 - Operations - Providers services,LDP E Cambs Special Needs,Residential Independent Sector
Cambridgeshire County Council,22-Sep-17,24131058-16070485,-1328.44,Care Management Group (64-66 Carlton),Care Establishment,4 - Operations - Providers services,LDP E Cambs Special Needs,Residential Independent Sector
Cambridgeshire County Council,22-Sep-17,24131073-16070499,-1328.44,Care Management Group (64-66 Carlton),Care Establishment,4 - Operations - Providers services,LDP E Cambs Special Needs,Residential Independent Sector
Cambridgeshire County Council,22-Sep-17,24131117-16070509,-1328.44,Care Management Group (64-66 Carlton),Care Establishment,4 - Operations - Providers services,LDP E Cambs Special Needs,Residential Independent Sector
Cambridgeshire County Council,22-Sep-17,24131121-16070513,-1328.44,Care Management Group (64-66 Carlton),Care Establishment,4 - Operations - Providers services,LDP E Cambs Special Needs,Residential Independent Sector
Cambridgeshire County Council,22-Sep-17,24133019-16070544,-1328.44,Care Management Group (64-66 Carlton),Care Establishment,4 - Operations - Providers services,LDP E Cambs Special Needs,Residential Independent Sector
Cambridgeshire County Council,22-Sep-17,24133025-16070550,-1328.44,Care Management Group (64-66 Carlton),Care Establishment,4 - Operations - Providers services,LDP E Cambs Special Needs,Residential Independent Sector
Cambridgeshire County Council,22-Sep-17,24132979-16070574,-1328.44,Care Management Group (64-66 Carlton),Care Establishment,4 - Operations - Providers services,LDP E Cambs Special Needs,Residential Independent Sector
Cambridgeshire County Council,22-Sep-17,24132987-16070582,-1328.44,Care Management Group (64-66 Carlton),Care Establishment,4 - Operations - Providers services,LDP E Cambs Special Needs,Residential Independent Sector
Cambridgeshire County Council,22-Sep-17,24132995-16070590,-1328.44,Care Management Group (64-66 Carlton),Care Establishment,4 - Operations - Providers services,LDP E Cambs Special Needs,Residential Independent Sector
Cambridgeshire County Council,22-Sep-17,24132999-16070594,-1328.44,Care Management Group (64-66 Carlton),Care Establishment,4 - Operations - Providers services,LDP E Cambs Special Needs,Residential Independent Sector
Cambridgeshire County Council,22-Sep-17,24131111-16070624,-1328.44,Care Management Group (64-66 Carlton),Care Establishment,4 - Operations - Providers services,LDP E Cambs Special Needs,Residential Independent Sector
Cambridgeshire County Council,22-Sep-17,24131014-16070632,-1328.44,Care Management Group (64-66 Carlton),Care Establishment,4 - Operations - Providers services,LDP E Cambs Special Needs,Residential Independent Sector
Cambridgeshire County Council,22-Sep-17,24242136-16071103,-1328.44,Care Management Group (64-66 Carlton),Care Establishment,4 - Operations - Providers services,LDP E Cambs Special Needs,Residential Independent Sector
Cambridgeshire County Council,22-Sep-17,24242152-16071119,-1328.44,Care Management Group (64-66 Carlton),Care Establishment,4 - Operations - Providers services,LDP E Cambs Special Needs,Residential Independent Sector
Cambridgeshire County Council,22-Sep-17,24259327-16071205,-1328.44,Care Management Group (64-66 Carlton),Care Establishment,4 - Operations - Providers services,LDP E Cambs Special Needs,Residential Independent Sector
Cambridgeshire County Council,22-Sep-17,24259331-16071209,-1328.44,Care Management Group (64-66 Carlton),Care Establishment,4 - Operations - Providers services,LDP E Cambs Special Needs,Residential Independent Sector
Cambridgeshire County Council,22-Sep-17,24259336-16071214,-1328.44,Care Management Group (64-66 Carlton),Care Establishment,4 - Operations - Providers services,LDP E Cambs Special Needs,Residential Independent Sector
Cambridgeshire County Council,22-Sep-17,24314892-16071230,-1328.44,Care Management Group (64-66 Carlton),Care Establishment,4 - Operations - Providers services,LDP E Cambs Special Needs,Residential Independent Sector
Cambridgeshire County Council,22-Sep-17,24242161-16071128,-1328.44,Care Management Group (64-66 Carlton),Care Establishment,4 - Operations - Providers services,LDP E Cambs Special Needs,Residential Independent Sector
Cambridgeshire County Council,22-Sep-17,24249086-16071164,-1328.44,Care Management Group (64-66 Carlton),Care Establishment,4 - Operations - Providers services,LDP E Cambs Special Needs,Residential Independent Sector
Cambridgeshire County Council,22-Sep-17,24209427-16070792,-1328.44,Care Management Group (64-66 Carlton),Care Establishment,4 - Operations - Providers services,LDP E Cambs Special Needs,Residential Independent Sector
Cambridgeshire County Council,22-Sep-17,24209428-16070793,-1328.44,Care Management Group (64-66 Carlton),Care Establishment,4 - Operations - Providers services,LDP E Cambs Special Needs,Residential Independent Sector
Cambridgeshire County Council,22-Sep-17,24209365-16070800,-1328.44,Care Management Group (64-66 Carlton),Care Establishment,4 - Operations - Providers services,LDP E Cambs Special Needs,Residential Independent Sector
Cambridgeshire County Council,22-Sep-17,24209370-16070805,-1328.44,Care Management Group (64-66 Carlton),Care Establishment,4 - Operations - Providers services,LDP E Cambs Special Needs,Residential Independent Sector
Cambridgeshire County Council,22-Sep-17,24209311-16070833,-1328.44,Care Management Group (64-66 Carlton),Care Establishment,4 - Operations - Providers services,LDP E Cambs Special Needs,Residential Independent Sector
Cambridgeshire County Council,22-Sep-17,24209340-16070861,-1328.44,Care Management Group (64-66 Carlton),Care Establishment,4 - Operations - Providers services,LDP E Cambs Special Needs,Residential Independent Sector
Cambridgeshire County Council,22-Sep-17,24207568-16070880,-1328.44,Care Management Group (64-66 Carlton),Care Establishment,4 - Operations - Providers services,LDP E Cambs Special Needs,Residential Independent Sector
Cambridgeshire County Council,22-Sep-17,24207586-16070898,-1328.44,Care Management Group (64-66 Carlton),Care Establishment,4 - Operations - Providers services,LDP E Cambs Special Needs,Residential Independent Sector
Cambridgeshire County Council,22-Sep-17,24207614-16070926,-1328.44,Care Management Group (64-66 Carlton),Care Establishment,4 - Operations - Providers services,LDP E Cambs Special Needs,Residential Independent Sector
Cambridgeshire County Council,22-Sep-17,24242074-16070959,-1328.44,Care Management Group (64-66 Carlton),Care Establishment,4 - Operations - Providers services,LDP E Cambs Special Needs,Residential Independent Sector
Cambridgeshire County Council,22-Sep-17,24242075-16070960,-1328.44,Care Management Group (64-66 Carlton),Care Establishment,4 - Operations - Providers services,LDP E Cambs Special Needs,Residential Independent Sector
Cambridgeshire County Council,22-Sep-17,24242089-16070974,-1328.44,Care Management Group (64-66 Carlton),Care Establishment,4 - Operations - Providers services,LDP E Cambs Special Needs,Residential Independent Sector
Cambridgeshire County Council,22-Sep-17,24242055-16070985,-1328.44,Care Management Group (64-66 Carlton),Care Establishment,4 - Operations - Providers services,LDP E Cambs Special Needs,Residential Independent Sector
Cambridgeshire County Council,22-Sep-17,24242177-16071024,-1328.44,Care Management Group (64-66 Carlton),Care Establishment,4 - Operations - Providers services,LDP E Cambs Special Needs,Residential Independent Sector
Cambridgeshire County Council,22-Sep-17,24249040-16071049,-1328.44,Care Management Group (64-66 Carlton),Care Establishment,4 - Operations - Providers services,LDP E Cambs Special Needs,Residential Independent Sector
Cambridgeshire County Council,22-Sep-17,24249046-16071055,-1328.44,Care Management Group (64-66 Carlton),Care Establishment,4 - Operations - Providers services,LDP E Cambs Special Needs,Residential Independent Sector
Cambridgeshire County Council,22-Sep-17,24249014-16071071,-1328.44,Care Management Group (64-66 Carlton),Care Establishment,4 - Operations - Providers services,LDP E Cambs Special Needs,Residential Independent Sector
Cambridgeshire County Council,22-Sep-17,24249016-16071073,-1328.44,Care Management Group (64-66 Carlton),Care Establishment,4 - Operations - Providers services,LDP E Cambs Special Needs,Residential Independent Sector
Cambridgeshire County Council,22-Sep-17,24242122-16071089,-1328.44,Care Management Group (64-66 Carlton),Care Establishment,4 - Operations - Providers services,LDP E Cambs Special Needs,Residential Independent Sector
Cambridgeshire County Council,22-Sep-17,24314910-16071248,-1328.44,Care Management Group (64-66 Carlton),Care Establishment,4 - Operations - Providers services,LDP E Cambs Special Needs,Residential Independent Sector
Cambridgeshire County Council,22-Sep-17,24314912-16071250,-1328.44,Care Management Group (64-66 Carlton),Care Establishment,4 - Operations - Providers services,LDP E Cambs Special Needs,Residential Independent Sector
Cambridgeshire County Council,22-Sep-17,24314919-16071257,-1328.44,Care Management Group (64-66 Carlton),Care Establishment,4 - Operations - Providers services,LDP E Cambs Special Needs,Residential Independent Sector
Cambridgeshire County Council,22-Sep-17,24314880-16071293,-1328.44,Care Management Group (64-66 Carlton),Care Establishment,4 - Operations - Providers services,LDP E Cambs Special Needs,Residential Independent Sector
Cambridgeshire County Council,22-Sep-17,24314883-16071296,-1328.44,Care Management Group (64-66 Carlton),Care Establishment,4 - Operations - Providers services,LDP E Cambs Special Needs,Residential Independent Sector
Cambridgeshire County Council,22-Sep-17,24318632-16071318,-1328.44,Care Management Group (64-66 Carlton),Care Establishment,4 - Operations - Providers services,LDP E Cambs Special Needs,Residential Independent Sector
Cambridgeshire County Council,22-Sep-17,24319703-16071336,-1328.44,Care Management Group (64-66 Carlton),Care Establishment,4 - Operations - Providers services,LDP E Cambs Special Needs,Residential Independent Sector
Cambridgeshire County Council,22-Sep-17,24319712-16071345,-1328.44,Care Management Group (64-66 Carlton),Care Establishment,4 - Operations - Providers services,LDP E Cambs Special Needs,Residential Independent Sector
